{"text_format":"1","workbook":"xlsx","n_sheets":9,"sheets":["Instructivo","DEMANDA ANUAL","VOLUMEN DE QUEJAS","COSTO ADMINISTRACIÓN PÚBLICA","RESUMEN DE COSTOS AP","AUXILIAR COSTO ADMINISTRACIÓN","TIEMPO DE RESPUESTA","CANAL ATENCIÓN","RESUMEN"],"not_rendered":{"charts":0,"images":7,"macros":1,"external_links":1,"defined_names":4,"comments":5,"pivot_tables":0},"unopened":[],"bounds":{"document_bytes":16777216,"sheet_cells":100000,"rows_first":2000,"rows_last":500,"rows_between":2000,"halvings":0,"cell_chars":16384,"cell_head_chars":4096},"cells_cut":0,"cells_raw":0,"read":"whole","date_system":"1900"}

{"sheet":"Instructivo","index":0,"n_rows":70,"n_cols":1,"rows_kept":70,"cut":false,"hidden":false,"merged":[]}
["CRITERIO DE PRIORIZACIÓN DE TRÁMITES ADMINISTRATIVOS"]
["Instructivo"]
["Consideraciones generales"]
[]
["En las hojas “COSTO DE ADMINISTRACIÓN PÚBLICA”y “RESUMEN”  para añadir más trámites y que apliquen las fórmulas, se deberá seleccionar la primera fila y copiarla una por cada trámite de la entidad"]
[]
["Todas las hojas tienen columnas de color celeste, en las cuales NO deben ingresar valores ya que contienen fórmulas."]
["Para la carga en GOB.EC. La institución debe recordar que el peso máximo del archivo es de 2 MB."]
["Esquema de puntuación"]
["Para priorizar un trámite, se realizará un análisis de criterios básicos y adicionales basado en información que disponen las instituciones sujetas a esta norma técnica. Cada criterio será puntuado según los lineamientos presentes en esta norma."]
["a) Demanda Anual"]
["Considerará el volumen o frecuencia de las solicitudes que ingresan al año a cada institución para la gestión de un trámite en particular."]
["La identificación del volumen anual de los trámites se realizará a través de sus registros de transacciones y/o el número de visitas de consulta de información realizadas a través de páginas web institucionales."]
["Para realizar el registro realice lo siguiente:"]
["1.- Seleccione la hoja DEMANDA ANUAL"]
["2.- Ingrese los trámites de la institución registrando el identificador y nombre en las columnas respectivas.  "]
["3.- Para cada trámite debe especificar en la columna DEMANDA ANUAL el volumen o frecuencia anual, de acuerdo a lo mencionado anteriormente."]
["4.- Una vez terminado el llenado solicitado presione el botón PUNTUACIÓN, se ordenara de menor a mayor. "]
["5.- Usted visualizará el ordenamiento de los trámites ingresados de acuerdo al número de  volumen o frecuencia anual."]
["6.- Así mismo, usted visualizará el puntaje obtenido en la columna PUNTUACIÓN de acuerdo al grupo obtenido por cada trámite de acuerdo al número de volumen o frecuencia anual cosiderando lo siguiente: ** Primer grupo (trámites con menor demanda no incluye los trámites con demanda 0 ) = 3\n** Segundo grupo (trámites con demanda intermedia) = 6\n** Tercer grupo (trámites con mayor demanda) = 10"]
["Cada vez que requiera actualizar el puntaje presionando el botón puntuación, debe verificar que la celda de la columna puntaje se encuentren vacías, es decir, se debe borrar cualquier valor de puntaje obtenido previamente."]
["b) Volumen de quejas asociadas a un trámite: "]
["Considerará la cantidad de quejas recibidas en relación a un trámite durante un año. Estas quejas deberán estar documentadas en medios físicos y/o digitales."]
["Para determinar la puntuación, se colocará en una tabla todos los trámites con sus correspondientes quejas ordenándose de menor a mayor. Se dividirá en 2 partes en los que cada grupo contenga la misma cantidad de trámites."]
["Para realizar el registro realice lo siguiente:"]
["1.- Seleccione la hoja VOLUMEN DE QUEJAS"]
["2.- Ingrese los trámites de la institución registrando el identificador y nombre en las columnas respectivas.  Si usted requiere de acuerdo al número de trámites copie filas adicionales que estén dentro del cuadro"]
["3.- Para cada trámite debe especificar en la columna VOLUMEN QUEJAS el número de quejas anual, de acuerdo a lo mencionado anteriormente."]
["4.- Una vez terminado el llenado solicitado presione el botón PUNTUACIÓN."]
["5.- Usted visualizará el ordenamiento de los trámites ingresados de acuerdo al número de  volumen o frecuencia anual."]
["6.- Así mismo, usted visualizará el puntaje obtenido en la columna PUNTUACIÓN de acuerdo al grupo obtenido por cada trámite de acuerdo al número de volumen o frecuencia anual cosiderando lo siguiente: La puntuación se basará en los siguientes grupos:\n** Primer grupo (trámites con menor cantidad de quejas, no incluye los trámites con queja 0 ) = 4\n** Segundo grupo (trámites con mayor porcentaje de quejas) = 10"]
["El valor del volumen de quejas no debe ser superior al valor del volumen de la demana, no le permitirá registrar un valor."]
["c) Costo para la administración pública: "]
["En cada trámite, basado en un caso estándar, se deberá estimar el costo incurrido en el costo de personal y recursos necesarios para su atención desde que el administrado entregó todos los requisitos hasta que la institución entregue el producto, respuesta o servicio requerido en el trámite. Se considerará:"]
["• Costo de personal:"]
["Costo del personal para atender el trámite, se excluyen actividades realizadas automáticamente o que dependen del administrado. El tiempo deberá considerar únicamente el tiempo efectivo de trabajo del personal, no debe considerar el tiempo de espera o de movimiento."]
["• Costo de recursos:"]
["Se deberá considerar el costo directo en el que la institución debe incurrir para atender un trámite. Se debe considerar los insumos o materia prima necesaria u cualquier otro que la institución considere pertinente."]
["Para realizar el registro realice lo siguiente:"]
["1.- Seleccione la hoja COSTO ADMINISTRACIÓN PÚBLICA"]
["2.- Ingrese los trámites de la institución registrando el identificador y nombre en las columnas respectivas.  Si usted requiere de acuerdo al número de trámites copie filas adicionales que estén dentro del cuadro"]
["3.- Para calcular el tiempo de las actividades, utilizar la hoja AUXILIAR COSTO ADMINISTRACIÓN donde deberá listar todas las actividades que realiza la institución en un caso estándar y asignar el tiempo mínimo que toma cada actvidad (en horas). El tiempo total de las actividades, deberá ingresar en la correspondiente celda de la hoja COSTO ADMINISTRACIÓN PÚBLICA"]
["4.- En función de la información registrada en el paso 3, la matriz entregará el costo del personal"]
["5.- Completar la columna \"Costo recursos\", en la cual ingresará el costo directo en el que incurre la institución para entregar el trámite. En este valor se considerarán los valores correspondientes a insumos y/o materia prima mínimos que se invierten por cada trámite (no se considera mano de obra)"]
["6.- La columna \"Costo para la adm. pública\" mostrará el costto de este criterio para cada trámite"]
["7,- Para que la fórmula funcione debe arrastrar hacia abajo al último de los támites ingresados, no copiar"]
["7.- Una vez que disponga del Costo para la administración pública, presionar el botón \"GENERAR\"."]
["8. Visualizar la hoja “RESUMEN DE COSTO AP” en la que va a encontrar copiada las celdas necesarias para el ordenamiento y puntuación de las mismas al presionar el botón “PUNTUACIÓN”"]
[]
["d) Tiempo de respuesta: "]
["Considerará los tiempos que a las instituciones les toma dar respuesta a un trámite desde que reciben la solicitud del administrado hasta la finalización del mismo. Para la definición del tiempo se considerará un caso estándar."]
["Para determinar la puntuación, se colocará en una tabla todos los trámites con el tiempo de respuesta, ordenándose de menor a mayor. Se dividirá en 4 grupos, en los que cada uno contenga la misma cantidad de trámites."]
["Para realizar el registro realice lo siguiente:"]
["1.- Seleccione la hoja TIEMPO DE RESPUESTA"]
["2.- Ingrese los trámites de la institución registrando el identificador y nombre en las columnas respectivas.  Si usted requiere de acuerdo al número de trámites copie filas adicionales que estén dentro del cuadro"]
["3.- Para cada trámite debe especificar en la columna TIEMPO RESPUESTA el tiempo, de acuerdo a lo mencionado anteriormente."]
["4.- Una vez terminado el llenado solicitado presione el botón PUNTUACIÓN."]
["5.- Usted visualizará el ordenamiento de los trámites ingresados de acuerdo al número de  volumen o frecuencia anual."]
["6.- Así mismo, usted visualizará el puntaje obtenido en la columna PUNTUACIÓN de acuerdo al grupo obtenido por cada trámite de acuerdo al número de volumen o frecuencia anual cosiderando lo siguiente:  La puntuación considera lo siguiente:\n** Primer grupo (menor o igual a 40 horas laboralres) = 0\n** Segundo grupo mayor  40 horas laboralres) = 30"]
["e) Canal de atención: "]
["Considerará los canales de atención a través de los cuales el administrado puede iniciar el trámite."]
["Para realizar el registro realice lo siguiente:"]
["1.- Seleccione la hoja CANAL ATENCIÓN"]
["2.- Ingrese los trámites de la institución registrando el identificador y nombre en las columnas respectivas.  Si usted requiere de acuerdo al número de trámites copie filas adicionales que estén dentro del cuadro"]
["3.- Para cada trámite debe seleccionar el canal de atención del trámite en la columna CANAL ATENCIÓN, que pueden ser: \nEl trámite se puede completar totalmente en línea: Se considera trámite totalmente en línea cuando el administrado no requiere realizar ninguna interacción presencial con la institución = 0\nEl trámite no se puede completar totalmente en línea: Se considera este caso, cuando el trámite incluye al menos una actividad, incluido mecanismos de pago, en la que el administrado deba acudir presencialmente a la institución, para la realización de dicho trámite. Los trámites presenciales se consideran dentro de esta categoría = 10"]
["4.- De acuerdo a la selección usted obtendrá la puntuación del trámite que se visualizará en la columna PUNTUACIÓN."]
[]
["f) Resumen"]
["En esta hoja deberá consolidar todas las puntuaciones obtenidas para cada trámite en los criterios a) hasta e). Adicionalmente deberá analizar los criterios adicionales que dispone la norma técnica, para estos últimos solamente deberá seleccionar en la celda correspondiente y la matriz asignará la puntuación adicional. Los criterios que deberá considerar son:\n- NECESIDADES CIUDADANAS: Si la institución ha implementado mecanismos para identificar necesidades ciudadanas respecto al trámite, seleccionar \"SI\", caso contrario, seleccionar \"NO\"\n- SUSCEPTIBILIDAD A CORRUPCIÓN: Si la institución dispone de información documentada sobre presuntos actos de corrupción, seleccionar \"SI\", caso contrario, seleccionar \"NO\"\n- VOLUMEN DE DEVOLUCIONES: Si la institución posee documentación sobre devoluciones del trámite en una cantidad significativa, seleccionar \"SI\", caso contrario, seleccionar \"NO\"\nPara que funcione la lista depelgable debe arrastrar la lista y la puntuación hacia abajo al último de los támites ingresados, no copiar"]
["En la columna puntaje total se realizará la sumatoria de los valores de los criterios básicos y adicionales. Este valor deberá registrarse en la plataforma GOB.EC"]

{"sheet":"DEMANDA ANUAL","index":1,"n_rows":166,"n_cols":4,"rows_kept":166,"cut":false,"hidden":false,"merged":[[0,0,0,3],[1,0,1,3]]}
["PRIORIZACIÓN DE TRÁMITES ADMINISTRATIVOS"]
["DEMANDA ANUAL"]
[]
["IDENTIFICADOR","TRÁMITE","DEMANDA ANUAL","PUNTAJE"]
["MTOP-007-03-05","Actualización de datos de Matrícula de Operadores Portuarios de Buque",{"$f":"VLOOKUP(A5,'[1] Reporte mensual atenciones y q'!$A$4:$AB$165,27,FALSE)","v":0},0]
["MTOP-007-04-05","Actualización de datos de Matrícula de Operadores Portuarios de Carga",{"$f":"VLOOKUP(A6,'[1] Reporte mensual atenciones y q'!$A$4:$AB$165,27,FALSE)","v":0},0]
["MTOP-007-01-05","Actualización de datos de Matrícula de Operadores Portuarios de Pasajeros",{"$f":"VLOOKUP(A7,'[1] Reporte mensual atenciones y q'!$A$4:$AB$165,27,FALSE)","v":0},0]
["MTOP-007-01-06","Actualización de Registros de Operadores Portuarios de Pasajeros",{"$f":"VLOOKUP(A8,'[1] Reporte mensual atenciones y q'!$A$4:$AB$165,27,FALSE)","v":0},0]
["MTOP-007-01-04","Actualización de Representante Legal de Operadores Portuarios de Pasajeros",{"$f":"VLOOKUP(A9,'[1] Reporte mensual atenciones y q'!$A$4:$AB$165,27,FALSE)","v":0},0]
["MTOP-007-02-04","Actualización de Representante Legal de Operadores Portuarios de Servicios Conexos",{"$f":"VLOOKUP(A10,'[1] Reporte mensual atenciones y q'!$A$4:$AB$165,27,FALSE)","v":0},0]
["MTOP-007-03-03","Ampliación de Servicios de Operadores Portuarios de Buque",{"$f":"VLOOKUP(A11,'[1] Reporte mensual atenciones y q'!$A$4:$AB$165,27,FALSE)","v":0},0]
["MTOP-007-01-03","Ampliación de Servicios de Operadores Portuarios de Pasajeros",{"$f":"VLOOKUP(A12,'[1] Reporte mensual atenciones y q'!$A$4:$AB$165,27,FALSE)","v":0},0]
["MTOP-006-01-04","Aprobación de Plan de Contingencia Zonal para Control de Derrame por Hidrocarburos o Productos Quimicos",{"$f":"VLOOKUP(A13,'[1] Reporte mensual atenciones y q'!$A$4:$AB$165,27,FALSE)","v":0},0]
["MTOP-035-02-01","Aprobación de Planos por Contrato de Fletamento, Arrendamiento, Asociación, Leasing, Fletamento a Casco Desnudo (DENTRO DEL PERIMETRO URBANO)",{"$f":"VLOOKUP(A14,'[1] Reporte mensual atenciones y q'!$A$4:$AB$165,27,FALSE)","v":0},0]
["MTOP-035-02-02","Aprobación de Planos por Contrato de Fletamento, Arrendamiento, Asociación, Leasing, Fletamento a Casco Desnudo (FUERA DEL PERIMETRO URBANO)",{"$f":"VLOOKUP(A15,'[1] Reporte mensual atenciones y q'!$A$4:$AB$165,27,FALSE)","v":0},0]
["MTOP-035-02-03","Aprobación de Planos por Contrato de Fletamento, Arrendamiento, Asociación, Leasing, Fletamento a Casco Desnudo (GALAPAGOS ESMERALDAS AMAZONIA)",{"$f":"VLOOKUP(A16,'[1] Reporte mensual atenciones y q'!$A$4:$AB$165,27,FALSE)","v":0},0]
["MTOP-032-01-03","Aprobación del Diseño Definitivo de la Nave por Construcción (GALAPAGOS ESMERALDAS AMAZONIA)",{"$f":"VLOOKUP(A17,'[1] Reporte mensual atenciones y q'!$A$4:$AB$165,27,FALSE)","v":0},0]
["MTOP-009-02-06","Autorización de Fondeo en Terminales Petroleros",{"$f":"VLOOKUP(A18,'[1] Reporte mensual atenciones y q'!$A$4:$AB$165,27,FALSE)","v":0},0]
["MTOP-005-01-04","Autorización de la Derogatoria del Permiso de Ocupación",{"$f":"VLOOKUP(A19,'[1] Reporte mensual atenciones y q'!$A$4:$AB$165,27,FALSE)","v":0},0]
["MTOP-009-02-02","Autorización de Transporte de Carga Peligrosa en rutas nacionales",{"$f":"VLOOKUP(A20,'[1] Reporte mensual atenciones y q'!$A$4:$AB$165,27,FALSE)","v":0},0]
["MTOP-009-02-03","Autorización para Realizar Actividades No Comerciales en la Jurisdicción de un Puerto Comercial o Terminal Petrolera",{"$f":"VLOOKUP(A21,'[1] Reporte mensual atenciones y q'!$A$4:$AB$165,27,FALSE)","v":0},0]
["MTOP-006-01-02","Calificación de Empresas Proveedores de Equipos y Materiales para el Control de Derrame de Hidrocarburos",{"$f":"VLOOKUP(A22,'[1] Reporte mensual atenciones y q'!$A$4:$AB$165,27,FALSE)","v":0},0]
["MTOP-006-01-01","Calificación de Empresas que Prestan Servicios para el Control de Derrame de Hidrocarburos",{"$f":"VLOOKUP(A23,'[1] Reporte mensual atenciones y q'!$A$4:$AB$165,27,FALSE)","v":0},0]
["MTOP-001-01-04","Certificación de matrícula por perdida de equipo caminero y maquinaria pesada",{"$f":"VLOOKUP(A24,'[1] Reporte mensual atenciones y q'!$A$4:$AB$165,27,FALSE)","v":0},0]
["MTOP-012-01-05","Corrección al Plan de Protección de Instalaciones Portuarias",{"$f":"VLOOKUP(A25,'[1] Reporte mensual atenciones y q'!$A$4:$AB$165,27,FALSE)","v":0},0]
["MTOP-019-01-06","Emisión de Autorización de Asignación de Muelles para Desembarque/Embarque de Clase IMDG en Puerto Comercial y/o Terminales Privadas.",{"$f":"VLOOKUP(A26,'[1] Reporte mensual atenciones y q'!$A$4:$AB$165,27,FALSE)","v":0},0]
["MTOP-019-01-07","Emisión de Autorización de Desvío de cargas a otro puerto por fuerza mayor o eventos naturales",{"$f":"VLOOKUP(A27,'[1] Reporte mensual atenciones y q'!$A$4:$AB$165,27,FALSE)","v":0},0]
["MTOP-021-01-05","Emisión de la Autorización de importación de naves bajo el regimen de internación temporal para celebrar un contrato de fletamento a casco desnudo como beneficiario de la LEFORTAAC",{"$f":"VLOOKUP(A28,'[1] Reporte mensual atenciones y q'!$A$4:$AB$165,27,FALSE)","v":0},0]
["MTOP-023-04-03","Emisión deI informe Técnico Favorable para la Importación de Naves para el Desguace",{"$f":"VLOOKUP(A29,'[1] Reporte mensual atenciones y q'!$A$4:$AB$165,27,FALSE)","v":0},0]
["MTOP-008-02-02","Emisión del Certificado de Aprobación del Sipe, Sistema Integrado de Polución y Emergencia.",{"$f":"VLOOKUP(A30,'[1] Reporte mensual atenciones y q'!$A$4:$AB$165,27,FALSE)","v":0},0]
["MTOP-025-04-02","Emisión del Informe de Peritajes Marítimos de nave",{"$f":"VLOOKUP(A31,'[1] Reporte mensual atenciones y q'!$A$4:$AB$165,27,FALSE)","v":0},0]
["MTOP-007-01-01","Matriculación por Primera Vez de Operadores Portuarios de Pasajeros",{"$f":"VLOOKUP(A32,'[1] Reporte mensual atenciones y q'!$A$4:$AB$165,27,FALSE)","v":0},0]
["MTOP-014-02-04","MTOP-014-02-04 Actualización de Matrículas de Agencias Navieras por Extención a otro Puerto para Tráfico Nacional",{"$f":"VLOOKUP(A33,'[1] Reporte mensual atenciones y q'!$A$4:$AB$165,27,FALSE)","v":0},0]
["MTOP-014-02-05","MTOP-014-02-05 Inactivación de Matrícula de Agencia Naviera para Tráfico Nacional",{"$f":"VLOOKUP(A34,'[1] Reporte mensual atenciones y q'!$A$4:$AB$165,27,FALSE)","v":0},0]
["MTOP-007-01-02","Renovación Matrícula de Operadores Portuarios de Pasajeros",{"$f":"VLOOKUP(A35,'[1] Reporte mensual atenciones y q'!$A$4:$AB$165,27,FALSE)","v":0},0]
["MTOP-007-03-07","Revocación de Matrícula de Operadores Portuarios de Buque",{"$f":"VLOOKUP(A36,'[1] Reporte mensual atenciones y q'!$A$4:$AB$165,27,FALSE)","v":0},0]
["MTOP-007-01-07","Revocación de Matrícula de Operadores Portuarios de Pasajeros",{"$f":"VLOOKUP(A37,'[1] Reporte mensual atenciones y q'!$A$4:$AB$165,27,FALSE)","v":0},0]
["MTOP-007-04-04","Actualización de Representante Legal de Operadores Portuarios de Carga",{"$f":"VLOOKUP(A38,'[1] Reporte mensual atenciones y q'!$A$4:$AB$165,27,FALSE)","v":1},3]
["MTOP-033-01-01","Aprobación del Diseño Definitivo de la Nave por Modificación (DENTRO DEL PERIMETRO URBANO)",{"$f":"VLOOKUP(A39,'[1] Reporte mensual atenciones y q'!$A$4:$AB$165,27,FALSE)","v":1},3]
["MTOP-033-01-02","Aprobación del Diseño Definitivo de la Nave por Modificación (FUERA DEL PERIMETRO URBANO)",{"$f":"VLOOKUP(A40,'[1] Reporte mensual atenciones y q'!$A$4:$AB$165,27,FALSE)","v":1},3]
["MTOP-033-01-03","Aprobación del Diseño Definitivo de la Nave por Modificación (GALAPAGOS ESMERALDAS AMAZONIA)",{"$f":"VLOOKUP(A41,'[1] Reporte mensual atenciones y q'!$A$4:$AB$165,27,FALSE)","v":1},3]
["MTOP-005-01-03","Autorización del Traspaso de la Ocupación",{"$f":"VLOOKUP(A42,'[1] Reporte mensual atenciones y q'!$A$4:$AB$165,27,FALSE)","v":1},3]
["MTOP-002-04-04","Inactivación de Matrícula de Armadores Naves Menores a 50 TRB",{"$f":"VLOOKUP(A43,'[1] Reporte mensual atenciones y q'!$A$4:$AB$165,27,FALSE)","v":1},3]
["MTOP-014-01-03","MTOP-014-01-03 Actualización de Matrículas de Agencias Navieras por Cambio de Representante Legal para Tráfico Internacional",{"$f":"VLOOKUP(A44,'[1] Reporte mensual atenciones y q'!$A$4:$AB$165,27,FALSE)","v":1},3]
["MTOP-014-02-02","MTOP-014-02-02 Renovación de la Matrícula de Agencias Navieras para Tráfico Nacional",{"$f":"VLOOKUP(A45,'[1] Reporte mensual atenciones y q'!$A$4:$AB$165,27,FALSE)","v":1},3]
["MTOP-011-01-01","Obtención de Certificado de No Interferencia con Otras Actividades Portuarias",{"$f":"VLOOKUP(A46,'[1] Reporte mensual atenciones y q'!$A$4:$AB$165,27,FALSE)","v":1},3]
["MTOP-007-04-07","Revocación de Matrícula de Operadores Portuarios de Carga",{"$f":"VLOOKUP(A47,'[1] Reporte mensual atenciones y q'!$A$4:$AB$165,27,FALSE)","v":1},3]
["MTOP-007-02-07","Revocación de Matrícula de Operadores Portuarios de Servicios Conexos",{"$f":"VLOOKUP(A48,'[1] Reporte mensual atenciones y q'!$A$4:$AB$165,27,FALSE)","v":1},3]
["MTOP-007-03-04","Actualización de Representante Legal de Operadores Portuarios de Buque",{"$f":"VLOOKUP(A49,'[1] Reporte mensual atenciones y q'!$A$4:$AB$165,27,FALSE)","v":2},3]
["MTOP-032-01-02","Aprobación del Diseño Definitivo de la Nave por Construcción (FUERA DEL PERIMETRO URBANO)",{"$f":"VLOOKUP(A50,'[1] Reporte mensual atenciones y q'!$A$4:$AB$165,27,FALSE)","v":2},3]
["MTOP-021-01-06","Emisión de la Autorización para facturar con tarifa 0% IVA por la construcción, mantenimiento y reparación de naves como beneficiario de la LEFORTAAC",{"$f":"VLOOKUP(A51,'[1] Reporte mensual atenciones y q'!$A$4:$AB$165,27,FALSE)","v":2},3]
["MTOP-027-04-02","Emisión de Resolución de Cancelación de Patente de Navegación",{"$f":"VLOOKUP(A52,'[1] Reporte mensual atenciones y q'!$A$4:$AB$165,27,FALSE)","v":2},3]
["MTOP-014-02-01","MTOP-014-02-01 Matriculación de Agencias Navieras por Primera Vez para Tráfico Nacional",{"$f":"VLOOKUP(A53,'[1] Reporte mensual atenciones y q'!$A$4:$AB$165,27,FALSE)","v":2},3]
["MTOP-014-02-03","MTOP-014-02-03 Actualización de Matrículas de Agencias Navieras por Cambio de Representante Legal para Tráfico Nacional",{"$f":"VLOOKUP(A54,'[1] Reporte mensual atenciones y q'!$A$4:$AB$165,27,FALSE)","v":2},3]
["MTOP-007-02-05","Actualización de datos de Matrícula de Operadores Portuarios de Servicios Conexos",{"$f":"VLOOKUP(A55,'[1] Reporte mensual atenciones y q'!$A$4:$AB$165,27,FALSE)","v":3},3]
["MTOP-007-04-03","Ampliación de Servicios de Operadores Portuarios de Carga",{"$f":"VLOOKUP(A56,'[1] Reporte mensual atenciones y q'!$A$4:$AB$165,27,FALSE)","v":3},3]
["MTOP-035-01-03","Aprobación de planos por Nacionalización (GALAPAGOS ESMERALDAS AMAZONIA)",{"$f":"VLOOKUP(A57,'[1] Reporte mensual atenciones y q'!$A$4:$AB$165,27,FALSE)","v":3},3]
["MTOP-015-02-03","Autorización de Entrenamiento para los Aspirantes a Capitanes de Amarre y Control de Carga",{"$f":"VLOOKUP(A58,'[1] Reporte mensual atenciones y q'!$A$4:$AB$165,27,FALSE)","v":3},3]
["MTOP-012-01-03","Certificación de Aprobación de la Evaluación de protección de instalación portuaria",{"$f":"VLOOKUP(A59,'[1] Reporte mensual atenciones y q'!$A$4:$AB$165,27,FALSE)","v":3},3]
["MTOP-012-01-04","Certificación de Aprobacion del Plan de proteccion de instalacion portuaria",{"$f":"VLOOKUP(A60,'[1] Reporte mensual atenciones y q'!$A$4:$AB$165,27,FALSE)","v":3},3]
["MTOP-015-02-04","Certificación de Títulos de Capitanes de Amarre y Control de Carga",{"$f":"VLOOKUP(A61,'[1] Reporte mensual atenciones y q'!$A$4:$AB$165,27,FALSE)","v":3},3]
["MTOP-027-05-01","Emisión de Registro de Sociedad Clasificadora",{"$f":"VLOOKUP(A62,'[1] Reporte mensual atenciones y q'!$A$4:$AB$165,27,FALSE)","v":3},3]
["MTOP-014-01-05","MTOP-014-01-05 Inactivación de Matrícula de Agencia Naviera para Tráfico Internacional",{"$f":"VLOOKUP(A63,'[1] Reporte mensual atenciones y q'!$A$4:$AB$165,27,FALSE)","v":3},3]
["MTOP-007-04-06","Actualización de Registros de Operadores Portuarios de Carga",{"$f":"VLOOKUP(A64,'[1] Reporte mensual atenciones y q'!$A$4:$AB$165,27,FALSE)","v":4},3]
["MTOP-005-01-02","Actualización y/o Modificación del Permiso de Ocupación",{"$f":"VLOOKUP(A65,'[1] Reporte mensual atenciones y q'!$A$4:$AB$165,27,FALSE)","v":4},3]
["MTOP-007-02-03","Ampliación de Servicios de Operadores Portuarios de Servicios Conexos",{"$f":"VLOOKUP(A66,'[1] Reporte mensual atenciones y q'!$A$4:$AB$165,27,FALSE)","v":4},3]
["MTOP-010-02-03","Autorización de Desguace de Naves de Bandera Nacional o Extranjeras",{"$f":"VLOOKUP(A67,'[1] Reporte mensual atenciones y q'!$A$4:$AB$165,27,FALSE)","v":4},3]
["MTOP-020-03-01","Autorización de Trayectoria Interna de Embarcaciones entre Puertos Nacionales",{"$f":"VLOOKUP(A68,'[1] Reporte mensual atenciones y q'!$A$4:$AB$165,27,FALSE)","v":4},3]
["MTOP-004-02-03","Emisión de Permiso de Operación a Estación de Servicios de Balsas Salvavidas Inflables",{"$f":"VLOOKUP(A69,'[1] Reporte mensual atenciones y q'!$A$4:$AB$165,27,FALSE)","v":4},3]
["MTOP-014-01-04","MTOP-014-01-04 Actualización de Matrículas de Agencias Navieras por Extención a otro Puertopara Tráfico Internacional",{"$f":"VLOOKUP(A70,'[1] Reporte mensual atenciones y q'!$A$4:$AB$165,27,FALSE)","v":4},3]
["MTOP-010-02-04","Autorización a Buques De Bandera Nacional e Internacional Para Realizar Viajes Extraordinarios Para Puertos Internacionales",{"$f":"VLOOKUP(A71,'[1] Reporte mensual atenciones y q'!$A$4:$AB$165,27,FALSE)","v":5},3]
["MTOP-004-01-01","Emisión de Permiso de Construcción, Operación, Modificación y/o Ampliación de Facilidades o Instalaciones Portuarias, Internacional",{"$f":"VLOOKUP(A72,'[1] Reporte mensual atenciones y q'!$A$4:$AB$165,27,FALSE)","v":5},3]
["MTOP-004-02-02","Emisión de Permiso de Operación a Estación de Servicios de Extintores",{"$f":"VLOOKUP(A73,'[1] Reporte mensual atenciones y q'!$A$4:$AB$165,27,FALSE)","v":5},3]
["MTOP-033-02-01","Emisión de Licencia de Modificación y Aprobación de Planos Preliminares de la Nave",{"$f":"VLOOKUP(A74,'[1] Reporte mensual atenciones y q'!$A$4:$AB$165,27,FALSE)","v":6},3]
["MTOP-022-02-01","Emisión del Certificado de Seguridad para Buques de Carga.",{"$f":"VLOOKUP(A75,'[1] Reporte mensual atenciones y q'!$A$4:$AB$165,27,FALSE)","v":6},3]
["MTOP-002-01-04","Inactivación de Matrícula de Armadores Naves Mayores a 50 TRB",{"$f":"VLOOKUP(A76,'[1] Reporte mensual atenciones y q'!$A$4:$AB$165,27,FALSE)","v":7},3]
["MTOP-021-04-01","Verificación cuatrimestral de naves y bienes importados al amparo de la LEFORTAAC",{"$f":"VLOOKUP(A77,'[1] Reporte mensual atenciones y q'!$A$4:$AB$165,27,FALSE)","v":7},3]
["MTOP-034-01-03","Aprobación de planos por Legalización de la Construcción (GALAPAGOS ESMERALDAS AMAZONIA)",{"$f":"VLOOKUP(A78,'[1] Reporte mensual atenciones y q'!$A$4:$AB$165,27,FALSE)","v":9},3]
["MTOP-035-01-01","Aprobación de planos por Nacionalización (DENTRO DEL PERIMETRO URBANO)",{"$f":"VLOOKUP(A79,'[1] Reporte mensual atenciones y q'!$A$4:$AB$165,27,FALSE)","v":9},3]
["MTOP-032-01-01","Aprobación del Diseño Definitivo de la Nave por Construcción (DENTRO DEL PERIMETRO URBANO)",{"$f":"VLOOKUP(A80,'[1] Reporte mensual atenciones y q'!$A$4:$AB$165,27,FALSE)","v":9},3]
["MTOP-019-01-04","Emisión de Autorización de Asignación de Muelles para Desguace",{"$f":"VLOOKUP(A81,'[1] Reporte mensual atenciones y q'!$A$4:$AB$165,27,FALSE)","v":9},3]
["MTOP-006-01-03","Emisión de Permiso de Comercialización de Dispersantes para el Control del Derrame de Hidrocarburos",{"$f":"VLOOKUP(A82,'[1] Reporte mensual atenciones y q'!$A$4:$AB$165,27,FALSE)","v":9},3]
["MTOP-007-03-01","Matriculación por Primera Vez de Operadores Portuarios de Buque",{"$f":"VLOOKUP(A83,'[1] Reporte mensual atenciones y q'!$A$4:$AB$165,27,FALSE)","v":9},3]
["MTOP-014-01-01","MTOP-014-01-01 Matriculación de Agencias Navieras por Primera Vez para Tráfico Internacional",{"$f":"VLOOKUP(A84,'[1] Reporte mensual atenciones y q'!$A$4:$AB$165,27,FALSE)","v":9},3]
["MTOP-007-03-06","Actualización de Registros de Operadores Portuarios de Buque",{"$f":"VLOOKUP(A85,'[1] Reporte mensual atenciones y q'!$A$4:$AB$165,27,FALSE)","v":10},6]
["MTOP-017-01-12","Aprobación de plano de capacidad de combustible (GALAPAGOS ESMERALDAS AMAZONIA)",{"$f":"VLOOKUP(A86,'[1] Reporte mensual atenciones y q'!$A$4:$AB$165,27,FALSE)","v":10},6]
["MTOP-015-02-02","Certificación de Títulos de Prácticos",{"$f":"VLOOKUP(A87,'[1] Reporte mensual atenciones y q'!$A$4:$AB$165,27,FALSE)","v":10},6]
["MTOP-019-01-03","Emisión de Autorización de Asignación de Muelle para embarcaciones remolcadas",{"$f":"VLOOKUP(A88,'[1] Reporte mensual atenciones y q'!$A$4:$AB$165,27,FALSE)","v":10},6]
["MTOP-021-01-02","Emisión de la Autorización de importación de naves como beneficiario de la LEFORTAAC",{"$f":"VLOOKUP(A89,'[1] Reporte mensual atenciones y q'!$A$4:$AB$165,27,FALSE)","v":10},6]
["MTOP-036-01-02","Emisión de Registro Definitivo De Consolidadores Y Desconsolidadores De Carga",{"$f":"VLOOKUP(A90,'[1] Reporte mensual atenciones y q'!$A$4:$AB$165,27,FALSE)","v":10},6]
["MTOP-031-01-01","Emisión del Certificado de Declaración de Cumplimiento CAP para Buques de Transporte de Hidrocarburos mayores a 15 años de construccion",{"$f":"VLOOKUP(A91,'[1] Reporte mensual atenciones y q'!$A$4:$AB$165,27,FALSE)","v":10},6]
["MTOP-004-02-01","Emisión de Permiso de Operación a Astilleros, Parrillas, Varaderos y Factorías Navales",{"$f":"VLOOKUP(A92,'[1] Reporte mensual atenciones y q'!$A$4:$AB$165,27,FALSE)","v":11},6]
["MTOP-007-03-02","Renovación Matrícula de Operadores Portuarios de Buque",{"$f":"VLOOKUP(A93,'[1] Reporte mensual atenciones y q'!$A$4:$AB$165,27,FALSE)","v":12},6]
["MTOP-017-02-03","Supervisión de Prueba de Estabilidad (GALAPAGOS ESMERALDAS AMAZONIA)",{"$f":"VLOOKUP(A94,'[1] Reporte mensual atenciones y q'!$A$4:$AB$165,27,FALSE)","v":12},6]
["MTOP-021-03-01","Emisión de la Calificación y registro de personas naturales o jurídicas como beneficiario de la LEFORTAAC",{"$f":"VLOOKUP(A95,'[1] Reporte mensual atenciones y q'!$A$4:$AB$165,27,FALSE)","v":13},6]
["MTOP-004-01-02","Emisión de Permiso de Construcción, Operación, Modificación y/o Ampliación de Facilidades o Instalaciones Portuarias, Cabotaje",{"$f":"VLOOKUP(A96,'[1] Reporte mensual atenciones y q'!$A$4:$AB$165,27,FALSE)","v":13},6]
["MTOP-034-02-03","Aprobación de planos por Legalización de la Modificación(GALAPAGOS ESMERALDAS AMAZONIA)",{"$f":"VLOOKUP(A97,'[1] Reporte mensual atenciones y q'!$A$4:$AB$165,27,FALSE)","v":14},6]
["MTOP-009-02-04","Autorización de la Exoneración Total o Parcial del Pago de las Tarifas Portuarias a Buques y/o Carga",{"$f":"VLOOKUP(A98,'[1] Reporte mensual atenciones y q'!$A$4:$AB$165,27,FALSE)","v":14},6]
["MTOP-012-01-02","Obtención de Asistencia Técnica en la Ejecución de Ejercicios de Protección marítima realizados por las instalaciones portuarias certificadas bajo el código P.B.I.P. (Código de Protección Internacional Portuaria)",{"$f":"VLOOKUP(A99,'[1] Reporte mensual atenciones y q'!$A$4:$AB$165,27,FALSE)","v":14},6]
["MTOP-002-04-03","Actualización de Armadores por Inclusión o Exclusión de una Nave Menores a 50 TRB",{"$f":"VLOOKUP(A100,'[1] Reporte mensual atenciones y q'!$A$4:$AB$165,27,FALSE)","v":15},6]
["MTOP-034-02-01","Aprobación de planos por Legalización de la Modificación (DENTRO DEL PERIMETRO URBANO)",{"$f":"VLOOKUP(A101,'[1] Reporte mensual atenciones y q'!$A$4:$AB$165,27,FALSE)","v":15},6]
["MTOP-023-05-01","Emisión del Pasavante de Navegación",{"$f":"VLOOKUP(A102,'[1] Reporte mensual atenciones y q'!$A$4:$AB$165,27,FALSE)","v":15},6]
["MTOP-007-04-01","Matriculación por Primera Vez de Operadores Portuarios de Carga",{"$f":"VLOOKUP(A103,'[1] Reporte mensual atenciones y q'!$A$4:$AB$165,27,FALSE)","v":15},6]
["MTOP-007-02-06","Actualización de Registros de Operadores Portuarios de Servicios Conexos",{"$f":"VLOOKUP(A104,'[1] Reporte mensual atenciones y q'!$A$4:$AB$165,27,FALSE)","v":16},6]
["MTOP-035-01-02","Aprobación de planos por Nacionalización (FUERA DEL PERIMETRO URBANO)",{"$f":"VLOOKUP(A105,'[1] Reporte mensual atenciones y q'!$A$4:$AB$165,27,FALSE)","v":16},6]
["MTOP-005-01-01","Autorización de Ocupación Pago de nueva concesión de zona de playas y bahías",{"$f":"VLOOKUP(A106,'[1] Reporte mensual atenciones y q'!$A$4:$AB$165,27,FALSE)","v":16},6]
["MTOP-015-02-01","Autorización de Entrenamiento para los Aspirantes a Prácticos",{"$f":"VLOOKUP(A107,'[1] Reporte mensual atenciones y q'!$A$4:$AB$165,27,FALSE)","v":17},6]
["MTOP-012-01-01","Certificación y Recertificación de una Instalación Portuaria bajo el Código de Protección de Buques y de Instalaciones Portuarias",{"$f":"VLOOKUP(A108,'[1] Reporte mensual atenciones y q'!$A$4:$AB$165,27,FALSE)","v":18},6]
["MTOP-023-04-02","Emisión del Informe Técnico Favorable para la Importación por Internación Temporal de Buques Bajo Contrato de Asociación, Fletamento, Fletamento a Casco Desnudo, Arriendo, Etc.",{"$f":"VLOOKUP(A109,'[1] Reporte mensual atenciones y q'!$A$4:$AB$165,27,FALSE)","v":18},6]
["MTOP-007-04-02","Renovación Matrícula de Operadores Portuarios de Carga",{"$f":"VLOOKUP(A110,'[1] Reporte mensual atenciones y q'!$A$4:$AB$165,27,FALSE)","v":18},6]
["MTOP-010-02-01","Autorización de Rutas, Horarios e Itinerarios de los Servicios Públicos del Transporte Fluvial interno y al exterior",{"$f":"VLOOKUP(A111,'[1] Reporte mensual atenciones y q'!$A$4:$AB$165,27,FALSE)","v":19},6]
["MTOP-021-02-01","Emisión de la autorización de importación de bienes como beneficiario de la LEFORTAAC",{"$f":"VLOOKUP(A112,'[1] Reporte mensual atenciones y q'!$A$4:$AB$165,27,FALSE)","v":19},6]
["MTOP-010-02-05","Autorización Excepcional de Prestación de Servicios de cabotaje de hidrocarburos, carga, pasaje y valijas postales",{"$f":"VLOOKUP(A113,'[1] Reporte mensual atenciones y q'!$A$4:$AB$165,27,FALSE)","v":20},6]
["MTOP-036-01-01","Emisión de Registro Provisional De Consolidadores Y Desconsolidadores De Carga",{"$f":"VLOOKUP(A114,'[1] Reporte mensual atenciones y q'!$A$4:$AB$165,27,FALSE)","v":20},6]
["MTOP-029-02-01","Emisión del Certificado de Aprobación del Cuadro de Zafarrancho del Buque",{"$f":"VLOOKUP(A115,'[1] Reporte mensual atenciones y q'!$A$4:$AB$165,27,FALSE)","v":21},6]
["MTOP-022-02-02","Emisión del Endoso Anual del Certificado de Seguridad para Buques de Carga.",{"$f":"VLOOKUP(A116,'[1] Reporte mensual atenciones y q'!$A$4:$AB$165,27,FALSE)","v":21},6]
["MTOP-030-01-01","Emisión del Certificado Internacional de Prevención de la Contaminación por Hidrocarburos, IOPP",{"$f":"VLOOKUP(A117,'[1] Reporte mensual atenciones y q'!$A$4:$AB$165,27,FALSE)","v":22},6]
["MTOP-010-02-08","Autorización de Rutas, Horarios e Itinerarios de los Servicios Públicos del Transporte Marítimo",{"$f":"VLOOKUP(A118,'[1] Reporte mensual atenciones y q'!$A$4:$AB$165,27,FALSE)","v":24},6]
["MTOP-031-02-01","Emisión del Certificado De Seguro U Otra Garantía Financiera Relativo A La Responsabilidad Civil Por Daños Causados Por La Contaminación De Las Aguas Del Mar Por Hidrocarburos",{"$f":"VLOOKUP(A119,'[1] Reporte mensual atenciones y q'!$A$4:$AB$165,27,FALSE)","v":24},6]
["MTOP-034-01-01","Aprobación de planos por Legalización de la Construcción (DENTRO DEL PERIMETRO URBANO)",{"$f":"VLOOKUP(A120,'[1] Reporte mensual atenciones y q'!$A$4:$AB$165,27,FALSE)","v":25},6]
["MTOP-034-01-02","Aprobación de planos por Legalización de la Construcción (FUERA DEL PERIMETRO URBANO)",{"$f":"VLOOKUP(A121,'[1] Reporte mensual atenciones y q'!$A$4:$AB$165,27,FALSE)","v":25},6]
["MTOP-032-02-01","Otorgamiento de Licencia de Construcción y Aprobación de Planos Preliminares de la Nave",{"$f":"VLOOKUP(A122,'[1] Reporte mensual atenciones y q'!$A$4:$AB$165,27,FALSE)","v":25},6]
["MTOP-029-01-01","Emisión del Certificado de Aprobación de Planos de Seguridad y Contraincendios",{"$f":"VLOOKUP(A123,'[1] Reporte mensual atenciones y q'!$A$4:$AB$165,27,FALSE)","v":35},6]
["MTOP-030-02-01","Emisión del Certificado de Prevención a la Contaminacón por Aguas Sucias",{"$f":"VLOOKUP(A124,'[1] Reporte mensual atenciones y q'!$A$4:$AB$165,27,FALSE)","v":35},6]
["MTOP-002-01-03","Actualización de Matrícula de Armadores por Cambio de Representante Legal Naves Mayores a 50 TRB",{"$f":"VLOOKUP(A125,'[1] Reporte mensual atenciones y q'!$A$4:$AB$165,27,FALSE)","v":38},10]
["MTOP-023-04-01","Emisión del Informe Técnico Favorable para la Importación por Nacionalización de Naves",{"$f":"VLOOKUP(A126,'[1] Reporte mensual atenciones y q'!$A$4:$AB$165,27,FALSE)","v":39},10]
["MTOP-010-01-02","Emisión de Registro de Contrato de de naves de Bandera Nacional",{"$f":"VLOOKUP(A127,'[1] Reporte mensual atenciones y q'!$A$4:$AB$165,27,FALSE)","v":41},10]
["MTOP-007-02-02","Renovación Matrícula de Operadores Portuarios de Servicios Conexos",{"$f":"VLOOKUP(A128,'[1] Reporte mensual atenciones y q'!$A$4:$AB$165,27,FALSE)","v":41},10]
["MTOP-017-02-01","Supervisión de Prueba de Estabilidad (DENTRO DEL PERIMETRO URBANO)",{"$f":"VLOOKUP(A129,'[1] Reporte mensual atenciones y q'!$A$4:$AB$165,27,FALSE)","v":41},10]
["MTOP-007-02-01","Matriculación por Primera Vez de Operadores Portuarios de Servicios Conexos",{"$f":"VLOOKUP(A130,'[1] Reporte mensual atenciones y q'!$A$4:$AB$165,27,FALSE)","v":46},10]
["MTOP-017-02-02","Supervisión de Prueba de Estabilidad (FUERA DEL PERIMETRO URBANO)",{"$f":"VLOOKUP(A131,'[1] Reporte mensual atenciones y q'!$A$4:$AB$165,27,FALSE)","v":46},10]
["MTOP-017-01-10","Aprobación de plano de capacidad de combustible (DENTRO DEL PERIMETRO URBANO)",{"$f":"VLOOKUP(A132,'[1] Reporte mensual atenciones y q'!$A$4:$AB$165,27,FALSE)","v":49},10]
["MTOP-028-01-01","Emisión del Certificado de Estado Rector del Puerto para naves de bandera extranjera que operen bajo internación temporal y fletamento a casco desnudo",{"$f":"VLOOKUP(A133,'[1] Reporte mensual atenciones y q'!$A$4:$AB$165,27,FALSE)","v":50},10]
["MTOP-014-01-02","MTOP-014-01-02 Renovación de la Matrícula de Agencias Navieras para Tráfico Internacional",{"$f":"VLOOKUP(A134,'[1] Reporte mensual atenciones y q'!$A$4:$AB$165,27,FALSE)","v":51},10]
["MTOP-002-01-01","Matriculación de Armadores Por Primera Vez Naves Mayores a 50 TRB",{"$f":"VLOOKUP(A135,'[1] Reporte mensual atenciones y q'!$A$4:$AB$165,27,FALSE)","v":55},10]
["MTOP-025-05-01","Emisión del certificado de Obra Viva",{"$f":"VLOOKUP(A136,'[1] Reporte mensual atenciones y q'!$A$4:$AB$165,27,FALSE)","v":60},10]
["MTOP-034-02-02","Aprobación de planos por Legalización de la Modificación (FUERA DEL PERIMETRO URBANO)",{"$f":"VLOOKUP(A137,'[1] Reporte mensual atenciones y q'!$A$4:$AB$165,27,FALSE)","v":63},10]
["MTOP-028-02-01","Emisión del Certificado de Inspección de Estado Rector de Puerto a naves de bandera extranjera que ingresan al país en tránsito (dejan carga y retiran carga de puertos del país)",{"$f":"VLOOKUP(A138,'[1] Reporte mensual atenciones y q'!$A$4:$AB$165,27,FALSE)","v":66},10]
["MTOP-002-04-02","Renovación de Matrícula de Armadores Naves Menores a 50 TRB",{"$f":"VLOOKUP(A139,'[1] Reporte mensual atenciones y q'!$A$4:$AB$165,27,FALSE)","v":66},10]
["MTOP-005-01-05","Delimitación y/o Demarcación de Zonas de Playas y Bahías",{"$f":"VLOOKUP(A140,'[1] Reporte mensual atenciones y q'!$A$4:$AB$165,27,FALSE)","v":80},10]
["MTOP-027-01-06","Emisión del Certificado Internacional de arqueo",{"$f":"VLOOKUP(A141,'[1] Reporte mensual atenciones y q'!$A$4:$AB$165,27,FALSE)","v":82},10]
["MTOP-027-02-01","Emisión del certificado internacional de líneas de carga",{"$f":"VLOOKUP(A142,'[1] Reporte mensual atenciones y q'!$A$4:$AB$165,27,FALSE)","v":85},10]
["MTOP-013-02-02","Emisión de Certificado de Operación Especial para Vehículos Mayores a 60 Ton",{"$f":"VLOOKUP(A143,'[1] Reporte mensual atenciones y q'!$A$4:$AB$165,27,FALSE)","v":99},10]
["MTOP-017-02-04","Aprobación de Libreto de Estabilidad de la nave",{"$f":"VLOOKUP(A144,'[1] Reporte mensual atenciones y q'!$A$4:$AB$165,27,FALSE)","v":101},10]
["MTOP-010-01-01","Emisión de Registro de Tarifas y Recargos de Fletes Internacionales",{"$f":"VLOOKUP(A145,'[1] Reporte mensual atenciones y q'!$A$4:$AB$165,27,FALSE)","v":101},10]
["MTOP-017-01-11","Aprobación de planos de capacidad de combustible (FUERA DEL PERIMETRO URBANO)",{"$f":"VLOOKUP(A146,'[1] Reporte mensual atenciones y q'!$A$4:$AB$165,27,FALSE)","v":102},10]
["MTOP-002-04-01","Matriculación de Armadores Por Primera Vez Naves Menores a 50 TRB",{"$f":"VLOOKUP(A147,'[1] Reporte mensual atenciones y q'!$A$4:$AB$165,27,FALSE)","v":107},10]
["MTOP-025-04-01","Realización de la Inspección para determinar el Avalúo de las naves",{"$f":"VLOOKUP(A148,'[1] Reporte mensual atenciones y q'!$A$4:$AB$165,27,FALSE)","v":126},10]
["MTOP-019-01-05","Emisión de Autorización de Asignación de Muelles para Mantenimiento y/o Reparación",{"$f":"VLOOKUP(A149,'[1] Reporte mensual atenciones y q'!$A$4:$AB$165,27,FALSE)","v":131},10]
["MTOP-027-01-02","Emisión del Certificado Nacional de arqueo",{"$f":"VLOOKUP(A150,'[1] Reporte mensual atenciones y q'!$A$4:$AB$165,27,FALSE)","v":139},10]
["MTOP-005-01-08","Emisión de Matrícula Concesión de Zona de Playas y Bahías (Anual)",{"$f":"VLOOKUP(A151,'[1] Reporte mensual atenciones y q'!$A$4:$AB$165,27,FALSE)","v":168},10]
["MTOP-027-03-01","Emisión del Permiso de Vare y Desvare",{"$f":"VLOOKUP(A152,'[1] Reporte mensual atenciones y q'!$A$4:$AB$165,27,FALSE)","v":172},10]
["MTOP-020-01-01","Emisión de Permisos de Tráfico Marítimo y Fluvial para naves nacionales y extranjeras",{"$f":"VLOOKUP(A153,'[1] Reporte mensual atenciones y q'!$A$4:$AB$165,27,FALSE)","v":261},10]
["MTOP-013-02-01","Emisión de Certificado de Operación Especial para Vehículos entre 48 - 60 Toneladas",{"$f":"VLOOKUP(A154,'[1] Reporte mensual atenciones y q'!$A$4:$AB$165,27,FALSE)","v":311},10]
["MTOP-002-01-02","Renovación de Matrícula de Armadores Naves Mayores a 50 TRB",{"$f":"VLOOKUP(A155,'[1] Reporte mensual atenciones y q'!$A$4:$AB$165,27,FALSE)","v":339},10]
["MTOP-001-01-01","Matriculación de equipo caminero y maquinaria pesada primera vez",{"$f":"VLOOKUP(A156,'[1] Reporte mensual atenciones y q'!$A$4:$AB$165,27,FALSE)","v":474},10]
["MTOP-019-01-01","Emisión de Autorización de Asignación de Muelle para Tráfico de Cabotaje",{"$f":"VLOOKUP(A157,'[1] Reporte mensual atenciones y q'!$A$4:$AB$165,27,FALSE)","v":562},10]
["MTOP-001-01-03","Renovación de matrícula por cambio de propietario del equipo caminero y la maquinaria pesada",{"$f":"VLOOKUP(A158,'[1] Reporte mensual atenciones y q'!$A$4:$AB$165,27,FALSE)","v":613},10]
["MTOP-013-03-01","Autorización de Importación",{"$f":"VLOOKUP(A159,'[1] Reporte mensual atenciones y q'!$A$4:$AB$165,27,FALSE)","v":735},10]
["MTOP-019-01-02","Emisión de Autorización de Asignación de Muelle para Tráfico Internacional",{"$f":"VLOOKUP(A160,'[1] Reporte mensual atenciones y q'!$A$4:$AB$165,27,FALSE)","v":1450},10]
["MTOP-009-02-01","Autorización de Transporte de Carga Peligrosa a la Provincia insular de Galápagos y Viceversa",{"$f":"VLOOKUP(A161,'[1] Reporte mensual atenciones y q'!$A$4:$AB$165,27,FALSE)","v":1550},10]
["MTOP-015-01-03","Matriculación de Personal Marítimo Portuario",{"$f":"VLOOKUP(A162,'[1] Reporte mensual atenciones y q'!$A$4:$AB$165,27,FALSE)","v":1685},10]
["MTOP-009-02-05","Obtención de Permisos Especiales de Ingreso a Instalaciones Portuarias",{"$f":"VLOOKUP(A163,'[1] Reporte mensual atenciones y q'!$A$4:$AB$165,27,FALSE)","v":2993},10]
["MTOP-001-01-02","Renovación de matrícula de equipo caminero y maquinaria pesada",{"$f":"VLOOKUP(A164,'[1] Reporte mensual atenciones y q'!$A$4:$AB$165,27,FALSE)","v":12199},10]
["MTOP-001-01-05","Certificación de la propiedad, gravámenes, arrendamiento mercantil y venta con reserva de dominio",{"$f":"VLOOKUP(A165,'[1] Reporte mensual atenciones y q'!$A$4:$AB$165,27,FALSE)","v":12281},10]
["MTOP-013-01-01","Emisión de Certificado de Operación Regular",{"$f":"VLOOKUP(A166,'[1] Reporte mensual atenciones y q'!$A$4:$AB$165,27,FALSE)","v":37904},10]

{"sheet":"VOLUMEN DE QUEJAS","index":2,"n_rows":166,"n_cols":6,"rows_kept":166,"cut":false,"hidden":false,"merged":[[0,0,0,5],[1,0,1,5]]}
["PRIORIZACIÓN DE TRÁMITES ADMINISTRATIVOS"]
["VOLUMEN DE QUEJAS"]
[]
["IDENTIFICADOR","TRÁMITE","VOLUMEN DEMANDA","VOLUMEN DE QUEJAS","PORCENTAJE","PUNTUACIÓN"]
["MTOP-007-03-05","Actualización de datos de Matrícula de Operadores Portuarios de Buque",0,{"$f":"VLOOKUP(A5,'[1] Reporte mensual atenciones y q'!$A$4:$AB$165,28,FALSE)","v":0},0,0]
["MTOP-007-04-05","Actualización de datos de Matrícula de Operadores Portuarios de Carga",0,{"$f":"VLOOKUP(A6,'[1] Reporte mensual atenciones y q'!$A$4:$AB$165,28,FALSE)","v":0},0,0]
["MTOP-007-01-05","Actualización de datos de Matrícula de Operadores Portuarios de Pasajeros",0,{"$f":"VLOOKUP(A7,'[1] Reporte mensual atenciones y q'!$A$4:$AB$165,28,FALSE)","v":0},0,0]
["MTOP-007-01-06","Actualización de Registros de Operadores Portuarios de Pasajeros",0,{"$f":"VLOOKUP(A8,'[1] Reporte mensual atenciones y q'!$A$4:$AB$165,28,FALSE)","v":0},0,0]
["MTOP-007-01-04","Actualización de Representante Legal de Operadores Portuarios de Pasajeros",0,{"$f":"VLOOKUP(A9,'[1] Reporte mensual atenciones y q'!$A$4:$AB$165,28,FALSE)","v":0},0,0]
["MTOP-007-02-04","Actualización de Representante Legal de Operadores Portuarios de Servicios Conexos",0,{"$f":"VLOOKUP(A10,'[1] Reporte mensual atenciones y q'!$A$4:$AB$165,28,FALSE)","v":0},0,0]
["MTOP-007-03-03","Ampliación de Servicios de Operadores Portuarios de Buque",0,{"$f":"VLOOKUP(A11,'[1] Reporte mensual atenciones y q'!$A$4:$AB$165,28,FALSE)","v":0},0,0]
["MTOP-007-01-03","Ampliación de Servicios de Operadores Portuarios de Pasajeros",0,{"$f":"VLOOKUP(A12,'[1] Reporte mensual atenciones y q'!$A$4:$AB$165,28,FALSE)","v":0},0,0]
["MTOP-006-01-04","Aprobación de Plan de Contingencia Zonal para Control de Derrame por Hidrocarburos o Productos Quimicos",0,{"$f":"VLOOKUP(A13,'[1] Reporte mensual atenciones y q'!$A$4:$AB$165,28,FALSE)","v":0},0,0]
["MTOP-035-02-01","Aprobación de Planos por Contrato de Fletamento, Arrendamiento, Asociación, Leasing, Fletamento a Casco Desnudo (DENTRO DEL PERIMETRO URBANO)",0,{"$f":"VLOOKUP(A14,'[1] Reporte mensual atenciones y q'!$A$4:$AB$165,28,FALSE)","v":0},0,0]
["MTOP-035-02-02","Aprobación de Planos por Contrato de Fletamento, Arrendamiento, Asociación, Leasing, Fletamento a Casco Desnudo (FUERA DEL PERIMETRO URBANO)",0,{"$f":"VLOOKUP(A15,'[1] Reporte mensual atenciones y q'!$A$4:$AB$165,28,FALSE)","v":0},0,0]
["MTOP-035-02-03","Aprobación de Planos por Contrato de Fletamento, Arrendamiento, Asociación, Leasing, Fletamento a Casco Desnudo (GALAPAGOS ESMERALDAS AMAZONIA)",0,{"$f":"VLOOKUP(A16,'[1] Reporte mensual atenciones y q'!$A$4:$AB$165,28,FALSE)","v":0},0,0]
["MTOP-032-01-03","Aprobación del Diseño Definitivo de la Nave por Construcción (GALAPAGOS ESMERALDAS AMAZONIA)",0,{"$f":"VLOOKUP(A17,'[1] Reporte mensual atenciones y q'!$A$4:$AB$165,28,FALSE)","v":0},0,0]
["MTOP-009-02-06","Autorización de Fondeo en Terminales Petroleros",0,{"$f":"VLOOKUP(A18,'[1] Reporte mensual atenciones y q'!$A$4:$AB$165,28,FALSE)","v":0},0,0]
["MTOP-005-01-04","Autorización de la Derogatoria del Permiso de Ocupación",0,{"$f":"VLOOKUP(A19,'[1] Reporte mensual atenciones y q'!$A$4:$AB$165,28,FALSE)","v":0},0,0]
["MTOP-009-02-02","Autorización de Transporte de Carga Peligrosa en rutas nacionales",0,{"$f":"VLOOKUP(A20,'[1] Reporte mensual atenciones y q'!$A$4:$AB$165,28,FALSE)","v":0},0,0]
["MTOP-009-02-03","Autorización para Realizar Actividades No Comerciales en la Jurisdicción de un Puerto Comercial o Terminal Petrolera",0,{"$f":"VLOOKUP(A21,'[1] Reporte mensual atenciones y q'!$A$4:$AB$165,28,FALSE)","v":0},0,0]
["MTOP-006-01-02","Calificación de Empresas Proveedores de Equipos y Materiales para el Control de Derrame de Hidrocarburos",0,{"$f":"VLOOKUP(A22,'[1] Reporte mensual atenciones y q'!$A$4:$AB$165,28,FALSE)","v":0},0,0]
["MTOP-006-01-01","Calificación de Empresas que Prestan Servicios para el Control de Derrame de Hidrocarburos",0,{"$f":"VLOOKUP(A23,'[1] Reporte mensual atenciones y q'!$A$4:$AB$165,28,FALSE)","v":0},0,0]
["MTOP-001-01-04","Certificación de matrícula por perdida de equipo caminero y maquinaria pesada",0,{"$f":"VLOOKUP(A24,'[1] Reporte mensual atenciones y q'!$A$4:$AB$165,28,FALSE)","v":0},0,0]
["MTOP-012-01-05","Corrección al Plan de Protección de Instalaciones Portuarias",0,{"$f":"VLOOKUP(A25,'[1] Reporte mensual atenciones y q'!$A$4:$AB$165,28,FALSE)","v":0},0,0]
["MTOP-019-01-06","Emisión de Autorización de Asignación de Muelles para Desembarque/Embarque de Clase IMDG en Puerto Comercial y/o Terminales Privadas.",0,{"$f":"VLOOKUP(A26,'[1] Reporte mensual atenciones y q'!$A$4:$AB$165,28,FALSE)","v":0},0,0]
["MTOP-019-01-07","Emisión de Autorización de Desvío de cargas a otro puerto por fuerza mayor o eventos naturales",0,{"$f":"VLOOKUP(A27,'[1] Reporte mensual atenciones y q'!$A$4:$AB$165,28,FALSE)","v":0},0,0]
["MTOP-021-01-05","Emisión de la Autorización de importación de naves bajo el regimen de internación temporal para celebrar un contrato de fletamento a casco desnudo como beneficiario de la LEFORTAAC",0,{"$f":"VLOOKUP(A28,'[1] Reporte mensual atenciones y q'!$A$4:$AB$165,28,FALSE)","v":0},0,0]
["MTOP-023-04-03","Emisión deI informe Técnico Favorable para la Importación de Naves para el Desguace",0,{"$f":"VLOOKUP(A29,'[1] Reporte mensual atenciones y q'!$A$4:$AB$165,28,FALSE)","v":0},0,0]
["MTOP-008-02-02","Emisión del Certificado de Aprobación del Sipe, Sistema Integrado de Polución y Emergencia.",0,{"$f":"VLOOKUP(A30,'[1] Reporte mensual atenciones y q'!$A$4:$AB$165,28,FALSE)","v":0},0,0]
["MTOP-025-04-02","Emisión del Informe de Peritajes Marítimos de nave",0,{"$f":"VLOOKUP(A31,'[1] Reporte mensual atenciones y q'!$A$4:$AB$165,28,FALSE)","v":0},0,0]
["MTOP-007-01-01","Matriculación por Primera Vez de Operadores Portuarios de Pasajeros",0,{"$f":"VLOOKUP(A32,'[1] Reporte mensual atenciones y q'!$A$4:$AB$165,28,FALSE)","v":0},0,0]
["MTOP-014-02-04","MTOP-014-02-04 Actualización de Matrículas de Agencias Navieras por Extención a otro Puerto para Tráfico Nacional",0,{"$f":"VLOOKUP(A33,'[1] Reporte mensual atenciones y q'!$A$4:$AB$165,28,FALSE)","v":0},0,0]
["MTOP-014-02-05","MTOP-014-02-05 Inactivación de Matrícula de Agencia Naviera para Tráfico Nacional",0,{"$f":"VLOOKUP(A34,'[1] Reporte mensual atenciones y q'!$A$4:$AB$165,28,FALSE)","v":0},0,0]
["MTOP-007-01-02","Renovación Matrícula de Operadores Portuarios de Pasajeros",0,{"$f":"VLOOKUP(A35,'[1] Reporte mensual atenciones y q'!$A$4:$AB$165,28,FALSE)","v":0},0,0]
["MTOP-007-03-07","Revocación de Matrícula de Operadores Portuarios de Buque",0,{"$f":"VLOOKUP(A36,'[1] Reporte mensual atenciones y q'!$A$4:$AB$165,28,FALSE)","v":0},0,0]
["MTOP-007-01-07","Revocación de Matrícula de Operadores Portuarios de Pasajeros",0,{"$f":"VLOOKUP(A37,'[1] Reporte mensual atenciones y q'!$A$4:$AB$165,28,FALSE)","v":0},0,0]
["MTOP-007-04-04","Actualización de Representante Legal de Operadores Portuarios de Carga",1,{"$f":"VLOOKUP(A38,'[1] Reporte mensual atenciones y q'!$A$4:$AB$165,28,FALSE)","v":0},0,0]
["MTOP-033-01-01","Aprobación del Diseño Definitivo de la Nave por Modificación (DENTRO DEL PERIMETRO URBANO)",1,{"$f":"VLOOKUP(A39,'[1] Reporte mensual atenciones y q'!$A$4:$AB$165,28,FALSE)","v":0},0,0]
["MTOP-033-01-02","Aprobación del Diseño Definitivo de la Nave por Modificación (FUERA DEL PERIMETRO URBANO)",1,{"$f":"VLOOKUP(A40,'[1] Reporte mensual atenciones y q'!$A$4:$AB$165,28,FALSE)","v":0},0,0]
["MTOP-033-01-03","Aprobación del Diseño Definitivo de la Nave por Modificación (GALAPAGOS ESMERALDAS AMAZONIA)",1,{"$f":"VLOOKUP(A41,'[1] Reporte mensual atenciones y q'!$A$4:$AB$165,28,FALSE)","v":0},0,0]
["MTOP-005-01-03","Autorización del Traspaso de la Ocupación",1,{"$f":"VLOOKUP(A42,'[1] Reporte mensual atenciones y q'!$A$4:$AB$165,28,FALSE)","v":0},0,0]
["MTOP-002-04-04","Inactivación de Matrícula de Armadores Naves Menores a 50 TRB",1,{"$f":"VLOOKUP(A43,'[1] Reporte mensual atenciones y q'!$A$4:$AB$165,28,FALSE)","v":0},0,0]
["MTOP-014-01-03","MTOP-014-01-03 Actualización de Matrículas de Agencias Navieras por Cambio de Representante Legal para Tráfico Internacional",1,{"$f":"VLOOKUP(A44,'[1] Reporte mensual atenciones y q'!$A$4:$AB$165,28,FALSE)","v":0},0,0]
["MTOP-014-02-02","MTOP-014-02-02 Renovación de la Matrícula de Agencias Navieras para Tráfico Nacional",1,{"$f":"VLOOKUP(A45,'[1] Reporte mensual atenciones y q'!$A$4:$AB$165,28,FALSE)","v":0},0,0]
["MTOP-011-01-01","Obtención de Certificado de No Interferencia con Otras Actividades Portuarias",1,{"$f":"VLOOKUP(A46,'[1] Reporte mensual atenciones y q'!$A$4:$AB$165,28,FALSE)","v":0},0,0]
["MTOP-007-04-07","Revocación de Matrícula de Operadores Portuarios de Carga",1,{"$f":"VLOOKUP(A47,'[1] Reporte mensual atenciones y q'!$A$4:$AB$165,28,FALSE)","v":0},0,0]
["MTOP-007-02-07","Revocación de Matrícula de Operadores Portuarios de Servicios Conexos",1,{"$f":"VLOOKUP(A48,'[1] Reporte mensual atenciones y q'!$A$4:$AB$165,28,FALSE)","v":0},0,0]
["MTOP-007-03-04","Actualización de Representante Legal de Operadores Portuarios de Buque",2,{"$f":"VLOOKUP(A49,'[1] Reporte mensual atenciones y q'!$A$4:$AB$165,28,FALSE)","v":0},0,0]
["MTOP-032-01-02","Aprobación del Diseño Definitivo de la Nave por Construcción (FUERA DEL PERIMETRO URBANO)",2,{"$f":"VLOOKUP(A50,'[1] Reporte mensual atenciones y q'!$A$4:$AB$165,28,FALSE)","v":0},0,0]
["MTOP-021-01-06","Emisión de la Autorización para facturar con tarifa 0% IVA por la construcción, mantenimiento y reparación de naves como beneficiario de la LEFORTAAC",2,{"$f":"VLOOKUP(A51,'[1] Reporte mensual atenciones y q'!$A$4:$AB$165,28,FALSE)","v":0},0,0]
["MTOP-027-04-02","Emisión de Resolución de Cancelación de Patente de Navegación",2,{"$f":"VLOOKUP(A52,'[1] Reporte mensual atenciones y q'!$A$4:$AB$165,28,FALSE)","v":0},0,0]
["MTOP-014-02-01","MTOP-014-02-01 Matriculación de Agencias Navieras por Primera Vez para Tráfico Nacional",2,{"$f":"VLOOKUP(A53,'[1] Reporte mensual atenciones y q'!$A$4:$AB$165,28,FALSE)","v":0},0,0]
["MTOP-014-02-03","MTOP-014-02-03 Actualización de Matrículas de Agencias Navieras por Cambio de Representante Legal para Tráfico Nacional",2,{"$f":"VLOOKUP(A54,'[1] Reporte mensual atenciones y q'!$A$4:$AB$165,28,FALSE)","v":0},0,0]
["MTOP-007-02-05","Actualización de datos de Matrícula de Operadores Portuarios de Servicios Conexos",3,{"$f":"VLOOKUP(A55,'[1] Reporte mensual atenciones y q'!$A$4:$AB$165,28,FALSE)","v":0},0,0]
["MTOP-007-04-03","Ampliación de Servicios de Operadores Portuarios de Carga",3,{"$f":"VLOOKUP(A56,'[1] Reporte mensual atenciones y q'!$A$4:$AB$165,28,FALSE)","v":0},0,0]
["MTOP-035-01-03","Aprobación de planos por Nacionalización (GALAPAGOS ESMERALDAS AMAZONIA)",3,{"$f":"VLOOKUP(A57,'[1] Reporte mensual atenciones y q'!$A$4:$AB$165,28,FALSE)","v":0},0,0]
["MTOP-015-02-03","Autorización de Entrenamiento para los Aspirantes a Capitanes de Amarre y Control de Carga",3,{"$f":"VLOOKUP(A58,'[1] Reporte mensual atenciones y q'!$A$4:$AB$165,28,FALSE)","v":0},0,0]
["MTOP-012-01-03","Certificación de Aprobación de la Evaluación de protección de instalación portuaria",3,{"$f":"VLOOKUP(A59,'[1] Reporte mensual atenciones y q'!$A$4:$AB$165,28,FALSE)","v":0},0,0]
["MTOP-012-01-04","Certificación de Aprobacion del Plan de proteccion de instalacion portuaria",3,{"$f":"VLOOKUP(A60,'[1] Reporte mensual atenciones y q'!$A$4:$AB$165,28,FALSE)","v":0},0,0]
["MTOP-015-02-04","Certificación de Títulos de Capitanes de Amarre y Control de Carga",3,{"$f":"VLOOKUP(A61,'[1] Reporte mensual atenciones y q'!$A$4:$AB$165,28,FALSE)","v":0},0,0]
["MTOP-027-05-01","Emisión de Registro de Sociedad Clasificadora",3,{"$f":"VLOOKUP(A62,'[1] Reporte mensual atenciones y q'!$A$4:$AB$165,28,FALSE)","v":0},0,0]
["MTOP-014-01-05","MTOP-014-01-05 Inactivación de Matrícula de Agencia Naviera para Tráfico Internacional",3,{"$f":"VLOOKUP(A63,'[1] Reporte mensual atenciones y q'!$A$4:$AB$165,28,FALSE)","v":0},0,0]
["MTOP-007-04-06","Actualización de Registros de Operadores Portuarios de Carga",4,{"$f":"VLOOKUP(A64,'[1] Reporte mensual atenciones y q'!$A$4:$AB$165,28,FALSE)","v":0},0,0]
["MTOP-005-01-02","Actualización y/o Modificación del Permiso de Ocupación",4,{"$f":"VLOOKUP(A65,'[1] Reporte mensual atenciones y q'!$A$4:$AB$165,28,FALSE)","v":0},0,0]
["MTOP-007-02-03","Ampliación de Servicios de Operadores Portuarios de Servicios Conexos",4,{"$f":"VLOOKUP(A66,'[1] Reporte mensual atenciones y q'!$A$4:$AB$165,28,FALSE)","v":0},0,0]
["MTOP-010-02-03","Autorización de Desguace de Naves de Bandera Nacional o Extranjeras",4,{"$f":"VLOOKUP(A67,'[1] Reporte mensual atenciones y q'!$A$4:$AB$165,28,FALSE)","v":0},0,0]
["MTOP-020-03-01","Autorización de Trayectoria Interna de Embarcaciones entre Puertos Nacionales",4,{"$f":"VLOOKUP(A68,'[1] Reporte mensual atenciones y q'!$A$4:$AB$165,28,FALSE)","v":0},0,0]
["MTOP-004-02-03","Emisión de Permiso de Operación a Estación de Servicios de Balsas Salvavidas Inflables",4,{"$f":"VLOOKUP(A69,'[1] Reporte mensual atenciones y q'!$A$4:$AB$165,28,FALSE)","v":0},0,0]
["MTOP-014-01-04","MTOP-014-01-04 Actualización de Matrículas de Agencias Navieras por Extención a otro Puertopara Tráfico Internacional",4,{"$f":"VLOOKUP(A70,'[1] Reporte mensual atenciones y q'!$A$4:$AB$165,28,FALSE)","v":0},0,0]
["MTOP-010-02-04","Autorización a Buques De Bandera Nacional e Internacional Para Realizar Viajes Extraordinarios Para Puertos Internacionales",5,{"$f":"VLOOKUP(A71,'[1] Reporte mensual atenciones y q'!$A$4:$AB$165,28,FALSE)","v":0},0,0]
["MTOP-004-01-01","Emisión de Permiso de Construcción, Operación, Modificación y/o Ampliación de Facilidades o Instalaciones Portuarias, Internacional",5,{"$f":"VLOOKUP(A72,'[1] Reporte mensual atenciones y q'!$A$4:$AB$165,28,FALSE)","v":0},0,0]
["MTOP-004-02-02","Emisión de Permiso de Operación a Estación de Servicios de Extintores",5,{"$f":"VLOOKUP(A73,'[1] Reporte mensual atenciones y q'!$A$4:$AB$165,28,FALSE)","v":0},0,0]
["MTOP-033-02-01","Emisión de Licencia de Modificación y Aprobación de Planos Preliminares de la Nave",6,{"$f":"VLOOKUP(A74,'[1] Reporte mensual atenciones y q'!$A$4:$AB$165,28,FALSE)","v":0},0,0]
["MTOP-022-02-01","Emisión del Certificado de Seguridad para Buques de Carga.",6,{"$f":"VLOOKUP(A75,'[1] Reporte mensual atenciones y q'!$A$4:$AB$165,28,FALSE)","v":0},0,0]
["MTOP-002-01-04","Inactivación de Matrícula de Armadores Naves Mayores a 50 TRB",7,{"$f":"VLOOKUP(A76,'[1] Reporte mensual atenciones y q'!$A$4:$AB$165,28,FALSE)","v":0},0,0]
["MTOP-021-04-01","Verificación cuatrimestral de naves y bienes importados al amparo de la LEFORTAAC",7,{"$f":"VLOOKUP(A77,'[1] Reporte mensual atenciones y q'!$A$4:$AB$165,28,FALSE)","v":0},0,0]
["MTOP-034-01-03","Aprobación de planos por Legalización de la Construcción (GALAPAGOS ESMERALDAS AMAZONIA)",9,{"$f":"VLOOKUP(A78,'[1] Reporte mensual atenciones y q'!$A$4:$AB$165,28,FALSE)","v":0},0,0]
["MTOP-035-01-01","Aprobación de planos por Nacionalización (DENTRO DEL PERIMETRO URBANO)",9,{"$f":"VLOOKUP(A79,'[1] Reporte mensual atenciones y q'!$A$4:$AB$165,28,FALSE)","v":0},0,0]
["MTOP-032-01-01","Aprobación del Diseño Definitivo de la Nave por Construcción (DENTRO DEL PERIMETRO URBANO)",9,{"$f":"VLOOKUP(A80,'[1] Reporte mensual atenciones y q'!$A$4:$AB$165,28,FALSE)","v":0},0,0]
["MTOP-019-01-04","Emisión de Autorización de Asignación de Muelles para Desguace",9,{"$f":"VLOOKUP(A81,'[1] Reporte mensual atenciones y q'!$A$4:$AB$165,28,FALSE)","v":0},0,0]
["MTOP-006-01-03","Emisión de Permiso de Comercialización de Dispersantes para el Control del Derrame de Hidrocarburos",9,{"$f":"VLOOKUP(A82,'[1] Reporte mensual atenciones y q'!$A$4:$AB$165,28,FALSE)","v":0},0,0]
["MTOP-007-03-01","Matriculación por Primera Vez de Operadores Portuarios de Buque",9,{"$f":"VLOOKUP(A83,'[1] Reporte mensual atenciones y q'!$A$4:$AB$165,28,FALSE)","v":0},0,0]
["MTOP-014-01-01","MTOP-014-01-01 Matriculación de Agencias Navieras por Primera Vez para Tráfico Internacional",9,{"$f":"VLOOKUP(A84,'[1] Reporte mensual atenciones y q'!$A$4:$AB$165,28,FALSE)","v":0},0,0]
["MTOP-007-03-06","Actualización de Registros de Operadores Portuarios de Buque",10,{"$f":"VLOOKUP(A85,'[1] Reporte mensual atenciones y q'!$A$4:$AB$165,28,FALSE)","v":0},0,0]
["MTOP-017-01-12","Aprobación de plano de capacidad de combustible (GALAPAGOS ESMERALDAS AMAZONIA)",10,{"$f":"VLOOKUP(A86,'[1] Reporte mensual atenciones y q'!$A$4:$AB$165,28,FALSE)","v":0},0,0]
["MTOP-015-02-02","Certificación de Títulos de Prácticos",10,{"$f":"VLOOKUP(A87,'[1] Reporte mensual atenciones y q'!$A$4:$AB$165,28,FALSE)","v":0},0,0]
["MTOP-019-01-03","Emisión de Autorización de Asignación de Muelle para embarcaciones remolcadas",10,{"$f":"VLOOKUP(A88,'[1] Reporte mensual atenciones y q'!$A$4:$AB$165,28,FALSE)","v":0},0,0]
["MTOP-021-01-02","Emisión de la Autorización de importación de naves como beneficiario de la LEFORTAAC",10,{"$f":"VLOOKUP(A89,'[1] Reporte mensual atenciones y q'!$A$4:$AB$165,28,FALSE)","v":0},0,0]
["MTOP-036-01-02","Emisión de Registro Definitivo De Consolidadores Y Desconsolidadores De Carga",10,{"$f":"VLOOKUP(A90,'[1] Reporte mensual atenciones y q'!$A$4:$AB$165,28,FALSE)","v":0},0,0]
["MTOP-031-01-01","Emisión del Certificado de Declaración de Cumplimiento CAP para Buques de Transporte de Hidrocarburos mayores a 15 años de construccion",10,{"$f":"VLOOKUP(A91,'[1] Reporte mensual atenciones y q'!$A$4:$AB$165,28,FALSE)","v":0},0,0]
["MTOP-004-02-01","Emisión de Permiso de Operación a Astilleros, Parrillas, Varaderos y Factorías Navales",11,{"$f":"VLOOKUP(A92,'[1] Reporte mensual atenciones y q'!$A$4:$AB$165,28,FALSE)","v":0},0,0]
["MTOP-007-03-02","Renovación Matrícula de Operadores Portuarios de Buque",12,{"$f":"VLOOKUP(A93,'[1] Reporte mensual atenciones y q'!$A$4:$AB$165,28,FALSE)","v":0},0,0]
["MTOP-017-02-03","Supervisión de Prueba de Estabilidad (GALAPAGOS ESMERALDAS AMAZONIA)",12,{"$f":"VLOOKUP(A94,'[1] Reporte mensual atenciones y q'!$A$4:$AB$165,28,FALSE)","v":0},0,0]
["MTOP-021-03-01","Emisión de la Calificación y registro de personas naturales o jurídicas como beneficiario de la LEFORTAAC",13,{"$f":"VLOOKUP(A95,'[1] Reporte mensual atenciones y q'!$A$4:$AB$165,28,FALSE)","v":0},0,0]
["MTOP-004-01-02","Emisión de Permiso de Construcción, Operación, Modificación y/o Ampliación de Facilidades o Instalaciones Portuarias, Cabotaje",13,{"$f":"VLOOKUP(A96,'[1] Reporte mensual atenciones y q'!$A$4:$AB$165,28,FALSE)","v":0},0,0]
["MTOP-034-02-03","Aprobación de planos por Legalización de la Modificación(GALAPAGOS ESMERALDAS AMAZONIA)",14,{"$f":"VLOOKUP(A97,'[1] Reporte mensual atenciones y q'!$A$4:$AB$165,28,FALSE)","v":0},0,0]
["MTOP-009-02-04","Autorización de la Exoneración Total o Parcial del Pago de las Tarifas Portuarias a Buques y/o Carga",14,{"$f":"VLOOKUP(A98,'[1] Reporte mensual atenciones y q'!$A$4:$AB$165,28,FALSE)","v":0},0,0]
["MTOP-012-01-02","Obtención de Asistencia Técnica en la Ejecución de Ejercicios de Protección marítima realizados por las instalaciones portuarias certificadas bajo el código P.B.I.P. (Código de Protección Internacional Portuaria)",14,{"$f":"VLOOKUP(A99,'[1] Reporte mensual atenciones y q'!$A$4:$AB$165,28,FALSE)","v":0},0,0]
["MTOP-002-04-03","Actualización de Armadores por Inclusión o Exclusión de una Nave Menores a 50 TRB",15,{"$f":"VLOOKUP(A100,'[1] Reporte mensual atenciones y q'!$A$4:$AB$165,28,FALSE)","v":0},0,0]
["MTOP-034-02-01","Aprobación de planos por Legalización de la Modificación (DENTRO DEL PERIMETRO URBANO)",15,{"$f":"VLOOKUP(A101,'[1] Reporte mensual atenciones y q'!$A$4:$AB$165,28,FALSE)","v":0},0,0]
["MTOP-023-05-01","Emisión del Pasavante de Navegación",15,{"$f":"VLOOKUP(A102,'[1] Reporte mensual atenciones y q'!$A$4:$AB$165,28,FALSE)","v":0},0,0]
["MTOP-007-04-01","Matriculación por Primera Vez de Operadores Portuarios de Carga",15,{"$f":"VLOOKUP(A103,'[1] Reporte mensual atenciones y q'!$A$4:$AB$165,28,FALSE)","v":0},0,0]
["MTOP-007-02-06","Actualización de Registros de Operadores Portuarios de Servicios Conexos",16,{"$f":"VLOOKUP(A104,'[1] Reporte mensual atenciones y q'!$A$4:$AB$165,28,FALSE)","v":0},0,0]
["MTOP-035-01-02","Aprobación de planos por Nacionalización (FUERA DEL PERIMETRO URBANO)",16,{"$f":"VLOOKUP(A105,'[1] Reporte mensual atenciones y q'!$A$4:$AB$165,28,FALSE)","v":0},0,0]
["MTOP-005-01-01","Autorización de Ocupación Pago de nueva concesión de zona de playas y bahías",16,{"$f":"VLOOKUP(A106,'[1] Reporte mensual atenciones y q'!$A$4:$AB$165,28,FALSE)","v":0},0,0]
["MTOP-015-02-01","Autorización de Entrenamiento para los Aspirantes a Prácticos",17,{"$f":"VLOOKUP(A107,'[1] Reporte mensual atenciones y q'!$A$4:$AB$165,28,FALSE)","v":0},0,0]
["MTOP-012-01-01","Certificación y Recertificación de una Instalación Portuaria bajo el Código de Protección de Buques y de Instalaciones Portuarias",18,{"$f":"VLOOKUP(A108,'[1] Reporte mensual atenciones y q'!$A$4:$AB$165,28,FALSE)","v":0},0,0]
["MTOP-023-04-02","Emisión del Informe Técnico Favorable para la Importación por Internación Temporal de Buques Bajo Contrato de Asociación, Fletamento, Fletamento a Casco Desnudo, Arriendo, Etc.",18,{"$f":"VLOOKUP(A109,'[1] Reporte mensual atenciones y q'!$A$4:$AB$165,28,FALSE)","v":0},0,0]
["MTOP-007-04-02","Renovación Matrícula de Operadores Portuarios de Carga",18,{"$f":"VLOOKUP(A110,'[1] Reporte mensual atenciones y q'!$A$4:$AB$165,28,FALSE)","v":0},0,0]
["MTOP-010-02-01","Autorización de Rutas, Horarios e Itinerarios de los Servicios Públicos del Transporte Fluvial interno y al exterior",19,{"$f":"VLOOKUP(A111,'[1] Reporte mensual atenciones y q'!$A$4:$AB$165,28,FALSE)","v":0},0,0]
["MTOP-021-02-01","Emisión de la autorización de importación de bienes como beneficiario de la LEFORTAAC",19,{"$f":"VLOOKUP(A112,'[1] Reporte mensual atenciones y q'!$A$4:$AB$165,28,FALSE)","v":0},0,0]
["MTOP-010-02-05","Autorización Excepcional de Prestación de Servicios de cabotaje de hidrocarburos, carga, pasaje y valijas postales",20,{"$f":"VLOOKUP(A113,'[1] Reporte mensual atenciones y q'!$A$4:$AB$165,28,FALSE)","v":0},0,0]
["MTOP-036-01-01","Emisión de Registro Provisional De Consolidadores Y Desconsolidadores De Carga",20,{"$f":"VLOOKUP(A114,'[1] Reporte mensual atenciones y q'!$A$4:$AB$165,28,FALSE)","v":0},0,0]
["MTOP-029-02-01","Emisión del Certificado de Aprobación del Cuadro de Zafarrancho del Buque",21,{"$f":"VLOOKUP(A115,'[1] Reporte mensual atenciones y q'!$A$4:$AB$165,28,FALSE)","v":0},0,0]
["MTOP-022-02-02","Emisión del Endoso Anual del Certificado de Seguridad para Buques de Carga.",21,{"$f":"VLOOKUP(A116,'[1] Reporte mensual atenciones y q'!$A$4:$AB$165,28,FALSE)","v":0},0,0]
["MTOP-030-01-01","Emisión del Certificado Internacional de Prevención de la Contaminación por Hidrocarburos, IOPP",22,{"$f":"VLOOKUP(A117,'[1] Reporte mensual atenciones y q'!$A$4:$AB$165,28,FALSE)","v":0},0,0]
["MTOP-010-02-08","Autorización de Rutas, Horarios e Itinerarios de los Servicios Públicos del Transporte Marítimo",24,{"$f":"VLOOKUP(A118,'[1] Reporte mensual atenciones y q'!$A$4:$AB$165,28,FALSE)","v":0},0,0]
["MTOP-031-02-01","Emisión del Certificado De Seguro U Otra Garantía Financiera Relativo A La Responsabilidad Civil Por Daños Causados Por La Contaminación De Las Aguas Del Mar Por Hidrocarburos",24,{"$f":"VLOOKUP(A119,'[1] Reporte mensual atenciones y q'!$A$4:$AB$165,28,FALSE)","v":0},0,0]
["MTOP-034-01-01","Aprobación de planos por Legalización de la Construcción (DENTRO DEL PERIMETRO URBANO)",25,{"$f":"VLOOKUP(A120,'[1] Reporte mensual atenciones y q'!$A$4:$AB$165,28,FALSE)","v":0},0,0]
["MTOP-034-01-02","Aprobación de planos por Legalización de la Construcción (FUERA DEL PERIMETRO URBANO)",25,{"$f":"VLOOKUP(A121,'[1] Reporte mensual atenciones y q'!$A$4:$AB$165,28,FALSE)","v":0},0,0]
["MTOP-032-02-01","Otorgamiento de Licencia de Construcción y Aprobación de Planos Preliminares de la Nave",25,{"$f":"VLOOKUP(A122,'[1] Reporte mensual atenciones y q'!$A$4:$AB$165,28,FALSE)","v":0},0,0]
["MTOP-029-01-01","Emisión del Certificado de Aprobación de Planos de Seguridad y Contraincendios",35,{"$f":"VLOOKUP(A123,'[1] Reporte mensual atenciones y q'!$A$4:$AB$165,28,FALSE)","v":0},0,0]
["MTOP-030-02-01","Emisión del Certificado de Prevención a la Contaminacón por Aguas Sucias",35,{"$f":"VLOOKUP(A124,'[1] Reporte mensual atenciones y q'!$A$4:$AB$165,28,FALSE)","v":0},0,0]
["MTOP-002-01-03","Actualización de Matrícula de Armadores por Cambio de Representante Legal Naves Mayores a 50 TRB",38,{"$f":"VLOOKUP(A125,'[1] Reporte mensual atenciones y q'!$A$4:$AB$165,28,FALSE)","v":0},0,0]
["MTOP-023-04-01","Emisión del Informe Técnico Favorable para la Importación por Nacionalización de Naves",39,{"$f":"VLOOKUP(A126,'[1] Reporte mensual atenciones y q'!$A$4:$AB$165,28,FALSE)","v":0},0,0]
["MTOP-010-01-02","Emisión de Registro de Contrato de de naves de Bandera Nacional",41,{"$f":"VLOOKUP(A127,'[1] Reporte mensual atenciones y q'!$A$4:$AB$165,28,FALSE)","v":0},0,0]
["MTOP-007-02-02","Renovación Matrícula de Operadores Portuarios de Servicios Conexos",41,{"$f":"VLOOKUP(A128,'[1] Reporte mensual atenciones y q'!$A$4:$AB$165,28,FALSE)","v":0},0,0]
["MTOP-017-02-01","Supervisión de Prueba de Estabilidad (DENTRO DEL PERIMETRO URBANO)",41,{"$f":"VLOOKUP(A129,'[1] Reporte mensual atenciones y q'!$A$4:$AB$165,28,FALSE)","v":0},0,0]
["MTOP-007-02-01","Matriculación por Primera Vez de Operadores Portuarios de Servicios Conexos",46,{"$f":"VLOOKUP(A130,'[1] Reporte mensual atenciones y q'!$A$4:$AB$165,28,FALSE)","v":0},0,0]
["MTOP-017-02-02","Supervisión de Prueba de Estabilidad (FUERA DEL PERIMETRO URBANO)",46,{"$f":"VLOOKUP(A131,'[1] Reporte mensual atenciones y q'!$A$4:$AB$165,28,FALSE)","v":0},0,0]
["MTOP-017-01-10","Aprobación de plano de capacidad de combustible (DENTRO DEL PERIMETRO URBANO)",49,{"$f":"VLOOKUP(A132,'[1] Reporte mensual atenciones y q'!$A$4:$AB$165,28,FALSE)","v":0},0,0]
["MTOP-028-01-01","Emisión del Certificado de Estado Rector del Puerto para naves de bandera extranjera que operen bajo internación temporal y fletamento a casco desnudo",50,{"$f":"VLOOKUP(A133,'[1] Reporte mensual atenciones y q'!$A$4:$AB$165,28,FALSE)","v":0},0,0]
["MTOP-014-01-02","MTOP-014-01-02 Renovación de la Matrícula de Agencias Navieras para Tráfico Internacional",51,{"$f":"VLOOKUP(A134,'[1] Reporte mensual atenciones y q'!$A$4:$AB$165,28,FALSE)","v":0},0,0]
["MTOP-002-01-01","Matriculación de Armadores Por Primera Vez Naves Mayores a 50 TRB",55,{"$f":"VLOOKUP(A135,'[1] Reporte mensual atenciones y q'!$A$4:$AB$165,28,FALSE)","v":0},0,0]
["MTOP-025-05-01","Emisión del certificado de Obra Viva",60,{"$f":"VLOOKUP(A136,'[1] Reporte mensual atenciones y q'!$A$4:$AB$165,28,FALSE)","v":0},0,0]
["MTOP-034-02-02","Aprobación de planos por Legalización de la Modificación (FUERA DEL PERIMETRO URBANO)",63,{"$f":"VLOOKUP(A137,'[1] Reporte mensual atenciones y q'!$A$4:$AB$165,28,FALSE)","v":0},0,0]
["MTOP-028-02-01","Emisión del Certificado de Inspección de Estado Rector de Puerto a naves de bandera extranjera que ingresan al país en tránsito (dejan carga y retiran carga de puertos del país)",66,{"$f":"VLOOKUP(A138,'[1] Reporte mensual atenciones y q'!$A$4:$AB$165,28,FALSE)","v":0},0,0]
["MTOP-002-04-02","Renovación de Matrícula de Armadores Naves Menores a 50 TRB",66,{"$f":"VLOOKUP(A139,'[1] Reporte mensual atenciones y q'!$A$4:$AB$165,28,FALSE)","v":0},0,0]
["MTOP-005-01-05","Delimitación y/o Demarcación de Zonas de Playas y Bahías",80,{"$f":"VLOOKUP(A140,'[1] Reporte mensual atenciones y q'!$A$4:$AB$165,28,FALSE)","v":0},0,0]
["MTOP-027-01-06","Emisión del Certificado Internacional de arqueo",82,{"$f":"VLOOKUP(A141,'[1] Reporte mensual atenciones y q'!$A$4:$AB$165,28,FALSE)","v":0},0,0]
["MTOP-027-02-01","Emisión del certificado internacional de líneas de carga",85,{"$f":"VLOOKUP(A142,'[1] Reporte mensual atenciones y q'!$A$4:$AB$165,28,FALSE)","v":0},0,0]
["MTOP-013-02-02","Emisión de Certificado de Operación Especial para Vehículos Mayores a 60 Ton",99,{"$f":"VLOOKUP(A143,'[1] Reporte mensual atenciones y q'!$A$4:$AB$165,28,FALSE)","v":0},0,0]
["MTOP-017-02-04","Aprobación de Libreto de Estabilidad de la nave",101,{"$f":"VLOOKUP(A144,'[1] Reporte mensual atenciones y q'!$A$4:$AB$165,28,FALSE)","v":0},0,0]
["MTOP-010-01-01","Emisión de Registro de Tarifas y Recargos de Fletes Internacionales",101,{"$f":"VLOOKUP(A145,'[1] Reporte mensual atenciones y q'!$A$4:$AB$165,28,FALSE)","v":0},0,0]
["MTOP-017-01-11","Aprobación de planos de capacidad de combustible (FUERA DEL PERIMETRO URBANO)",102,{"$f":"VLOOKUP(A146,'[1] Reporte mensual atenciones y q'!$A$4:$AB$165,28,FALSE)","v":0},0,0]
["MTOP-002-04-01","Matriculación de Armadores Por Primera Vez Naves Menores a 50 TRB",107,{"$f":"VLOOKUP(A147,'[1] Reporte mensual atenciones y q'!$A$4:$AB$165,28,FALSE)","v":0},0,0]
["MTOP-025-04-01","Realización de la Inspección para determinar el Avalúo de las naves",126,{"$f":"VLOOKUP(A148,'[1] Reporte mensual atenciones y q'!$A$4:$AB$165,28,FALSE)","v":0},0,0]
["MTOP-019-01-05","Emisión de Autorización de Asignación de Muelles para Mantenimiento y/o Reparación",131,{"$f":"VLOOKUP(A149,'[1] Reporte mensual atenciones y q'!$A$4:$AB$165,28,FALSE)","v":0},0,0]
["MTOP-027-01-02","Emisión del Certificado Nacional de arqueo",139,{"$f":"VLOOKUP(A150,'[1] Reporte mensual atenciones y q'!$A$4:$AB$165,28,FALSE)","v":0},0,0]
["MTOP-005-01-08","Emisión de Matrícula Concesión de Zona de Playas y Bahías (Anual)",168,{"$f":"VLOOKUP(A151,'[1] Reporte mensual atenciones y q'!$A$4:$AB$165,28,FALSE)","v":0},0,0]
["MTOP-027-03-01","Emisión del Permiso de Vare y Desvare",172,{"$f":"VLOOKUP(A152,'[1] Reporte mensual atenciones y q'!$A$4:$AB$165,28,FALSE)","v":0},0,0]
["MTOP-020-01-01","Emisión de Permisos de Tráfico Marítimo y Fluvial para naves nacionales y extranjeras",261,{"$f":"VLOOKUP(A153,'[1] Reporte mensual atenciones y q'!$A$4:$AB$165,28,FALSE)","v":0},0,0]
["MTOP-013-02-01","Emisión de Certificado de Operación Especial para Vehículos entre 48 - 60 Toneladas",311,{"$f":"VLOOKUP(A154,'[1] Reporte mensual atenciones y q'!$A$4:$AB$165,28,FALSE)","v":12},3.8585209003215435,10]
["MTOP-002-01-02","Renovación de Matrícula de Armadores Naves Mayores a 50 TRB",339,{"$f":"VLOOKUP(A155,'[1] Reporte mensual atenciones y q'!$A$4:$AB$165,28,FALSE)","v":0},0,0]
["MTOP-001-01-01","Matriculación de equipo caminero y maquinaria pesada primera vez",474,{"$f":"VLOOKUP(A156,'[1] Reporte mensual atenciones y q'!$A$4:$AB$165,28,FALSE)","v":0},0,0]
["MTOP-019-01-01","Emisión de Autorización de Asignación de Muelle para Tráfico de Cabotaje",562,{"$f":"VLOOKUP(A157,'[1] Reporte mensual atenciones y q'!$A$4:$AB$165,28,FALSE)","v":0},0,0]
["MTOP-001-01-03","Renovación de matrícula por cambio de propietario del equipo caminero y la maquinaria pesada",613,{"$f":"VLOOKUP(A158,'[1] Reporte mensual atenciones y q'!$A$4:$AB$165,28,FALSE)","v":0},0,0]
["MTOP-013-03-01","Autorización de Importación",735,{"$f":"VLOOKUP(A159,'[1] Reporte mensual atenciones y q'!$A$4:$AB$165,28,FALSE)","v":16},2.1768707482993199,10]
["MTOP-019-01-02","Emisión de Autorización de Asignación de Muelle para Tráfico Internacional",1450,{"$f":"VLOOKUP(A160,'[1] Reporte mensual atenciones y q'!$A$4:$AB$165,28,FALSE)","v":0},0,0]
["MTOP-009-02-01","Autorización de Transporte de Carga Peligrosa a la Provincia insular de Galápagos y Viceversa",1550,{"$f":"VLOOKUP(A161,'[1] Reporte mensual atenciones y q'!$A$4:$AB$165,28,FALSE)","v":0},0,0]
["MTOP-015-01-03","Matriculación de Personal Marítimo Portuario",1685,{"$f":"VLOOKUP(A162,'[1] Reporte mensual atenciones y q'!$A$4:$AB$165,28,FALSE)","v":0},0,0]
["MTOP-009-02-05","Obtención de Permisos Especiales de Ingreso a Instalaciones Portuarias",2993,{"$f":"VLOOKUP(A163,'[1] Reporte mensual atenciones y q'!$A$4:$AB$165,28,FALSE)","v":0},0,0]
["MTOP-001-01-02","Renovación de matrícula de equipo caminero y maquinaria pesada",12199,{"$f":"VLOOKUP(A164,'[1] Reporte mensual atenciones y q'!$A$4:$AB$165,28,FALSE)","v":0},0,0]
["MTOP-001-01-05","Certificación de la propiedad, gravámenes, arrendamiento mercantil y venta con reserva de dominio",12281,{"$f":"VLOOKUP(A165,'[1] Reporte mensual atenciones y q'!$A$4:$AB$165,28,FALSE)","v":25},0.20356648481394024,4]
["MTOP-013-01-01","Emisión de Certificado de Operación Regular",37904,{"$f":"VLOOKUP(A166,'[1] Reporte mensual atenciones y q'!$A$4:$AB$165,28,FALSE)","v":544},1.4352047277332207,10]

{"sheet":"COSTO ADMINISTRACIÓN PÚBLICA","index":3,"n_rows":167,"n_cols":10,"rows_kept":167,"cut":false,"hidden":false,"merged":[[0,0,0,5],[1,0,1,5],[3,0,4,0],[3,1,4,1],[3,2,3,4],[3,5,4,5]]}
["PRIORIZACIÓN DE TRÁMITES ADMINISTRATIVOS"]
["COSTOS PARA LA ADMINISTRACIÓN PÚBLICA"]
[]
["IDENTIFICADOR","TRÁMITE","INSUMOS PARA COSTO",null,null,"COSTO PARA LA ADM. PÚBLICA",null,"SBU",400]
[null,null,"TIEMPO (HORAS)","COSTO PERSONAL","COSTO RECURSOS"]
["MTOP-007-03-05","Actualización de datos de Matrícula de Operadores Portuarios de Buque",{"$f":"1220/60","v":20.333333333333332},{"$f":"C6*$I$4/160","v":50.833333333333329},3,{"$f":"D6+E6","v":53.833333333333329}]
["MTOP-007-04-05","Actualización de datos de Matrícula de Operadores Portuarios de Carga",{"$f":"1220/60","v":20.333333333333332},{"$f":"C7*$I$4/160","v":50.833333333333329},3,{"$f":"D7+E7","v":53.833333333333329}]
["MTOP-007-01-05","Actualización de datos de Matrícula de Operadores Portuarios de Pasajeros",{"$f":"2880/60","v":48},120,3,123]
["MTOP-007-01-06","Actualización de Registros de Operadores Portuarios de Pasajeros",48,120,3,123]
["MTOP-007-01-04","Actualización de Representante Legal de Operadores Portuarios de Pasajeros",48,120,3,123]
["MTOP-007-02-04","Actualización de Representante Legal de Operadores Portuarios de Servicios Conexos",48,120,0.35,120.35]
["MTOP-007-03-03","Ampliación de Servicios de Operadores Portuarios de Buque",{"$f":"1220/60","v":20.333333333333332},50.833333333333329,0.35,51.18333333333333]
["MTOP-007-01-03","Ampliación de Servicios de Operadores Portuarios de Pasajeros",{"$f":"2880/60","v":48},120,0.35,120.35]
["MTOP-006-01-04","Aprobación de Plan de Contingencia Zonal para Control de Derrame por Hidrocarburos o Productos Quimicos",{"$f":"2000/60","v":33.333333333333336},83.333333333333343,0.35,83.683333333333337]
["MTOP-035-02-01","Aprobación de Planos por Contrato de Fletamento, Arrendamiento, Asociación, Leasing, Fletamento a Casco Desnudo (DENTRO DEL PERIMETRO URBANO)",{"$f":"7200/60","v":120},300,0.35,300.35000000000002]
["MTOP-035-02-02","Aprobación de Planos por Contrato de Fletamento, Arrendamiento, Asociación, Leasing, Fletamento a Casco Desnudo (FUERA DEL PERIMETRO URBANO)",{"$f":"7200/60","v":120},300,0.35,300.35000000000002]
["MTOP-035-02-03","Aprobación de Planos por Contrato de Fletamento, Arrendamiento, Asociación, Leasing, Fletamento a Casco Desnudo (GALAPAGOS ESMERALDAS AMAZONIA)",{"$f":"7200/60","v":120},300,0.35,300.35000000000002]
["MTOP-032-01-03","Aprobación del Diseño Definitivo de la Nave por Construcción (GALAPAGOS ESMERALDAS AMAZONIA)",{"$f":"7200/60","v":120},300,0.35,300.35000000000002]
["MTOP-009-02-06","Autorización de Fondeo en Terminales Petroleros",{"$f":"96/60","v":1.6},4,3,7]
["MTOP-005-01-04","Autorización de la Derogatoria del Permiso de Ocupación",{"$f":"2355/60","v":39.25},98.125,3,101.125]
["MTOP-009-02-02","Autorización de Transporte de Carga Peligrosa en rutas nacionales",{"$f":"1440/60","v":24},60,3,63]
["MTOP-009-02-03","Autorización para Realizar Actividades No Comerciales en la Jurisdicción de un Puerto Comercial o Terminal Petrolera",{"$f":"1440/60","v":24},60,3,63]
["MTOP-006-01-02","Calificación de Empresas Proveedores de Equipos y Materiales para el Control de Derrame de Hidrocarburos",{"$f":"2000/60","v":33.333333333333336},83.333333333333343,3,86.333333333333343]
["MTOP-006-01-01","Calificación de Empresas que Prestan Servicios para el Control de Derrame de Hidrocarburos",{"$f":"2000/60","v":33.333333333333336},83.333333333333343,3,86.333333333333343]
["MTOP-001-01-04","Certificación de matrícula por perdida de equipo caminero y maquinaria pesada",16,40,3,43]
["MTOP-012-01-05","Corrección al Plan de Protección de Instalaciones Portuarias",{"$f":"10080/60","v":168},420,3,423]
["MTOP-019-01-06","Emisión de Autorización de Asignación de Muelles para Desembarque/Embarque de Clase IMDG en Puerto Comercial y/o Terminales Privadas.",{"$f":"2880/60","v":48},120,3,123]
["MTOP-019-01-07","Emisión de Autorización de Desvío de cargas a otro puerto por fuerza mayor o eventos naturales",{"$f":"2880/60","v":48},120,3,123]
["MTOP-021-01-05","Emisión de la Autorización de importación de naves bajo el regimen de internación temporal para celebrar un contrato de fletamento a casco desnudo como beneficiario de la LEFORTAAC",40,100,1,101]
["MTOP-023-04-03","Emisión deI informe Técnico Favorable para la Importación de Naves para el Desguace",{"$f":"4800/60","v":80},200,3,203]
["MTOP-008-02-02","Emisión del Certificado de Aprobación del Sipe, Sistema Integrado de Polución y Emergencia.",{"$f":"4800/60","v":80},200,3,203]
["MTOP-025-04-02","Emisión del Informe de Peritajes Marítimos de nave",{"$f":"4800/60","v":80},200,3,203]
["MTOP-007-01-01","Matriculación por Primera Vez de Operadores Portuarios de Pasajeros",{"$f":"2880/60","v":48},120,3,123]
["MTOP-014-02-04","MTOP-014-02-04 Actualización de Matrículas de Agencias Navieras por Extención a otro Puerto para Tráfico Nacional",{"$f":"4800/60","v":80},200,3,203]
["MTOP-014-02-05","MTOP-014-02-05 Inactivación de Matrícula de Agencia Naviera para Tráfico Nacional",{"$f":"1920/60","v":32},80,3,83]
["MTOP-007-01-02","Renovación Matrícula de Operadores Portuarios de Pasajeros",{"$f":"1220/60","v":20.333333333333332},50.833333333333329,3,53.833333333333329]
["MTOP-007-03-07","Revocación de Matrícula de Operadores Portuarios de Buque",{"$f":"1220/60","v":20.333333333333332},50.833333333333329,3,53.833333333333329]
["MTOP-007-01-07","Revocación de Matrícula de Operadores Portuarios de Pasajeros",{"$f":"2880/60","v":48},120,3,123]
["MTOP-007-04-04","Actualización de Representante Legal de Operadores Portuarios de Carga",{"$f":"1220/60","v":20.333333333333332},50.833333333333329,3,53.833333333333329]
["MTOP-033-01-01","Aprobación del Diseño Definitivo de la Nave por Modificación (DENTRO DEL PERIMETRO URBANO)",{"$f":"7200/60","v":120},300,3,303]
["MTOP-033-01-02","Aprobación del Diseño Definitivo de la Nave por Modificación (FUERA DEL PERIMETRO URBANO)",{"$f":"7200/60","v":120},300,3,303]
["MTOP-033-01-03","Aprobación del Diseño Definitivo de la Nave por Modificación (GALAPAGOS ESMERALDAS AMAZONIA)",{"$f":"7200/60","v":120},300,3,303]
["MTOP-005-01-03","Autorización del Traspaso de la Ocupación",{"$f":"2355/60","v":39.25},98.125,3,101.125]
["MTOP-002-04-04","Inactivación de Matrícula de Armadores Naves Menores a 50 TRB",{"$f":"1440/60","v":24},60,3,63]
["MTOP-014-01-03","MTOP-014-01-03 Actualización de Matrículas de Agencias Navieras por Cambio de Representante Legal para Tráfico Internacional",{"$f":"2880/60","v":48},120,3,123]
["MTOP-014-02-02","MTOP-014-02-02 Renovación de la Matrícula de Agencias Navieras para Tráfico Nacional",{"$f":"2400/60","v":40},100,3,103]
["MTOP-011-01-01","Obtención de Certificado de No Interferencia con Otras Actividades Portuarias",{"$f":"1808/60","v":30.133333333333333},75.333333333333343,3,78.333333333333343]
["MTOP-007-04-07","Revocación de Matrícula de Operadores Portuarios de Carga",{"$f":"1220/60","v":20.333333333333332},50.833333333333329,3,53.833333333333329]
["MTOP-007-02-07","Revocación de Matrícula de Operadores Portuarios de Servicios Conexos",{"$f":"1440/60","v":24},60,3,63]
["MTOP-007-03-04","Actualización de Representante Legal de Operadores Portuarios de Buque",{"$f":"1220/60","v":20.333333333333332},50.833333333333329,3,53.833333333333329]
["MTOP-032-01-02","Aprobación del Diseño Definitivo de la Nave por Construcción (FUERA DEL PERIMETRO URBANO)",{"$f":"7200/60","v":120},300,3,303]
["MTOP-021-01-06","Emisión de la Autorización para facturar con tarifa 0% IVA por la construcción, mantenimiento y reparación de naves como beneficiario de la LEFORTAAC",40,100,3,103]
["MTOP-027-04-02","Emisión de Resolución de Cancelación de Patente de Navegación",{"$f":"7200/60","v":120},300,3,303]
["MTOP-014-02-01","MTOP-014-02-01 Matriculación de Agencias Navieras por Primera Vez para Tráfico Nacional",{"$f":"4800/60","v":80},200,3,203]
["MTOP-014-02-03","MTOP-014-02-03 Actualización de Matrículas de Agencias Navieras por Cambio de Representante Legal para Tráfico Nacional",{"$f":"2880/60","v":48},120,3,123]
["MTOP-007-02-05","Actualización de datos de Matrícula de Operadores Portuarios de Servicios Conexos",{"$f":"2880/60","v":48},120,3,123]
["MTOP-007-04-03","Ampliación de Servicios de Operadores Portuarios de Carga",{"$f":"1220/60","v":20.333333333333332},50.833333333333329,3,53.833333333333329]
["MTOP-035-01-03","Aprobación de planos por Nacionalización (GALAPAGOS ESMERALDAS AMAZONIA)",{"$f":"7200/60","v":120},300,3,303]
["MTOP-015-02-03","Autorización de Entrenamiento para los Aspirantes a Capitanes de Amarre y Control de Carga",{"$f":"960/60","v":16},40,3,43]
["MTOP-012-01-03","Certificación de Aprobación de la Evaluación de protección de instalación portuaria",168,420,3,423]
["MTOP-012-01-04","Certificación de Aprobacion del Plan de proteccion de instalacion portuaria",120,300,3,303]
["MTOP-015-02-04","Certificación de Títulos de Capitanes de Amarre y Control de Carga",{"$f":"960/60","v":16},40,3,43]
["MTOP-027-05-01","Emisión de Registro de Sociedad Clasificadora",80,200,3,203]
["MTOP-014-01-05","MTOP-014-01-05 Inactivación de Matrícula de Agencia Naviera para Tráfico Internacional",32,80,3,83]
["MTOP-007-04-06","Actualización de Registros de Operadores Portuarios de Carga",20.333333333333332,50.833333333333329,3,53.833333333333329]
["MTOP-005-01-02","Actualización y/o Modificación del Permiso de Ocupación",39.25,98.125,3,101.125]
["MTOP-007-02-03","Ampliación de Servicios de Operadores Portuarios de Servicios Conexos",48,120,3,123]
["MTOP-010-02-03","Autorización de Desguace de Naves de Bandera Nacional o Extranjeras",32,80,3,83]
["MTOP-020-03-01","Autorización de Trayectoria Interna de Embarcaciones entre Puertos Nacionales",16,40,0.08,40.08]
["MTOP-004-02-03","Emisión de Permiso de Operación a Estación de Servicios de Balsas Salvavidas Inflables",29.133333333333333,72.833333333333343,0.12,72.953333333333347]
["MTOP-014-01-04","MTOP-014-01-04 Actualización de Matrículas de Agencias Navieras por Extención a otro Puertopara Tráfico Internacional",80,{"$f":"C71*$I$4/160","v":200},0.25,{"$f":"D71+E71","v":200.25}]
["MTOP-010-02-04","Autorización a Buques De Bandera Nacional e Internacional Para Realizar Viajes Extraordinarios Para Puertos Internacionales",16,40,0.25,40.25]
["MTOP-004-01-01","Emisión de Permiso de Construcción, Operación, Modificación y/o Ampliación de Facilidades o Instalaciones Portuarias, Internacional",54.133333333333333,135.33333333333331,0.25,135.58333333333331]
["MTOP-004-02-02","Emisión de Permiso de Operación a Estación de Servicios de Extintores",29.133333333333333,72.833333333333343,0.25,73.083333333333343]
["MTOP-033-02-01","Emisión de Licencia de Modificación y Aprobación de Planos Preliminares de la Nave",120,300,0.25,300.25]
["MTOP-022-02-01","Emisión del Certificado de Seguridad para Buques de Carga.",64,160,1,161]
["MTOP-002-01-04","Inactivación de Matrícula de Armadores Naves Mayores a 50 TRB",24,60,3,63]
["MTOP-021-04-01","Verificación cuatrimestral de naves y bienes importados al amparo de la LEFORTAAC",40,100,3,103]
["MTOP-034-01-03","Aprobación de planos por Legalización de la Construcción (GALAPAGOS ESMERALDAS AMAZONIA)",120,300,3,303]
["MTOP-035-01-01","Aprobación de planos por Nacionalización (DENTRO DEL PERIMETRO URBANO)",120,300,3,303]
["MTOP-032-01-01","Aprobación del Diseño Definitivo de la Nave por Construcción (DENTRO DEL PERIMETRO URBANO)",120,300,3,303]
["MTOP-019-01-04","Emisión de Autorización de Asignación de Muelles para Desguace",48,120,3,123]
["MTOP-006-01-03","Emisión de Permiso de Comercialización de Dispersantes para el Control del Derrame de Hidrocarburos",30.166666666666668,75.416666666666671,3,78.416666666666671]
["MTOP-007-03-01","Matriculación por Primera Vez de Operadores Portuarios de Buque",20.333333333333332,50.833333333333329,3,53.833333333333329]
["MTOP-014-01-01","MTOP-014-01-01 Matriculación de Agencias Navieras por Primera Vez para Tráfico Internacional",80,200,3,203]
["MTOP-007-03-06","Actualización de Registros de Operadores Portuarios de Buque",20.333333333333332,50.833333333333329,0.35,51.18333333333333]
["MTOP-017-01-12","Aprobación de plano de capacidad de combustible (GALAPAGOS ESMERALDAS AMAZONIA)",80,200,0.35,200.35]
["MTOP-015-02-02","Certificación de Títulos de Prácticos",16,40,0.35,40.35]
["MTOP-019-01-03","Emisión de Autorización de Asignación de Muelle para embarcaciones remolcadas",48,120,0.35,120.35]
["MTOP-021-01-02","Emisión de la Autorización de importación de naves como beneficiario de la LEFORTAAC",40,100,0.35,100.35]
["MTOP-036-01-02","Emisión de Registro Definitivo De Consolidadores Y Desconsolidadores De Carga",50,125,0.35,125.35]
["MTOP-031-01-01","Emisión del Certificado de Declaración de Cumplimiento CAP para Buques de Transporte de Hidrocarburos mayores a 15 años de construccion",80,200,0.35,200.35]
["MTOP-004-02-01","Emisión de Permiso de Operación a Astilleros, Parrillas, Varaderos y Factorías Navales",32.133333333333333,80.333333333333343,0.35,80.683333333333337]
["MTOP-007-03-02","Renovación Matrícula de Operadores Portuarios de Buque",20.333333333333332,50.833333333333329,0.35,51.18333333333333]
["MTOP-017-02-03","Supervisión de Prueba de Estabilidad (GALAPAGOS ESMERALDAS AMAZONIA)",80,200,0.35,200.35]
["MTOP-021-03-01","Emisión de la Calificación y registro de personas naturales o jurídicas como beneficiario de la LEFORTAAC",40,100,0.71,100.71]
["MTOP-004-01-02","Emisión de Permiso de Construcción, Operación, Modificación y/o Ampliación de Facilidades o Instalaciones Portuarias, Cabotaje",54.133333333333333,135.33333333333331,0.35,135.68333333333331]
["MTOP-034-02-03","Aprobación de planos por Legalización de la Modificación(GALAPAGOS ESMERALDAS AMAZONIA)",120,300,0.35,300.35000000000002,null,null,null,"Confirmado"]
["MTOP-009-02-04","Autorización de la Exoneración Total o Parcial del Pago de las Tarifas Portuarias a Buques y/o Carga",40,100,0.35,100.35]
["MTOP-012-01-02","Obtención de Asistencia Técnica en la Ejecución de Ejercicios de Protección marítima realizados por las instalaciones portuarias certificadas bajo el código P.B.I.P. (Código de Protección Internacional Portuaria)",48,120,0.35,120.35]
["MTOP-002-04-03","Actualización de Armadores por Inclusión o Exclusión de una Nave Menores a 50 TRB",24,60,3,63]
["MTOP-034-02-01","Aprobación de planos por Legalización de la Modificación (DENTRO DEL PERIMETRO URBANO)",120,300,3,303]
["MTOP-023-05-01","Emisión del Pasavante de Navegación",32,80,3,83]
["MTOP-007-04-01","Matriculación por Primera Vez de Operadores Portuarios de Carga",20.329999999999998,50.824999999999996,3,53.824999999999996]
["MTOP-007-02-06","Actualización de Registros de Operadores Portuarios de Servicios Conexos",48,120,3,123]
["MTOP-035-01-02","Aprobación de planos por Nacionalización (FUERA DEL PERIMETRO URBANO)",120,300,3,303]
["MTOP-005-01-01","Autorización de Ocupación Pago de nueva concesión de zona de playas y bahías",48,120,3,123]
["MTOP-015-02-01","Autorización de Entrenamiento para los Aspirantes a Prácticos",16,40,3,43]
["MTOP-012-01-01","Certificación y Recertificación de una Instalación Portuaria bajo el Código de Protección de Buques y de Instalaciones Portuarias",168,420,3,423]
["MTOP-023-04-02","Emisión del Informe Técnico Favorable para la Importación por Internación Temporal de Buques Bajo Contrato de Asociación, Fletamento, Fletamento a Casco Desnudo, Arriendo, Etc.",80,200,3,203]
["MTOP-007-04-02","Renovación Matrícula de Operadores Portuarios de Carga",20.333333333333332,50.833333333333329,3,53.833333333333329]
["MTOP-010-02-01","Autorización de Rutas, Horarios e Itinerarios de los Servicios Públicos del Transporte Fluvial interno y al exterior",32,80,3,83]
["MTOP-021-02-01","Emisión de la autorización de importación de bienes como beneficiario de la LEFORTAAC",40,100,3,103]
["MTOP-010-02-05","Autorización Excepcional de Prestación de Servicios de cabotaje de hidrocarburos, carga, pasaje y valijas postales",40,100,3,103]
["MTOP-036-01-01","Emisión de Registro Provisional De Consolidadores Y Desconsolidadores De Carga",50,125,0.52,125.52]
["MTOP-029-02-01","Emisión del Certificado de Aprobación del Cuadro de Zafarrancho del Buque",56,140,0.21,140.21]
["MTOP-022-02-02","Emisión del Endoso Anual del Certificado de Seguridad para Buques de Carga.",64,160,3,163]
["MTOP-030-01-01","Emisión del Certificado Internacional de Prevención de la Contaminación por Hidrocarburos, IOPP",80,200,3,203]
["MTOP-010-02-08","Autorización de Rutas, Horarios e Itinerarios de los Servicios Públicos del Transporte Marítimo",16,40,3,43]
["MTOP-031-02-01","Emisión del Certificado De Seguro U Otra Garantía Financiera Relativo A La Responsabilidad Civil Por Daños Causados Por La Contaminación De Las Aguas Del Mar Por Hidrocarburos",80,200,3,203]
["MTOP-034-01-01","Aprobación de planos por Legalización de la Construcción (DENTRO DEL PERIMETRO URBANO)",120,300,3,303]
["MTOP-034-01-02","Aprobación de planos por Legalización de la Construcción (FUERA DEL PERIMETRO URBANO)",120,300,3,303]
["MTOP-032-02-01","Otorgamiento de Licencia de Construcción y Aprobación de Planos Preliminares de la Nave",120,300,3,303]
["MTOP-029-01-01","Emisión del Certificado de Aprobación de Planos de Seguridad y Contraincendios",56,140,3,143]
["MTOP-030-02-01","Emisión del Certificado de Prevención a la Contaminacón por Aguas Sucias",64.166666666666671,160.41666666666669,3,163.41666666666669]
["MTOP-002-01-03","Actualización de Matrícula de Armadores por Cambio de Representante Legal Naves Mayores a 50 TRB",24,60,3,63]
["MTOP-023-04-01","Emisión del Informe Técnico Favorable para la Importación por Nacionalización de Naves",80,200,3,203]
["MTOP-010-01-02","Emisión de Registro de Contrato de de naves de Bandera Nacional",40,100,3,103]
["MTOP-007-02-02","Renovación Matrícula de Operadores Portuarios de Servicios Conexos",48,120,3,123]
["MTOP-017-02-01","Supervisión de Prueba de Estabilidad (DENTRO DEL PERIMETRO URBANO)",80,200,3,203]
["MTOP-007-02-01","Matriculación por Primera Vez de Operadores Portuarios de Servicios Conexos",48,120,3,123]
["MTOP-017-02-02","Supervisión de Prueba de Estabilidad (FUERA DEL PERIMETRO URBANO)",80,200,3,203]
["MTOP-017-01-10","Aprobación de plano de capacidad de combustible (DENTRO DEL PERIMETRO URBANO)",80,200,3,203]
["MTOP-028-01-01","Emisión del Certificado de Estado Rector del Puerto para naves de bandera extranjera que operen bajo internación temporal y fletamento a casco desnudo",72,180,3,183]
["MTOP-014-01-02","MTOP-014-01-02 Renovación de la Matrícula de Agencias Navieras para Tráfico Internacional",40,{"$f":"C135*$I$4/160","v":100},3,{"$f":"D135+E135","v":103}]
["MTOP-002-01-01","Matriculación de Armadores Por Primera Vez Naves Mayores a 50 TRB",48,120,3,123]
["MTOP-025-05-01","Emisión del certificado de Obra Viva",{"$f":"4800/60","v":80},200,3,203]
["MTOP-034-02-02","Aprobación de planos por Legalización de la Modificación (FUERA DEL PERIMETRO URBANO)",{"$f":"7200/60","v":120},300,3,303]
["MTOP-028-02-01","Emisión del Certificado de Inspección de Estado Rector de Puerto a naves de bandera extranjera que ingresan al país en tránsito (dejan carga y retiran carga de puertos del país)",{"$f":"180/60","v":3},7.5,3,10.5]
["MTOP-002-04-02","Renovación de Matrícula de Armadores Naves Menores a 50 TRB",{"$f":"1440/60","v":24},60,3,63]
["MTOP-005-01-05","Delimitación y/o Demarcación de Zonas de Playas y Bahías",{"$f":"1988/60","v":33.133333333333333},82.833333333333343,3,85.833333333333343]
["MTOP-027-01-06","Emisión del Certificado Internacional de arqueo",{"$f":"4800/60","v":80},200,3,203]
["MTOP-027-02-01","Emisión del certificado internacional de líneas de carga",{"$f":"4800/60","v":80},200,3,203]
["MTOP-013-02-02","Emisión de Certificado de Operación Especial para Vehículos Mayores a 60 Ton",{"$f":"7200/60","v":120},300,3,303]
["MTOP-017-02-04","Aprobación de Libreto de Estabilidad de la nave",{"$f":"7200/60","v":120},300,3,303]
["MTOP-010-01-01","Emisión de Registro de Tarifas y Recargos de Fletes Internacionales",{"$f":"1440/60","v":24},60,3,63]
["MTOP-017-01-11","Aprobación de planos de capacidad de combustible (FUERA DEL PERIMETRO URBANO)",{"$f":"4800/60","v":80},200,3,203]
["MTOP-002-04-01","Matriculación de Armadores Por Primera Vez Naves Menores a 50 TRB",{"$f":"1440/60","v":24},60,3,63]
["MTOP-025-04-01","Realización de la Inspección para determinar el Avalúo de las naves",{"$f":"4800/60","v":80},200,3,203]
["MTOP-019-01-05","Emisión de Autorización de Asignación de Muelles para Mantenimiento y/o Reparación",{"$f":"2880/60","v":48},120,3,123]
["MTOP-027-01-02","Emisión del Certificado Nacional de arqueo",{"$f":"4800/60","v":80},200,3,203]
["MTOP-005-01-08","Emisión de Matrícula Concesión de Zona de Playas y Bahías (Anual)",{"$f":"1178/60","v":19.633333333333333},49.083333333333329,3,52.083333333333329]
["MTOP-027-03-01","Emisión del Permiso de Vare y Desvare",{"$f":"1200/60","v":20},50,3,53]
["MTOP-020-01-01","Emisión de Permisos de Tráfico Marítimo y Fluvial para naves nacionales y extranjeras",{"$f":"960/60","v":16},40,3,43]
["MTOP-013-02-01","Emisión de Certificado de Operación Especial para Vehículos entre 48 - 60 Toneladas",{"$f":"7200/60","v":120},300,3,303]
["MTOP-002-01-02","Renovación de Matrícula de Armadores Naves Mayores a 50 TRB",{"$f":"1440/60","v":24},60,3,63]
["MTOP-001-01-01","Matriculación de equipo caminero y maquinaria pesada primera vez",{"$f":"7200/60","v":120},300,3,303]
["MTOP-019-01-01","Emisión de Autorización de Asignación de Muelle para Tráfico de Cabotaje",{"$f":"2880/60","v":48},120,3,123]
["MTOP-001-01-03","Renovación de matrícula por cambio de propietario del equipo caminero y la maquinaria pesada",{"$f":"7200/60","v":120},300,3,303]
["MTOP-013-03-01","Autorización de Importación",{"$f":"7200/60","v":120},300,3,303]
["MTOP-019-01-02","Emisión de Autorización de Asignación de Muelle para Tráfico Internacional",{"$f":"2880/60","v":48},120,3,123]
["MTOP-009-02-01","Autorización de Transporte de Carga Peligrosa a la Provincia insular de Galápagos y Viceversa",{"$f":"1440/60","v":24},60,3,63]
["MTOP-015-01-03","Matriculación de Personal Marítimo Portuario",{"$f":"960/60","v":16},40,3,43]
["MTOP-009-02-05","Obtención de Permisos Especiales de Ingreso a Instalaciones Portuarias",{"$f":"1440/60","v":24},60,3,63]
["MTOP-001-01-02","Renovación de matrícula de equipo caminero y maquinaria pesada",{"$f":"7200/60","v":120},300,3,303]
["MTOP-001-01-05","Certificación de la propiedad, gravámenes, arrendamiento mercantil y venta con reserva de dominio",{"$f":"960/60","v":16},40,3,43]
["MTOP-013-01-01","Emisión de Certificado de Operación Regular",1.5,3.75,3,6.75]

{"sheet":"RESUMEN DE COSTOS AP","index":4,"n_rows":166,"n_cols":4,"rows_kept":166,"cut":false,"hidden":false,"merged":[[0,0,0,5],[1,0,1,5]]}
["PRIORIZACIÓN DE TRÁMITES ADMINISTRATIVOS"]
["COSTOS PARA LA ADMINISTRACIÓN PÚBLICA"]
[]
["IDENTIFICADOR","TRÁMITE","COSTO PARA LA ADM. PÚBLICA","PUNTUACIÓN"]
["MTOP-013-01-01","Emisión de Certificado de Operación Regular",6.75,5]
["MTOP-009-02-06","Autorización de Fondeo en Terminales Petroleros",7,5]
["MTOP-028-02-01","Emisión del Certificado de Inspección de Estado Rector de Puerto a naves de bandera extranjera que ingresan al país en tránsito (dejan carga y retiran carga de puertos del país)",10.5,5]
["MTOP-020-03-01","Autorización de Trayectoria Interna de Embarcaciones entre Puertos Nacionales",40.08,5]
["MTOP-010-02-04","Autorización a Buques De Bandera Nacional e Internacional Para Realizar Viajes Extraordinarios Para Puertos Internacionales",40.25,5]
["MTOP-015-02-02","Certificación de Títulos de Prácticos",40.35,5]
["MTOP-015-02-03","Autorización de Entrenamiento para los Aspirantes a Capitanes de Amarre y Control de Carga",43,5]
["MTOP-015-02-01","Autorización de Entrenamiento para los Aspirantes a Prácticos",43,5]
["MTOP-010-02-08","Autorización de Rutas, Horarios e Itinerarios de los Servicios Públicos del Transporte Marítimo",43,5]
["MTOP-001-01-05","Certificación de la propiedad, gravámenes, arrendamiento mercantil y venta con reserva de dominio",43,5]
["MTOP-001-01-04","Certificación de matrícula por perdida de equipo caminero y maquinaria pesada",43,5]
["MTOP-015-02-04","Certificación de Títulos de Capitanes de Amarre y Control de Carga",43,5]
["MTOP-020-01-01","Emisión de Permisos de Tráfico Marítimo y Fluvial para naves nacionales y extranjeras",43,5]
["MTOP-015-01-03","Matriculación de Personal Marítimo Portuario",43,5]
["MTOP-007-03-06","Actualización de Registros de Operadores Portuarios de Buque",51.18333333333333,5]
["MTOP-007-03-03","Ampliación de Servicios de Operadores Portuarios de Buque",51.18333333333333,5]
["MTOP-007-03-02","Renovación Matrícula de Operadores Portuarios de Buque",51.18333333333333,5]
["MTOP-005-01-08","Emisión de Matrícula Concesión de Zona de Playas y Bahías (Anual)",52.083333333333329,5]
["MTOP-027-03-01","Emisión del Permiso de Vare y Desvare",53,5]
["MTOP-007-04-01","Matriculación por Primera Vez de Operadores Portuarios de Carga",53.824999999999996,5]
["MTOP-007-03-05","Actualización de datos de Matrícula de Operadores Portuarios de Buque",53.833333333333329,5]
["MTOP-007-04-05","Actualización de datos de Matrícula de Operadores Portuarios de Carga",53.833333333333329,5]
["MTOP-007-04-06","Actualización de Registros de Operadores Portuarios de Carga",53.833333333333329,5]
["MTOP-007-03-04","Actualización de Representante Legal de Operadores Portuarios de Buque",53.833333333333329,5]
["MTOP-007-04-04","Actualización de Representante Legal de Operadores Portuarios de Carga",53.833333333333329,5]
["MTOP-007-04-03","Ampliación de Servicios de Operadores Portuarios de Carga",53.833333333333329,5]
["MTOP-007-03-01","Matriculación por Primera Vez de Operadores Portuarios de Buque",53.833333333333329,5]
["MTOP-007-04-02","Renovación Matrícula de Operadores Portuarios de Carga",53.833333333333329,5]
["MTOP-007-01-02","Renovación Matrícula de Operadores Portuarios de Pasajeros",53.833333333333329,5]
["MTOP-007-03-07","Revocación de Matrícula de Operadores Portuarios de Buque",53.833333333333329,5]
["MTOP-007-04-07","Revocación de Matrícula de Operadores Portuarios de Carga",53.833333333333329,5]
["MTOP-002-04-03","Actualización de Armadores por Inclusión o Exclusión de una Nave Menores a 50 TRB",63,5]
["MTOP-002-01-03","Actualización de Matrícula de Armadores por Cambio de Representante Legal Naves Mayores a 50 TRB",63,5]
["MTOP-009-02-01","Autorización de Transporte de Carga Peligrosa a la Provincia insular de Galápagos y Viceversa",63,5]
["MTOP-009-02-02","Autorización de Transporte de Carga Peligrosa en rutas nacionales",63,5]
["MTOP-009-02-03","Autorización para Realizar Actividades No Comerciales en la Jurisdicción de un Puerto Comercial o Terminal Petrolera",63,5]
["MTOP-010-01-01","Emisión de Registro de Tarifas y Recargos de Fletes Internacionales",63,5]
["MTOP-002-01-04","Inactivación de Matrícula de Armadores Naves Mayores a 50 TRB",63,5]
["MTOP-002-04-04","Inactivación de Matrícula de Armadores Naves Menores a 50 TRB",63,5]
["MTOP-002-04-01","Matriculación de Armadores Por Primera Vez Naves Menores a 50 TRB",63,5]
["MTOP-009-02-05","Obtención de Permisos Especiales de Ingreso a Instalaciones Portuarias",63,5]
["MTOP-002-01-02","Renovación de Matrícula de Armadores Naves Mayores a 50 TRB",63,5]
["MTOP-002-04-02","Renovación de Matrícula de Armadores Naves Menores a 50 TRB",63,5]
["MTOP-007-02-07","Revocación de Matrícula de Operadores Portuarios de Servicios Conexos",63,5]
["MTOP-004-02-03","Emisión de Permiso de Operación a Estación de Servicios de Balsas Salvavidas Inflables",72.953333333333347,5]
["MTOP-004-02-02","Emisión de Permiso de Operación a Estación de Servicios de Extintores",73.083333333333343,5]
["MTOP-011-01-01","Obtención de Certificado de No Interferencia con Otras Actividades Portuarias",78.333333333333343,5]
["MTOP-006-01-03","Emisión de Permiso de Comercialización de Dispersantes para el Control del Derrame de Hidrocarburos",78.416666666666671,5]
["MTOP-004-02-01","Emisión de Permiso de Operación a Astilleros, Parrillas, Varaderos y Factorías Navales",80.683333333333337,5]
["MTOP-010-02-03","Autorización de Desguace de Naves de Bandera Nacional o Extranjeras",83,5]
["MTOP-010-02-01","Autorización de Rutas, Horarios e Itinerarios de los Servicios Públicos del Transporte Fluvial interno y al exterior",83,5]
["MTOP-023-05-01","Emisión del Pasavante de Navegación",83,5]
["MTOP-014-01-05","MTOP-014-01-05 Inactivación de Matrícula de Agencia Naviera para Tráfico Internacional",83,5]
["MTOP-014-02-05","MTOP-014-02-05 Inactivación de Matrícula de Agencia Naviera para Tráfico Nacional",83,5]
["MTOP-006-01-04","Aprobación de Plan de Contingencia Zonal para Control de Derrame por Hidrocarburos o Productos Quimicos",83.683333333333337,10]
["MTOP-005-01-05","Delimitación y/o Demarcación de Zonas de Playas y Bahías",85.833333333333343,10]
["MTOP-006-01-02","Calificación de Empresas Proveedores de Equipos y Materiales para el Control de Derrame de Hidrocarburos",86.333333333333343,10]
["MTOP-006-01-01","Calificación de Empresas que Prestan Servicios para el Control de Derrame de Hidrocarburos",86.333333333333343,10]
["MTOP-009-02-04","Autorización de la Exoneración Total o Parcial del Pago de las Tarifas Portuarias a Buques y/o Carga",100.35,10]
["MTOP-021-01-02","Emisión de la Autorización de importación de naves como beneficiario de la LEFORTAAC",100.35,10]
["MTOP-021-03-01","Emisión de la Calificación y registro de personas naturales o jurídicas como beneficiario de la LEFORTAAC",100.71,10]
["MTOP-021-01-05","Emisión de la Autorización de importación de naves bajo el regimen de internación temporal para celebrar un contrato de fletamento a casco desnudo como beneficiario de la LEFORTAAC",101,10]
["MTOP-005-01-02","Actualización y/o Modificación del Permiso de Ocupación",101.125,10]
["MTOP-005-01-04","Autorización de la Derogatoria del Permiso de Ocupación",101.125,10]
["MTOP-005-01-03","Autorización del Traspaso de la Ocupación",101.125,10]
["MTOP-010-02-05","Autorización Excepcional de Prestación de Servicios de cabotaje de hidrocarburos, carga, pasaje y valijas postales",103,10]
["MTOP-021-02-01","Emisión de la autorización de importación de bienes como beneficiario de la LEFORTAAC",103,10]
["MTOP-021-01-06","Emisión de la Autorización para facturar con tarifa 0% IVA por la construcción, mantenimiento y reparación de naves como beneficiario de la LEFORTAAC",103,10]
["MTOP-010-01-02","Emisión de Registro de Contrato de de naves de Bandera Nacional",103,10]
["MTOP-014-01-02","MTOP-014-01-02 Renovación de la Matrícula de Agencias Navieras para Tráfico Internacional",103,10]
["MTOP-014-02-02","MTOP-014-02-02 Renovación de la Matrícula de Agencias Navieras para Tráfico Nacional",103,10]
["MTOP-021-04-01","Verificación cuatrimestral de naves y bienes importados al amparo de la LEFORTAAC",103,10]
["MTOP-007-02-04","Actualización de Representante Legal de Operadores Portuarios de Servicios Conexos",120.35,10]
["MTOP-007-01-03","Ampliación de Servicios de Operadores Portuarios de Pasajeros",120.35,10]
["MTOP-019-01-03","Emisión de Autorización de Asignación de Muelle para embarcaciones remolcadas",120.35,10]
["MTOP-012-01-02","Obtención de Asistencia Técnica en la Ejecución de Ejercicios de Protección marítima realizados por las instalaciones portuarias certificadas bajo el código P.B.I.P. (Código de Protección Internacional Portuaria)",120.35,10]
["MTOP-007-01-05","Actualización de datos de Matrícula de Operadores Portuarios de Pasajeros",123,10]
["MTOP-007-02-05","Actualización de datos de Matrícula de Operadores Portuarios de Servicios Conexos",123,10]
["MTOP-007-01-06","Actualización de Registros de Operadores Portuarios de Pasajeros",123,10]
["MTOP-007-02-06","Actualización de Registros de Operadores Portuarios de Servicios Conexos",123,10]
["MTOP-007-01-04","Actualización de Representante Legal de Operadores Portuarios de Pasajeros",123,10]
["MTOP-007-02-03","Ampliación de Servicios de Operadores Portuarios de Servicios Conexos",123,10]
["MTOP-005-01-01","Autorización de Ocupación Pago de nueva concesión de zona de playas y bahías",123,10]
["MTOP-019-01-01","Emisión de Autorización de Asignación de Muelle para Tráfico de Cabotaje",123,10]
["MTOP-019-01-02","Emisión de Autorización de Asignación de Muelle para Tráfico Internacional",123,10]
["MTOP-019-01-06","Emisión de Autorización de Asignación de Muelles para Desembarque/Embarque de Clase IMDG en Puerto Comercial y/o Terminales Privadas.",123,10]
["MTOP-019-01-04","Emisión de Autorización de Asignación de Muelles para Desguace",123,10]
["MTOP-019-01-05","Emisión de Autorización de Asignación de Muelles para Mantenimiento y/o Reparación",123,10]
["MTOP-019-01-07","Emisión de Autorización de Desvío de cargas a otro puerto por fuerza mayor o eventos naturales",123,10]
["MTOP-002-01-01","Matriculación de Armadores Por Primera Vez Naves Mayores a 50 TRB",123,10]
["MTOP-007-01-01","Matriculación por Primera Vez de Operadores Portuarios de Pasajeros",123,10]
["MTOP-007-02-01","Matriculación por Primera Vez de Operadores Portuarios de Servicios Conexos",123,10]
["MTOP-014-01-03","MTOP-014-01-03 Actualización de Matrículas de Agencias Navieras por Cambio de Representante Legal para Tráfico Internacional",123,10]
["MTOP-014-02-03","MTOP-014-02-03 Actualización de Matrículas de Agencias Navieras por Cambio de Representante Legal para Tráfico Nacional",123,10]
["MTOP-007-02-02","Renovación Matrícula de Operadores Portuarios de Servicios Conexos",123,10]
["MTOP-007-01-07","Revocación de Matrícula de Operadores Portuarios de Pasajeros",123,10]
["MTOP-036-01-02","Emisión de Registro Definitivo De Consolidadores Y Desconsolidadores De Carga",125.35,10]
["MTOP-036-01-01","Emisión de Registro Provisional De Consolidadores Y Desconsolidadores De Carga",125.52,10]
["MTOP-004-01-01","Emisión de Permiso de Construcción, Operación, Modificación y/o Ampliación de Facilidades o Instalaciones Portuarias, Internacional",135.58333333333331,10]
["MTOP-004-01-02","Emisión de Permiso de Construcción, Operación, Modificación y/o Ampliación de Facilidades o Instalaciones Portuarias, Cabotaje",135.68333333333331,10]
["MTOP-029-02-01","Emisión del Certificado de Aprobación del Cuadro de Zafarrancho del Buque",140.21,10]
["MTOP-029-01-01","Emisión del Certificado de Aprobación de Planos de Seguridad y Contraincendios",143,10]
["MTOP-022-02-01","Emisión del Certificado de Seguridad para Buques de Carga.",161,10]
["MTOP-022-02-02","Emisión del Endoso Anual del Certificado de Seguridad para Buques de Carga.",163,10]
["MTOP-030-02-01","Emisión del Certificado de Prevención a la Contaminacón por Aguas Sucias",163.41666666666669,10]
["MTOP-028-01-01","Emisión del Certificado de Estado Rector del Puerto para naves de bandera extranjera que operen bajo internación temporal y fletamento a casco desnudo",183,10]
["MTOP-014-01-04","MTOP-014-01-04 Actualización de Matrículas de Agencias Navieras por Extención a otro Puertopara Tráfico Internacional",200.25,10]
["MTOP-017-01-12","Aprobación de plano de capacidad de combustible (GALAPAGOS ESMERALDAS AMAZONIA)",200.35,10]
["MTOP-031-01-01","Emisión del Certificado de Declaración de Cumplimiento CAP para Buques de Transporte de Hidrocarburos mayores a 15 años de construccion",200.35,10]
["MTOP-017-02-03","Supervisión de Prueba de Estabilidad (GALAPAGOS ESMERALDAS AMAZONIA)",200.35,10]
["MTOP-017-01-10","Aprobación de plano de capacidad de combustible (DENTRO DEL PERIMETRO URBANO)",203,20]
["MTOP-017-01-11","Aprobación de planos de capacidad de combustible (FUERA DEL PERIMETRO URBANO)",203,20]
["MTOP-027-05-01","Emisión de Registro de Sociedad Clasificadora",203,20]
["MTOP-023-04-03","Emisión deI informe Técnico Favorable para la Importación de Naves para el Desguace",203,20]
["MTOP-008-02-02","Emisión del Certificado de Aprobación del Sipe, Sistema Integrado de Polución y Emergencia.",203,20]
["MTOP-025-05-01","Emisión del certificado de Obra Viva",203,20]
["MTOP-031-02-01","Emisión del Certificado De Seguro U Otra Garantía Financiera Relativo A La Responsabilidad Civil Por Daños Causados Por La Contaminación De Las Aguas Del Mar Por Hidrocarburos",203,20]
["MTOP-027-01-06","Emisión del Certificado Internacional de arqueo",203,20]
["MTOP-027-02-01","Emisión del certificado internacional de líneas de carga",203,20]
["MTOP-030-01-01","Emisión del Certificado Internacional de Prevención de la Contaminación por Hidrocarburos, IOPP",203,20]
["MTOP-027-01-02","Emisión del Certificado Nacional de arqueo",203,20]
["MTOP-025-04-02","Emisión del Informe de Peritajes Marítimos de nave",203,20]
["MTOP-023-04-02","Emisión del Informe Técnico Favorable para la Importación por Internación Temporal de Buques Bajo Contrato de Asociación, Fletamento, Fletamento a Casco Desnudo, Arriendo, Etc.",203,20]
["MTOP-023-04-01","Emisión del Informe Técnico Favorable para la Importación por Nacionalización de Naves",203,20]
["MTOP-014-01-01","MTOP-014-01-01 Matriculación de Agencias Navieras por Primera Vez para Tráfico Internacional",203,20]
["MTOP-014-02-01","MTOP-014-02-01 Matriculación de Agencias Navieras por Primera Vez para Tráfico Nacional",203,20]
["MTOP-014-02-04","MTOP-014-02-04 Actualización de Matrículas de Agencias Navieras por Extención a otro Puerto para Tráfico Nacional",203,20]
["MTOP-025-04-01","Realización de la Inspección para determinar el Avalúo de las naves",203,20]
["MTOP-017-02-01","Supervisión de Prueba de Estabilidad (DENTRO DEL PERIMETRO URBANO)",203,20]
["MTOP-017-02-02","Supervisión de Prueba de Estabilidad (FUERA DEL PERIMETRO URBANO)",203,20]
["MTOP-033-02-01","Emisión de Licencia de Modificación y Aprobación de Planos Preliminares de la Nave",300.25,20]
["MTOP-035-02-01","Aprobación de Planos por Contrato de Fletamento, Arrendamiento, Asociación, Leasing, Fletamento a Casco Desnudo (DENTRO DEL PERIMETRO URBANO)",300.35000000000002,20]
["MTOP-035-02-02","Aprobación de Planos por Contrato de Fletamento, Arrendamiento, Asociación, Leasing, Fletamento a Casco Desnudo (FUERA DEL PERIMETRO URBANO)",300.35000000000002,20]
["MTOP-035-02-03","Aprobación de Planos por Contrato de Fletamento, Arrendamiento, Asociación, Leasing, Fletamento a Casco Desnudo (GALAPAGOS ESMERALDAS AMAZONIA)",300.35000000000002,20]
["MTOP-034-02-03","Aprobación de planos por Legalización de la Modificación(GALAPAGOS ESMERALDAS AMAZONIA)",300.35000000000002,20]
["MTOP-032-01-03","Aprobación del Diseño Definitivo de la Nave por Construcción (GALAPAGOS ESMERALDAS AMAZONIA)",300.35000000000002,20]
["MTOP-017-02-04","Aprobación de Libreto de Estabilidad de la nave",303,20]
["MTOP-034-01-01","Aprobación de planos por Legalización de la Construcción (DENTRO DEL PERIMETRO URBANO)",303,20]
["MTOP-034-01-02","Aprobación de planos por Legalización de la Construcción (FUERA DEL PERIMETRO URBANO)",303,20]
["MTOP-034-01-03","Aprobación de planos por Legalización de la Construcción (GALAPAGOS ESMERALDAS AMAZONIA)",303,20]
["MTOP-034-02-01","Aprobación de planos por Legalización de la Modificación (DENTRO DEL PERIMETRO URBANO)",303,20]
["MTOP-034-02-02","Aprobación de planos por Legalización de la Modificación (FUERA DEL PERIMETRO URBANO)",303,20]
["MTOP-035-01-01","Aprobación de planos por Nacionalización (DENTRO DEL PERIMETRO URBANO)",303,20]
["MTOP-035-01-02","Aprobación de planos por Nacionalización (FUERA DEL PERIMETRO URBANO)",303,20]
["MTOP-035-01-03","Aprobación de planos por Nacionalización (GALAPAGOS ESMERALDAS AMAZONIA)",303,20]
["MTOP-032-01-01","Aprobación del Diseño Definitivo de la Nave por Construcción (DENTRO DEL PERIMETRO URBANO)",303,20]
["MTOP-032-01-02","Aprobación del Diseño Definitivo de la Nave por Construcción (FUERA DEL PERIMETRO URBANO)",303,20]
["MTOP-033-01-01","Aprobación del Diseño Definitivo de la Nave por Modificación (DENTRO DEL PERIMETRO URBANO)",303,20]
["MTOP-033-01-02","Aprobación del Diseño Definitivo de la Nave por Modificación (FUERA DEL PERIMETRO URBANO)",303,20]
["MTOP-033-01-03","Aprobación del Diseño Definitivo de la Nave por Modificación (GALAPAGOS ESMERALDAS AMAZONIA)",303,20]
["MTOP-013-03-01","Autorización de Importación",303,20]
["MTOP-012-01-04","Certificación de Aprobacion del Plan de proteccion de instalacion portuaria",303,20]
["MTOP-013-02-01","Emisión de Certificado de Operación Especial para Vehículos entre 48 - 60 Toneladas",303,20]
["MTOP-013-02-02","Emisión de Certificado de Operación Especial para Vehículos Mayores a 60 Ton",303,20]
["MTOP-027-04-02","Emisión de Resolución de Cancelación de Patente de Navegación",303,20]
["MTOP-001-01-01","Matriculación de equipo caminero y maquinaria pesada primera vez",303,20]
["MTOP-032-02-01","Otorgamiento de Licencia de Construcción y Aprobación de Planos Preliminares de la Nave",303,20]
["MTOP-001-01-02","Renovación de matrícula de equipo caminero y maquinaria pesada",303,20]
["MTOP-001-01-03","Renovación de matrícula por cambio de propietario del equipo caminero y la maquinaria pesada",303,20]
["MTOP-012-01-03","Certificación de Aprobación de la Evaluación de protección de instalación portuaria",423,20]
["MTOP-012-01-01","Certificación y Recertificación de una Instalación Portuaria bajo el Código de Protección de Buques y de Instalaciones Portuarias",423,20]
["MTOP-012-01-05","Corrección al Plan de Protección de Instalaciones Portuarias",423,20]

{"sheet":"AUXILIAR COSTO ADMINISTRACIÓN","index":5,"n_rows":20,"n_cols":3,"rows_kept":20,"cut":false,"hidden":false,"merged":[[1,1,1,2]]}
[]
["TRÁMITE:"]
["NO.","ACTIVIDAD","TIEMPO (HORAS)"]
[1]
[2]
[3]
[4]
[5]
[6]
[7]
[8]
[9]
[10]
[11]
[12]
[13]
[14]
[15]
[]
[null,"SUMATORIA ACTIVIDADES",{"$f":"SUM(C4:C19)","v":0}]

{"sheet":"TIEMPO DE RESPUESTA","index":6,"n_rows":166,"n_cols":4,"rows_kept":166,"cut":false,"hidden":false,"merged":[[0,0,0,3],[1,0,1,3]]}
["PRIORIZACIÓN DE TRÁMITES ADMINISTRATIVOS"]
["TIEMPO DE RESPUESTA"]
[]
["IDENTIFICADOR","TRÁMITE","TIEMPO RESPUESTA (horas laborables)","PUNTUACIÓN"]
["MTOP-007-03-05","Actualización de datos de Matrícula de Operadores Portuarios de Buque",{"$f":"1220/60","v":20.333333333333332},0]
["MTOP-007-04-05","Actualización de datos de Matrícula de Operadores Portuarios de Carga",{"$f":"1220/60","v":20.333333333333332},0]
["MTOP-007-01-05","Actualización de datos de Matrícula de Operadores Portuarios de Pasajeros",{"$f":"2880/60","v":48},30]
["MTOP-007-01-06","Actualización de Registros de Operadores Portuarios de Pasajeros",48,30]
["MTOP-007-01-04","Actualización de Representante Legal de Operadores Portuarios de Pasajeros",48,30]
["MTOP-007-02-04","Actualización de Representante Legal de Operadores Portuarios de Servicios Conexos",48,30]
["MTOP-007-03-03","Ampliación de Servicios de Operadores Portuarios de Buque",{"$f":"1220/60","v":20.333333333333332},0]
["MTOP-007-01-03","Ampliación de Servicios de Operadores Portuarios de Pasajeros",{"$f":"2880/60","v":48},30]
["MTOP-006-01-04","Aprobación de Plan de Contingencia Zonal para Control de Derrame por Hidrocarburos o Productos Quimicos",{"$f":"2000/60","v":33.333333333333336},0]
["MTOP-035-02-01","Aprobación de Planos por Contrato de Fletamento, Arrendamiento, Asociación, Leasing, Fletamento a Casco Desnudo (DENTRO DEL PERIMETRO URBANO)",{"$f":"7200/60","v":120},30]
["MTOP-035-02-02","Aprobación de Planos por Contrato de Fletamento, Arrendamiento, Asociación, Leasing, Fletamento a Casco Desnudo (FUERA DEL PERIMETRO URBANO)",{"$f":"7200/60","v":120},30]
["MTOP-035-02-03","Aprobación de Planos por Contrato de Fletamento, Arrendamiento, Asociación, Leasing, Fletamento a Casco Desnudo (GALAPAGOS ESMERALDAS AMAZONIA)",{"$f":"7200/60","v":120},30]
["MTOP-032-01-03","Aprobación del Diseño Definitivo de la Nave por Construcción (GALAPAGOS ESMERALDAS AMAZONIA)",{"$f":"7200/60","v":120},30]
["MTOP-009-02-06","Autorización de Fondeo en Terminales Petroleros",{"$f":"96/60","v":1.6},0]
["MTOP-005-01-04","Autorización de la Derogatoria del Permiso de Ocupación",{"$f":"2355/60","v":39.25},0]
["MTOP-009-02-02","Autorización de Transporte de Carga Peligrosa en rutas nacionales",{"$f":"1440/60","v":24},0]
["MTOP-009-02-03","Autorización para Realizar Actividades No Comerciales en la Jurisdicción de un Puerto Comercial o Terminal Petrolera",{"$f":"1440/60","v":24},0]
["MTOP-006-01-02","Calificación de Empresas Proveedores de Equipos y Materiales para el Control de Derrame de Hidrocarburos",{"$f":"2000/60","v":33.333333333333336},0]
["MTOP-006-01-01","Calificación de Empresas que Prestan Servicios para el Control de Derrame de Hidrocarburos",{"$f":"2000/60","v":33.333333333333336},0]
["MTOP-001-01-04","Certificación de matrícula por perdida de equipo caminero y maquinaria pesada",16,0]
["MTOP-012-01-05","Corrección al Plan de Protección de Instalaciones Portuarias",{"$f":"10080/60","v":168},30]
["MTOP-019-01-06","Emisión de Autorización de Asignación de Muelles para Desembarque/Embarque de Clase IMDG en Puerto Comercial y/o Terminales Privadas.",{"$f":"2880/60","v":48},30]
["MTOP-019-01-07","Emisión de Autorización de Desvío de cargas a otro puerto por fuerza mayor o eventos naturales",{"$f":"2880/60","v":48},30]
["MTOP-021-01-05","Emisión de la Autorización de importación de naves bajo el regimen de internación temporal para celebrar un contrato de fletamento a casco desnudo como beneficiario de la LEFORTAAC",40,0]
["MTOP-023-04-03","Emisión deI informe Técnico Favorable para la Importación de Naves para el Desguace",{"$f":"4800/60","v":80},30]
["MTOP-008-02-02","Emisión del Certificado de Aprobación del Sipe, Sistema Integrado de Polución y Emergencia.",{"$f":"4800/60","v":80},30]
["MTOP-025-04-02","Emisión del Informe de Peritajes Marítimos de nave",{"$f":"4800/60","v":80},30]
["MTOP-007-01-01","Matriculación por Primera Vez de Operadores Portuarios de Pasajeros",{"$f":"2880/60","v":48},30]
["MTOP-014-02-04","MTOP-014-02-04 Actualización de Matrículas de Agencias Navieras por Extención a otro Puerto para Tráfico Nacional",{"$f":"4800/60","v":80},30]
["MTOP-014-02-05","MTOP-014-02-05 Inactivación de Matrícula de Agencia Naviera para Tráfico Nacional",{"$f":"1920/60","v":32},0]
["MTOP-007-01-02","Renovación Matrícula de Operadores Portuarios de Pasajeros",{"$f":"1220/60","v":20.333333333333332},0]
["MTOP-007-03-07","Revocación de Matrícula de Operadores Portuarios de Buque",{"$f":"1220/60","v":20.333333333333332},0]
["MTOP-007-01-07","Revocación de Matrícula de Operadores Portuarios de Pasajeros",{"$f":"2880/60","v":48},30]
["MTOP-007-04-04","Actualización de Representante Legal de Operadores Portuarios de Carga",{"$f":"1220/60","v":20.333333333333332},0]
["MTOP-033-01-01","Aprobación del Diseño Definitivo de la Nave por Modificación (DENTRO DEL PERIMETRO URBANO)",{"$f":"7200/60","v":120},30]
["MTOP-033-01-02","Aprobación del Diseño Definitivo de la Nave por Modificación (FUERA DEL PERIMETRO URBANO)",{"$f":"7200/60","v":120},30]
["MTOP-033-01-03","Aprobación del Diseño Definitivo de la Nave por Modificación (GALAPAGOS ESMERALDAS AMAZONIA)",{"$f":"7200/60","v":120},30]
["MTOP-005-01-03","Autorización del Traspaso de la Ocupación",{"$f":"2355/60","v":39.25},0]
["MTOP-002-04-04","Inactivación de Matrícula de Armadores Naves Menores a 50 TRB",{"$f":"1440/60","v":24},0]
["MTOP-014-01-03","MTOP-014-01-03 Actualización de Matrículas de Agencias Navieras por Cambio de Representante Legal para Tráfico Internacional",{"$f":"2880/60","v":48},30]
["MTOP-014-02-02","MTOP-014-02-02 Renovación de la Matrícula de Agencias Navieras para Tráfico Nacional",{"$f":"2400/60","v":40},0]
["MTOP-011-01-01","Obtención de Certificado de No Interferencia con Otras Actividades Portuarias",{"$f":"1808/60","v":30.133333333333333},0]
["MTOP-007-04-07","Revocación de Matrícula de Operadores Portuarios de Carga",{"$f":"1220/60","v":20.333333333333332},0]
["MTOP-007-02-07","Revocación de Matrícula de Operadores Portuarios de Servicios Conexos",{"$f":"1440/60","v":24},0]
["MTOP-007-03-04","Actualización de Representante Legal de Operadores Portuarios de Buque",{"$f":"1220/60","v":20.333333333333332},0]
["MTOP-032-01-02","Aprobación del Diseño Definitivo de la Nave por Construcción (FUERA DEL PERIMETRO URBANO)",{"$f":"7200/60","v":120},30]
["MTOP-021-01-06","Emisión de la Autorización para facturar con tarifa 0% IVA por la construcción, mantenimiento y reparación de naves como beneficiario de la LEFORTAAC",40,0]
["MTOP-027-04-02","Emisión de Resolución de Cancelación de Patente de Navegación",{"$f":"7200/60","v":120},30]
["MTOP-014-02-01","MTOP-014-02-01 Matriculación de Agencias Navieras por Primera Vez para Tráfico Nacional",{"$f":"4800/60","v":80},30]
["MTOP-014-02-03","MTOP-014-02-03 Actualización de Matrículas de Agencias Navieras por Cambio de Representante Legal para Tráfico Nacional",{"$f":"2880/60","v":48},30]
["MTOP-007-02-05","Actualización de datos de Matrícula de Operadores Portuarios de Servicios Conexos",{"$f":"2880/60","v":48},30]
["MTOP-007-04-03","Ampliación de Servicios de Operadores Portuarios de Carga",{"$f":"1220/60","v":20.333333333333332},0]
["MTOP-035-01-03","Aprobación de planos por Nacionalización (GALAPAGOS ESMERALDAS AMAZONIA)",{"$f":"7200/60","v":120},30]
["MTOP-015-02-03","Autorización de Entrenamiento para los Aspirantes a Capitanes de Amarre y Control de Carga",{"$f":"960/60","v":16},0]
["MTOP-012-01-03","Certificación de Aprobación de la Evaluación de protección de instalación portuaria",168,30]
["MTOP-012-01-04","Certificación de Aprobacion del Plan de proteccion de instalacion portuaria",120,30]
["MTOP-015-02-04","Certificación de Títulos de Capitanes de Amarre y Control de Carga",{"$f":"960/60","v":16},0]
["MTOP-027-05-01","Emisión de Registro de Sociedad Clasificadora",80,30]
["MTOP-014-01-05","MTOP-014-01-05 Inactivación de Matrícula de Agencia Naviera para Tráfico Internacional",32,0]
["MTOP-007-04-06","Actualización de Registros de Operadores Portuarios de Carga",20.333333333333332,0]
["MTOP-005-01-02","Actualización y/o Modificación del Permiso de Ocupación",39.25,0]
["MTOP-007-02-03","Ampliación de Servicios de Operadores Portuarios de Servicios Conexos",48,30]
["MTOP-010-02-03","Autorización de Desguace de Naves de Bandera Nacional o Extranjeras",32,0]
["MTOP-020-03-01","Autorización de Trayectoria Interna de Embarcaciones entre Puertos Nacionales",16,0]
["MTOP-004-02-03","Emisión de Permiso de Operación a Estación de Servicios de Balsas Salvavidas Inflables",29.133333333333333,0]
["MTOP-014-01-04","MTOP-014-01-04 Actualización de Matrículas de Agencias Navieras por Extención a otro Puertopara Tráfico Internacional",80,30]
["MTOP-010-02-04","Autorización a Buques De Bandera Nacional e Internacional Para Realizar Viajes Extraordinarios Para Puertos Internacionales",16,0]
["MTOP-004-01-01","Emisión de Permiso de Construcción, Operación, Modificación y/o Ampliación de Facilidades o Instalaciones Portuarias, Internacional",54.133333333333333,30]
["MTOP-004-02-02","Emisión de Permiso de Operación a Estación de Servicios de Extintores",29.133333333333333,0]
["MTOP-033-02-01","Emisión de Licencia de Modificación y Aprobación de Planos Preliminares de la Nave",120,30]
["MTOP-022-02-01","Emisión del Certificado de Seguridad para Buques de Carga.",64,30]
["MTOP-002-01-04","Inactivación de Matrícula de Armadores Naves Mayores a 50 TRB",24,0]
["MTOP-021-04-01","Verificación cuatrimestral de naves y bienes importados al amparo de la LEFORTAAC",40,0]
["MTOP-034-01-03","Aprobación de planos por Legalización de la Construcción (GALAPAGOS ESMERALDAS AMAZONIA)",120,30]
["MTOP-035-01-01","Aprobación de planos por Nacionalización (DENTRO DEL PERIMETRO URBANO)",120,30]
["MTOP-032-01-01","Aprobación del Diseño Definitivo de la Nave por Construcción (DENTRO DEL PERIMETRO URBANO)",120,30]
["MTOP-019-01-04","Emisión de Autorización de Asignación de Muelles para Desguace",48,30]
["MTOP-006-01-03","Emisión de Permiso de Comercialización de Dispersantes para el Control del Derrame de Hidrocarburos",30.166666666666668,0]
["MTOP-007-03-01","Matriculación por Primera Vez de Operadores Portuarios de Buque",20.333333333333332,0]
["MTOP-014-01-01","MTOP-014-01-01 Matriculación de Agencias Navieras por Primera Vez para Tráfico Internacional",80,30]
["MTOP-007-03-06","Actualización de Registros de Operadores Portuarios de Buque",20.333333333333332,0]
["MTOP-017-01-12","Aprobación de plano de capacidad de combustible (GALAPAGOS ESMERALDAS AMAZONIA)",80,30]
["MTOP-015-02-02","Certificación de Títulos de Prácticos",16,0]
["MTOP-019-01-03","Emisión de Autorización de Asignación de Muelle para embarcaciones remolcadas",48,30]
["MTOP-021-01-02","Emisión de la Autorización de importación de naves como beneficiario de la LEFORTAAC",40,0]
["MTOP-036-01-02","Emisión de Registro Definitivo De Consolidadores Y Desconsolidadores De Carga",50,30]
["MTOP-031-01-01","Emisión del Certificado de Declaración de Cumplimiento CAP para Buques de Transporte de Hidrocarburos mayores a 15 años de construccion",80,30]
["MTOP-004-02-01","Emisión de Permiso de Operación a Astilleros, Parrillas, Varaderos y Factorías Navales",32.133333333333333,0]
["MTOP-007-03-02","Renovación Matrícula de Operadores Portuarios de Buque",20.333333333333332,0]
["MTOP-017-02-03","Supervisión de Prueba de Estabilidad (GALAPAGOS ESMERALDAS AMAZONIA)",80,30]
["MTOP-021-03-01","Emisión de la Calificación y registro de personas naturales o jurídicas como beneficiario de la LEFORTAAC",40,0]
["MTOP-004-01-02","Emisión de Permiso de Construcción, Operación, Modificación y/o Ampliación de Facilidades o Instalaciones Portuarias, Cabotaje",54.133333333333333,30]
["MTOP-034-02-03","Aprobación de planos por Legalización de la Modificación(GALAPAGOS ESMERALDAS AMAZONIA)",120,30]
["MTOP-009-02-04","Autorización de la Exoneración Total o Parcial del Pago de las Tarifas Portuarias a Buques y/o Carga",40,0]
["MTOP-012-01-02","Obtención de Asistencia Técnica en la Ejecución de Ejercicios de Protección marítima realizados por las instalaciones portuarias certificadas bajo el código P.B.I.P. (Código de Protección Internacional Portuaria)",48,30]
["MTOP-002-04-03","Actualización de Armadores por Inclusión o Exclusión de una Nave Menores a 50 TRB",24,0]
["MTOP-034-02-01","Aprobación de planos por Legalización de la Modificación (DENTRO DEL PERIMETRO URBANO)",120,30]
["MTOP-023-05-01","Emisión del Pasavante de Navegación",32,0]
["MTOP-007-04-01","Matriculación por Primera Vez de Operadores Portuarios de Carga",20.329999999999998,0]
["MTOP-007-02-06","Actualización de Registros de Operadores Portuarios de Servicios Conexos",48,30]
["MTOP-035-01-02","Aprobación de planos por Nacionalización (FUERA DEL PERIMETRO URBANO)",120,30]
["MTOP-005-01-01","Autorización de Ocupación Pago de nueva concesión de zona de playas y bahías",48,30]
["MTOP-015-02-01","Autorización de Entrenamiento para los Aspirantes a Prácticos",16,0]
["MTOP-012-01-01","Certificación y Recertificación de una Instalación Portuaria bajo el Código de Protección de Buques y de Instalaciones Portuarias",168,30]
["MTOP-023-04-02","Emisión del Informe Técnico Favorable para la Importación por Internación Temporal de Buques Bajo Contrato de Asociación, Fletamento, Fletamento a Casco Desnudo, Arriendo, Etc.",80,30]
["MTOP-007-04-02","Renovación Matrícula de Operadores Portuarios de Carga",20.333333333333332,0]
["MTOP-010-02-01","Autorización de Rutas, Horarios e Itinerarios de los Servicios Públicos del Transporte Fluvial interno y al exterior",32,0]
["MTOP-021-02-01","Emisión de la autorización de importación de bienes como beneficiario de la LEFORTAAC",40,0]
["MTOP-010-02-05","Autorización Excepcional de Prestación de Servicios de cabotaje de hidrocarburos, carga, pasaje y valijas postales",40,0]
["MTOP-036-01-01","Emisión de Registro Provisional De Consolidadores Y Desconsolidadores De Carga",50,30]
["MTOP-029-02-01","Emisión del Certificado de Aprobación del Cuadro de Zafarrancho del Buque",56,30]
["MTOP-022-02-02","Emisión del Endoso Anual del Certificado de Seguridad para Buques de Carga.",64,30]
["MTOP-030-01-01","Emisión del Certificado Internacional de Prevención de la Contaminación por Hidrocarburos, IOPP",80,30]
["MTOP-010-02-08","Autorización de Rutas, Horarios e Itinerarios de los Servicios Públicos del Transporte Marítimo",16,0]
["MTOP-031-02-01","Emisión del Certificado De Seguro U Otra Garantía Financiera Relativo A La Responsabilidad Civil Por Daños Causados Por La Contaminación De Las Aguas Del Mar Por Hidrocarburos",80,30]
["MTOP-034-01-01","Aprobación de planos por Legalización de la Construcción (DENTRO DEL PERIMETRO URBANO)",120,30]
["MTOP-034-01-02","Aprobación de planos por Legalización de la Construcción (FUERA DEL PERIMETRO URBANO)",120,30]
["MTOP-032-02-01","Otorgamiento de Licencia de Construcción y Aprobación de Planos Preliminares de la Nave",120,30]
["MTOP-029-01-01","Emisión del Certificado de Aprobación de Planos de Seguridad y Contraincendios",56,30]
["MTOP-030-02-01","Emisión del Certificado de Prevención a la Contaminacón por Aguas Sucias",64.166666666666671,30]
["MTOP-002-01-03","Actualización de Matrícula de Armadores por Cambio de Representante Legal Naves Mayores a 50 TRB",24,0]
["MTOP-023-04-01","Emisión del Informe Técnico Favorable para la Importación por Nacionalización de Naves",80,30]
["MTOP-010-01-02","Emisión de Registro de Contrato de de naves de Bandera Nacional",40,0]
["MTOP-007-02-02","Renovación Matrícula de Operadores Portuarios de Servicios Conexos",48,30]
["MTOP-017-02-01","Supervisión de Prueba de Estabilidad (DENTRO DEL PERIMETRO URBANO)",80,30]
["MTOP-007-02-01","Matriculación por Primera Vez de Operadores Portuarios de Servicios Conexos",48,30]
["MTOP-017-02-02","Supervisión de Prueba de Estabilidad (FUERA DEL PERIMETRO URBANO)",80,30]
["MTOP-017-01-10","Aprobación de plano de capacidad de combustible (DENTRO DEL PERIMETRO URBANO)",80,30]
["MTOP-028-01-01","Emisión del Certificado de Estado Rector del Puerto para naves de bandera extranjera que operen bajo internación temporal y fletamento a casco desnudo",72,30]
["MTOP-014-01-02","MTOP-014-01-02 Renovación de la Matrícula de Agencias Navieras para Tráfico Internacional",40,0]
["MTOP-002-01-01","Matriculación de Armadores Por Primera Vez Naves Mayores a 50 TRB",48,30]
["MTOP-025-05-01","Emisión del certificado de Obra Viva",{"$f":"4800/60","v":80},30]
["MTOP-034-02-02","Aprobación de planos por Legalización de la Modificación (FUERA DEL PERIMETRO URBANO)",{"$f":"7200/60","v":120},30]
["MTOP-028-02-01","Emisión del Certificado de Inspección de Estado Rector de Puerto a naves de bandera extranjera que ingresan al país en tránsito (dejan carga y retiran carga de puertos del país)",{"$f":"180/60","v":3},0]
["MTOP-002-04-02","Renovación de Matrícula de Armadores Naves Menores a 50 TRB",{"$f":"1440/60","v":24},0]
["MTOP-005-01-05","Delimitación y/o Demarcación de Zonas de Playas y Bahías",{"$f":"1988/60","v":33.133333333333333},0]
["MTOP-027-01-06","Emisión del Certificado Internacional de arqueo",{"$f":"4800/60","v":80},30]
["MTOP-027-02-01","Emisión del certificado internacional de líneas de carga",{"$f":"4800/60","v":80},30]
["MTOP-013-02-02","Emisión de Certificado de Operación Especial para Vehículos Mayores a 60 Ton",{"$f":"7200/60","v":120},30]
["MTOP-017-02-04","Aprobación de Libreto de Estabilidad de la nave",{"$f":"7200/60","v":120},30]
["MTOP-010-01-01","Emisión de Registro de Tarifas y Recargos de Fletes Internacionales",{"$f":"1440/60","v":24},0]
["MTOP-017-01-11","Aprobación de planos de capacidad de combustible (FUERA DEL PERIMETRO URBANO)",{"$f":"4800/60","v":80},30]
["MTOP-002-04-01","Matriculación de Armadores Por Primera Vez Naves Menores a 50 TRB",{"$f":"1440/60","v":24},0]
["MTOP-025-04-01","Realización de la Inspección para determinar el Avalúo de las naves",{"$f":"4800/60","v":80},30]
["MTOP-019-01-05","Emisión de Autorización de Asignación de Muelles para Mantenimiento y/o Reparación",{"$f":"2880/60","v":48},30]
["MTOP-027-01-02","Emisión del Certificado Nacional de arqueo",{"$f":"4800/60","v":80},30]
["MTOP-005-01-08","Emisión de Matrícula Concesión de Zona de Playas y Bahías (Anual)",{"$f":"1178/60","v":19.633333333333333},0]
["MTOP-027-03-01","Emisión del Permiso de Vare y Desvare",{"$f":"1200/60","v":20},0]
["MTOP-020-01-01","Emisión de Permisos de Tráfico Marítimo y Fluvial para naves nacionales y extranjeras",{"$f":"960/60","v":16},0]
["MTOP-013-02-01","Emisión de Certificado de Operación Especial para Vehículos entre 48 - 60 Toneladas",{"$f":"7200/60","v":120},30]
["MTOP-002-01-02","Renovación de Matrícula de Armadores Naves Mayores a 50 TRB",{"$f":"1440/60","v":24},0]
["MTOP-001-01-01","Matriculación de equipo caminero y maquinaria pesada primera vez",{"$f":"7200/60","v":120},30]
["MTOP-019-01-01","Emisión de Autorización de Asignación de Muelle para Tráfico de Cabotaje",{"$f":"2880/60","v":48},30]
["MTOP-001-01-03","Renovación de matrícula por cambio de propietario del equipo caminero y la maquinaria pesada",{"$f":"7200/60","v":120},30]
["MTOP-013-03-01","Autorización de Importación",{"$f":"7200/60","v":120},30]
["MTOP-019-01-02","Emisión de Autorización de Asignación de Muelle para Tráfico Internacional",{"$f":"2880/60","v":48},30]
["MTOP-009-02-01","Autorización de Transporte de Carga Peligrosa a la Provincia insular de Galápagos y Viceversa",{"$f":"1440/60","v":24},0]
["MTOP-015-01-03","Matriculación de Personal Marítimo Portuario",{"$f":"960/60","v":16},0]
["MTOP-009-02-05","Obtención de Permisos Especiales de Ingreso a Instalaciones Portuarias",{"$f":"1440/60","v":24},0]
["MTOP-001-01-02","Renovación de matrícula de equipo caminero y maquinaria pesada",{"$f":"7200/60","v":120},30]
["MTOP-001-01-05","Certificación de la propiedad, gravámenes, arrendamiento mercantil y venta con reserva de dominio",{"$f":"960/60","v":16},0]
["MTOP-013-01-01","Emisión de Certificado de Operación Regular",1.5,0]

{"sheet":"CANAL ATENCIÓN","index":7,"n_rows":166,"n_cols":12,"rows_kept":166,"cut":false,"hidden":false,"merged":[[0,0,0,3],[1,0,1,3]]}
["PRIORIZACIÓN DE TRÁMITES ADMINISTRATIVOS"]
["CANAL DE ATENCIÓN"]
[null,null,null,null,null,null,null,null,"Totalmente en Línea",null,null,0]
["IDENTIFICADOR","TRÁMITE","CANAL ATENCIÓN","PUNTUACIÓN",null,null,null,null,"No se completa totalmente en línea.",null,null,10]
["MTOP-007-03-05","Actualización de datos de Matrícula de Operadores Portuarios de Buque","No se completa totalmente en línea.",{"$f":"IF(ISBLANK(C5),\"\",IF(C5=\"Totalmente en línea\",0,IF(C5=\"Inicia en línea\",6,10)))","v":10}]
["MTOP-007-04-05","Actualización de datos de Matrícula de Operadores Portuarios de Carga","No se completa totalmente en línea.",{"$f":"IF(ISBLANK(C6),\"\",IF(C6=\"Totalmente en línea\",0,IF(C6=\"Inicia en línea\",6,10)))","v":10}]
["MTOP-007-01-05","Actualización de datos de Matrícula de Operadores Portuarios de Pasajeros","No se completa totalmente en línea.",10]
["MTOP-007-01-06","Actualización de Registros de Operadores Portuarios de Pasajeros","No se completa totalmente en línea.",10]
["MTOP-007-01-04","Actualización de Representante Legal de Operadores Portuarios de Pasajeros","No se completa totalmente en línea.",10]
["MTOP-007-02-04","Actualización de Representante Legal de Operadores Portuarios de Servicios Conexos","No se completa totalmente en línea.",10]
["MTOP-007-03-03","Ampliación de Servicios de Operadores Portuarios de Buque","No se completa totalmente en línea.",10]
["MTOP-007-01-03","Ampliación de Servicios de Operadores Portuarios de Pasajeros","No se completa totalmente en línea.",10]
["MTOP-006-01-04","Aprobación de Plan de Contingencia Zonal para Control de Derrame por Hidrocarburos o Productos Quimicos","No se completa totalmente en línea.",10]
["MTOP-035-02-01","Aprobación de Planos por Contrato de Fletamento, Arrendamiento, Asociación, Leasing, Fletamento a Casco Desnudo (DENTRO DEL PERIMETRO URBANO)","No se completa totalmente en línea.",10]
["MTOP-035-02-02","Aprobación de Planos por Contrato de Fletamento, Arrendamiento, Asociación, Leasing, Fletamento a Casco Desnudo (FUERA DEL PERIMETRO URBANO)","No se completa totalmente en línea.",10]
["MTOP-035-02-03","Aprobación de Planos por Contrato de Fletamento, Arrendamiento, Asociación, Leasing, Fletamento a Casco Desnudo (GALAPAGOS ESMERALDAS AMAZONIA)","No se completa totalmente en línea.",10]
["MTOP-032-01-03","Aprobación del Diseño Definitivo de la Nave por Construcción (GALAPAGOS ESMERALDAS AMAZONIA)","No se completa totalmente en línea.",10]
["MTOP-009-02-06","Autorización de Fondeo en Terminales Petroleros","No se completa totalmente en línea.",10]
["MTOP-005-01-04","Autorización de la Derogatoria del Permiso de Ocupación","No se completa totalmente en línea.",10]
["MTOP-009-02-02","Autorización de Transporte de Carga Peligrosa en rutas nacionales","No se completa totalmente en línea.",10]
["MTOP-009-02-03","Autorización para Realizar Actividades No Comerciales en la Jurisdicción de un Puerto Comercial o Terminal Petrolera","No se completa totalmente en línea.",10]
["MTOP-006-01-02","Calificación de Empresas Proveedores de Equipos y Materiales para el Control de Derrame de Hidrocarburos","No se completa totalmente en línea.",10]
["MTOP-006-01-01","Calificación de Empresas que Prestan Servicios para el Control de Derrame de Hidrocarburos","No se completa totalmente en línea.",10]
["MTOP-001-01-04","Certificación de matrícula por perdida de equipo caminero y maquinaria pesada","No se completa totalmente en línea.",10]
["MTOP-012-01-05","Corrección al Plan de Protección de Instalaciones Portuarias","No se completa totalmente en línea.",10]
["MTOP-019-01-06","Emisión de Autorización de Asignación de Muelles para Desembarque/Embarque de Clase IMDG en Puerto Comercial y/o Terminales Privadas.","No se completa totalmente en línea.",10]
["MTOP-019-01-07","Emisión de Autorización de Desvío de cargas a otro puerto por fuerza mayor o eventos naturales","No se completa totalmente en línea.",10]
["MTOP-021-01-05","Emisión de la Autorización de importación de naves bajo el regimen de internación temporal para celebrar un contrato de fletamento a casco desnudo como beneficiario de la LEFORTAAC","No se completa totalmente en línea.",10]
["MTOP-023-04-03","Emisión deI informe Técnico Favorable para la Importación de Naves para el Desguace","No se completa totalmente en línea.",10]
["MTOP-008-02-02","Emisión del Certificado de Aprobación del Sipe, Sistema Integrado de Polución y Emergencia.","No se completa totalmente en línea.",10]
["MTOP-025-04-02","Emisión del Informe de Peritajes Marítimos de nave","No se completa totalmente en línea.",10]
["MTOP-007-01-01","Matriculación por Primera Vez de Operadores Portuarios de Pasajeros","No se completa totalmente en línea.",10]
["MTOP-014-02-04","MTOP-014-02-04 Actualización de Matrículas de Agencias Navieras por Extención a otro Puerto para Tráfico Nacional","No se completa totalmente en línea.",10]
["MTOP-014-02-05","MTOP-014-02-05 Inactivación de Matrícula de Agencia Naviera para Tráfico Nacional","No se completa totalmente en línea.",10]
["MTOP-007-01-02","Renovación Matrícula de Operadores Portuarios de Pasajeros","No se completa totalmente en línea.",10]
["MTOP-007-03-07","Revocación de Matrícula de Operadores Portuarios de Buque","No se completa totalmente en línea.",10]
["MTOP-007-01-07","Revocación de Matrícula de Operadores Portuarios de Pasajeros","No se completa totalmente en línea.",10]
["MTOP-007-04-04","Actualización de Representante Legal de Operadores Portuarios de Carga","No se completa totalmente en línea.",10]
["MTOP-033-01-01","Aprobación del Diseño Definitivo de la Nave por Modificación (DENTRO DEL PERIMETRO URBANO)","No se completa totalmente en línea.",10]
["MTOP-033-01-02","Aprobación del Diseño Definitivo de la Nave por Modificación (FUERA DEL PERIMETRO URBANO)","No se completa totalmente en línea.",10]
["MTOP-033-01-03","Aprobación del Diseño Definitivo de la Nave por Modificación (GALAPAGOS ESMERALDAS AMAZONIA)","No se completa totalmente en línea.",10]
["MTOP-005-01-03","Autorización del Traspaso de la Ocupación","No se completa totalmente en línea.",10]
["MTOP-002-04-04","Inactivación de Matrícula de Armadores Naves Menores a 50 TRB","No se completa totalmente en línea.",10]
["MTOP-014-01-03","MTOP-014-01-03 Actualización de Matrículas de Agencias Navieras por Cambio de Representante Legal para Tráfico Internacional","No se completa totalmente en línea.",10]
["MTOP-014-02-02","MTOP-014-02-02 Renovación de la Matrícula de Agencias Navieras para Tráfico Nacional","No se completa totalmente en línea.",10]
["MTOP-011-01-01","Obtención de Certificado de No Interferencia con Otras Actividades Portuarias","No se completa totalmente en línea.",10]
["MTOP-007-04-07","Revocación de Matrícula de Operadores Portuarios de Carga","No se completa totalmente en línea.",10]
["MTOP-007-02-07","Revocación de Matrícula de Operadores Portuarios de Servicios Conexos","No se completa totalmente en línea.",10]
["MTOP-007-03-04","Actualización de Representante Legal de Operadores Portuarios de Buque","No se completa totalmente en línea.",10]
["MTOP-032-01-02","Aprobación del Diseño Definitivo de la Nave por Construcción (FUERA DEL PERIMETRO URBANO)","No se completa totalmente en línea.",10]
["MTOP-021-01-06","Emisión de la Autorización para facturar con tarifa 0% IVA por la construcción, mantenimiento y reparación de naves como beneficiario de la LEFORTAAC","No se completa totalmente en línea.",10]
["MTOP-027-04-02","Emisión de Resolución de Cancelación de Patente de Navegación","No se completa totalmente en línea.",10]
["MTOP-014-02-01","MTOP-014-02-01 Matriculación de Agencias Navieras por Primera Vez para Tráfico Nacional","No se completa totalmente en línea.",10]
["MTOP-014-02-03","MTOP-014-02-03 Actualización de Matrículas de Agencias Navieras por Cambio de Representante Legal para Tráfico Nacional","No se completa totalmente en línea.",10]
["MTOP-007-02-05","Actualización de datos de Matrícula de Operadores Portuarios de Servicios Conexos","No se completa totalmente en línea.",10]
["MTOP-007-04-03","Ampliación de Servicios de Operadores Portuarios de Carga","No se completa totalmente en línea.",10]
["MTOP-035-01-03","Aprobación de planos por Nacionalización (GALAPAGOS ESMERALDAS AMAZONIA)","No se completa totalmente en línea.",10]
["MTOP-015-02-03","Autorización de Entrenamiento para los Aspirantes a Capitanes de Amarre y Control de Carga","No se completa totalmente en línea.",10]
["MTOP-012-01-03","Certificación de Aprobación de la Evaluación de protección de instalación portuaria","No se completa totalmente en línea.",10]
["MTOP-012-01-04","Certificación de Aprobacion del Plan de proteccion de instalacion portuaria","No se completa totalmente en línea.",10]
["MTOP-015-02-04","Certificación de Títulos de Capitanes de Amarre y Control de Carga","No se completa totalmente en línea.",10]
["MTOP-027-05-01","Emisión de Registro de Sociedad Clasificadora","No se completa totalmente en línea.",10]
["MTOP-014-01-05","MTOP-014-01-05 Inactivación de Matrícula de Agencia Naviera para Tráfico Internacional","No se completa totalmente en línea.",10]
["MTOP-007-04-06","Actualización de Registros de Operadores Portuarios de Carga","No se completa totalmente en línea.",10]
["MTOP-005-01-02","Actualización y/o Modificación del Permiso de Ocupación","No se completa totalmente en línea.",10]
["MTOP-007-02-03","Ampliación de Servicios de Operadores Portuarios de Servicios Conexos","No se completa totalmente en línea.",10]
["MTOP-010-02-03","Autorización de Desguace de Naves de Bandera Nacional o Extranjeras","No se completa totalmente en línea.",10]
["MTOP-020-03-01","Autorización de Trayectoria Interna de Embarcaciones entre Puertos Nacionales","No se completa totalmente en línea.",10]
["MTOP-004-02-03","Emisión de Permiso de Operación a Estación de Servicios de Balsas Salvavidas Inflables","No se completa totalmente en línea.",10]
["MTOP-014-01-04","MTOP-014-01-04 Actualización de Matrículas de Agencias Navieras por Extención a otro Puertopara Tráfico Internacional","No se completa totalmente en línea.",{"$f":"IF(ISBLANK(C70),\"\",IF(C70=\"Totalmente en línea\",0,IF(C70=\"Inicia en línea\",6,10)))","v":10}]
["MTOP-010-02-04","Autorización a Buques De Bandera Nacional e Internacional Para Realizar Viajes Extraordinarios Para Puertos Internacionales","No se completa totalmente en línea.",10]
["MTOP-004-01-01","Emisión de Permiso de Construcción, Operación, Modificación y/o Ampliación de Facilidades o Instalaciones Portuarias, Internacional","No se completa totalmente en línea.",10]
["MTOP-004-02-02","Emisión de Permiso de Operación a Estación de Servicios de Extintores","No se completa totalmente en línea.",10]
["MTOP-033-02-01","Emisión de Licencia de Modificación y Aprobación de Planos Preliminares de la Nave","No se completa totalmente en línea.",10]
["MTOP-022-02-01","Emisión del Certificado de Seguridad para Buques de Carga.","No se completa totalmente en línea.",10]
["MTOP-002-01-04","Inactivación de Matrícula de Armadores Naves Mayores a 50 TRB","No se completa totalmente en línea.",10]
["MTOP-021-04-01","Verificación cuatrimestral de naves y bienes importados al amparo de la LEFORTAAC","No se completa totalmente en línea.",10]
["MTOP-034-01-03","Aprobación de planos por Legalización de la Construcción (GALAPAGOS ESMERALDAS AMAZONIA)","No se completa totalmente en línea.",10]
["MTOP-035-01-01","Aprobación de planos por Nacionalización (DENTRO DEL PERIMETRO URBANO)","No se completa totalmente en línea.",10]
["MTOP-032-01-01","Aprobación del Diseño Definitivo de la Nave por Construcción (DENTRO DEL PERIMETRO URBANO)","No se completa totalmente en línea.",10]
["MTOP-019-01-04","Emisión de Autorización de Asignación de Muelles para Desguace","No se completa totalmente en línea.",10]
["MTOP-006-01-03","Emisión de Permiso de Comercialización de Dispersantes para el Control del Derrame de Hidrocarburos","No se completa totalmente en línea.",10]
["MTOP-007-03-01","Matriculación por Primera Vez de Operadores Portuarios de Buque","No se completa totalmente en línea.",10]
["MTOP-014-01-01","MTOP-014-01-01 Matriculación de Agencias Navieras por Primera Vez para Tráfico Internacional","No se completa totalmente en línea.",10]
["MTOP-007-03-06","Actualización de Registros de Operadores Portuarios de Buque","No se completa totalmente en línea.",10]
["MTOP-017-01-12","Aprobación de plano de capacidad de combustible (GALAPAGOS ESMERALDAS AMAZONIA)","No se completa totalmente en línea.",10]
["MTOP-015-02-02","Certificación de Títulos de Prácticos","No se completa totalmente en línea.",10]
["MTOP-019-01-03","Emisión de Autorización de Asignación de Muelle para embarcaciones remolcadas","No se completa totalmente en línea.",10]
["MTOP-021-01-02","Emisión de la Autorización de importación de naves como beneficiario de la LEFORTAAC","No se completa totalmente en línea.",10]
["MTOP-036-01-02","Emisión de Registro Definitivo De Consolidadores Y Desconsolidadores De Carga","No se completa totalmente en línea.",10]
["MTOP-031-01-01","Emisión del Certificado de Declaración de Cumplimiento CAP para Buques de Transporte de Hidrocarburos mayores a 15 años de construccion","No se completa totalmente en línea.",10]
["MTOP-004-02-01","Emisión de Permiso de Operación a Astilleros, Parrillas, Varaderos y Factorías Navales","No se completa totalmente en línea.",10]
["MTOP-007-03-02","Renovación Matrícula de Operadores Portuarios de Buque","No se completa totalmente en línea.",10]
["MTOP-017-02-03","Supervisión de Prueba de Estabilidad (GALAPAGOS ESMERALDAS AMAZONIA)","No se completa totalmente en línea.",10]
["MTOP-021-03-01","Emisión de la Calificación y registro de personas naturales o jurídicas como beneficiario de la LEFORTAAC","No se completa totalmente en línea.",10]
["MTOP-004-01-02","Emisión de Permiso de Construcción, Operación, Modificación y/o Ampliación de Facilidades o Instalaciones Portuarias, Cabotaje","No se completa totalmente en línea.",10]
["MTOP-034-02-03","Aprobación de planos por Legalización de la Modificación(GALAPAGOS ESMERALDAS AMAZONIA)","No se completa totalmente en línea.",10]
["MTOP-009-02-04","Autorización de la Exoneración Total o Parcial del Pago de las Tarifas Portuarias a Buques y/o Carga","No se completa totalmente en línea.",10]
["MTOP-012-01-02","Obtención de Asistencia Técnica en la Ejecución de Ejercicios de Protección marítima realizados por las instalaciones portuarias certificadas bajo el código P.B.I.P. (Código de Protección Internacional Portuaria)","No se completa totalmente en línea.",10]
["MTOP-002-04-03","Actualización de Armadores por Inclusión o Exclusión de una Nave Menores a 50 TRB","No se completa totalmente en línea.",10]
["MTOP-034-02-01","Aprobación de planos por Legalización de la Modificación (DENTRO DEL PERIMETRO URBANO)","No se completa totalmente en línea.",10]
["MTOP-023-05-01","Emisión del Pasavante de Navegación","No se completa totalmente en línea.",10]
["MTOP-007-04-01","Matriculación por Primera Vez de Operadores Portuarios de Carga","No se completa totalmente en línea.",10]
["MTOP-007-02-06","Actualización de Registros de Operadores Portuarios de Servicios Conexos","No se completa totalmente en línea.",10]
["MTOP-035-01-02","Aprobación de planos por Nacionalización (FUERA DEL PERIMETRO URBANO)","No se completa totalmente en línea.",10]
["MTOP-005-01-01","Autorización de Ocupación Pago de nueva concesión de zona de playas y bahías","No se completa totalmente en línea.",10]
["MTOP-015-02-01","Autorización de Entrenamiento para los Aspirantes a Prácticos","No se completa totalmente en línea.",10]
["MTOP-012-01-01","Certificación y Recertificación de una Instalación Portuaria bajo el Código de Protección de Buques y de Instalaciones Portuarias","No se completa totalmente en línea.",10]
["MTOP-023-04-02","Emisión del Informe Técnico Favorable para la Importación por Internación Temporal de Buques Bajo Contrato de Asociación, Fletamento, Fletamento a Casco Desnudo, Arriendo, Etc.","No se completa totalmente en línea.",10]
["MTOP-007-04-02","Renovación Matrícula de Operadores Portuarios de Carga","No se completa totalmente en línea.",10]
["MTOP-010-02-01","Autorización de Rutas, Horarios e Itinerarios de los Servicios Públicos del Transporte Fluvial interno y al exterior","No se completa totalmente en línea.",10]
["MTOP-021-02-01","Emisión de la autorización de importación de bienes como beneficiario de la LEFORTAAC","No se completa totalmente en línea.",10]
["MTOP-010-02-05","Autorización Excepcional de Prestación de Servicios de cabotaje de hidrocarburos, carga, pasaje y valijas postales","No se completa totalmente en línea.",10]
["MTOP-036-01-01","Emisión de Registro Provisional De Consolidadores Y Desconsolidadores De Carga","No se completa totalmente en línea.",10]
["MTOP-029-02-01","Emisión del Certificado de Aprobación del Cuadro de Zafarrancho del Buque","No se completa totalmente en línea.",10]
["MTOP-022-02-02","Emisión del Endoso Anual del Certificado de Seguridad para Buques de Carga.","No se completa totalmente en línea.",10]
["MTOP-030-01-01","Emisión del Certificado Internacional de Prevención de la Contaminación por Hidrocarburos, IOPP","No se completa totalmente en línea.",10]
["MTOP-010-02-08","Autorización de Rutas, Horarios e Itinerarios de los Servicios Públicos del Transporte Marítimo","No se completa totalmente en línea.",10]
["MTOP-031-02-01","Emisión del Certificado De Seguro U Otra Garantía Financiera Relativo A La Responsabilidad Civil Por Daños Causados Por La Contaminación De Las Aguas Del Mar Por Hidrocarburos","No se completa totalmente en línea.",10]
["MTOP-034-01-01","Aprobación de planos por Legalización de la Construcción (DENTRO DEL PERIMETRO URBANO)","No se completa totalmente en línea.",10]
["MTOP-034-01-02","Aprobación de planos por Legalización de la Construcción (FUERA DEL PERIMETRO URBANO)","No se completa totalmente en línea.",10]
["MTOP-032-02-01","Otorgamiento de Licencia de Construcción y Aprobación de Planos Preliminares de la Nave","No se completa totalmente en línea.",10]
["MTOP-029-01-01","Emisión del Certificado de Aprobación de Planos de Seguridad y Contraincendios","No se completa totalmente en línea.",10]
["MTOP-030-02-01","Emisión del Certificado de Prevención a la Contaminacón por Aguas Sucias","No se completa totalmente en línea.",10]
["MTOP-002-01-03","Actualización de Matrícula de Armadores por Cambio de Representante Legal Naves Mayores a 50 TRB","No se completa totalmente en línea.",10]
["MTOP-023-04-01","Emisión del Informe Técnico Favorable para la Importación por Nacionalización de Naves","No se completa totalmente en línea.",10]
["MTOP-010-01-02","Emisión de Registro de Contrato de de naves de Bandera Nacional","No se completa totalmente en línea.",10]
["MTOP-007-02-02","Renovación Matrícula de Operadores Portuarios de Servicios Conexos","No se completa totalmente en línea.",10]
["MTOP-017-02-01","Supervisión de Prueba de Estabilidad (DENTRO DEL PERIMETRO URBANO)","No se completa totalmente en línea.",10]
["MTOP-007-02-01","Matriculación por Primera Vez de Operadores Portuarios de Servicios Conexos","No se completa totalmente en línea.",10]
["MTOP-017-02-02","Supervisión de Prueba de Estabilidad (FUERA DEL PERIMETRO URBANO)","No se completa totalmente en línea.",10]
["MTOP-017-01-10","Aprobación de plano de capacidad de combustible (DENTRO DEL PERIMETRO URBANO)","No se completa totalmente en línea.",10]
["MTOP-028-01-01","Emisión del Certificado de Estado Rector del Puerto para naves de bandera extranjera que operen bajo internación temporal y fletamento a casco desnudo","No se completa totalmente en línea.",10]
["MTOP-014-01-02","MTOP-014-01-02 Renovación de la Matrícula de Agencias Navieras para Tráfico Internacional","No se completa totalmente en línea.",{"$f":"IF(ISBLANK(C134),\"\",IF(C134=\"Totalmente en línea\",0,IF(C134=\"Inicia en línea\",6,10)))","v":10}]
["MTOP-002-01-01","Matriculación de Armadores Por Primera Vez Naves Mayores a 50 TRB","No se completa totalmente en línea.",10]
["MTOP-025-05-01","Emisión del certificado de Obra Viva","No se completa totalmente en línea.",10]
["MTOP-034-02-02","Aprobación de planos por Legalización de la Modificación (FUERA DEL PERIMETRO URBANO)","No se completa totalmente en línea.",10]
["MTOP-028-02-01","Emisión del Certificado de Inspección de Estado Rector de Puerto a naves de bandera extranjera que ingresan al país en tránsito (dejan carga y retiran carga de puertos del país)","No se completa totalmente en línea.",10]
["MTOP-002-04-02","Renovación de Matrícula de Armadores Naves Menores a 50 TRB","No se completa totalmente en línea.",10]
["MTOP-005-01-05","Delimitación y/o Demarcación de Zonas de Playas y Bahías","No se completa totalmente en línea.",10]
["MTOP-027-01-06","Emisión del Certificado Internacional de arqueo","No se completa totalmente en línea.",10]
["MTOP-027-02-01","Emisión del certificado internacional de líneas de carga","No se completa totalmente en línea.",10]
["MTOP-013-02-02","Emisión de Certificado de Operación Especial para Vehículos Mayores a 60 Ton","No se completa totalmente en línea.",10]
["MTOP-017-02-04","Aprobación de Libreto de Estabilidad de la nave","No se completa totalmente en línea.",10]
["MTOP-010-01-01","Emisión de Registro de Tarifas y Recargos de Fletes Internacionales","No se completa totalmente en línea.",10]
["MTOP-017-01-11","Aprobación de planos de capacidad de combustible (FUERA DEL PERIMETRO URBANO)","No se completa totalmente en línea.",10]
["MTOP-002-04-01","Matriculación de Armadores Por Primera Vez Naves Menores a 50 TRB","No se completa totalmente en línea.",10]
["MTOP-025-04-01","Realización de la Inspección para determinar el Avalúo de las naves","No se completa totalmente en línea.",10]
["MTOP-019-01-05","Emisión de Autorización de Asignación de Muelles para Mantenimiento y/o Reparación","No se completa totalmente en línea.",10]
["MTOP-027-01-02","Emisión del Certificado Nacional de arqueo","No se completa totalmente en línea.",10]
["MTOP-005-01-08","Emisión de Matrícula Concesión de Zona de Playas y Bahías (Anual)","No se completa totalmente en línea.",10]
["MTOP-027-03-01","Emisión del Permiso de Vare y Desvare","No se completa totalmente en línea.",10]
["MTOP-020-01-01","Emisión de Permisos de Tráfico Marítimo y Fluvial para naves nacionales y extranjeras","No se completa totalmente en línea.",10]
["MTOP-013-02-01","Emisión de Certificado de Operación Especial para Vehículos entre 48 - 60 Toneladas","No se completa totalmente en línea.",10]
["MTOP-002-01-02","Renovación de Matrícula de Armadores Naves Mayores a 50 TRB","No se completa totalmente en línea.",10]
["MTOP-001-01-01","Matriculación de equipo caminero y maquinaria pesada primera vez","No se completa totalmente en línea.",10]
["MTOP-019-01-01","Emisión de Autorización de Asignación de Muelle para Tráfico de Cabotaje","No se completa totalmente en línea.",10]
["MTOP-001-01-03","Renovación de matrícula por cambio de propietario del equipo caminero y la maquinaria pesada","No se completa totalmente en línea.",10]
["MTOP-013-03-01","Autorización de Importación","No se completa totalmente en línea.",10]
["MTOP-019-01-02","Emisión de Autorización de Asignación de Muelle para Tráfico Internacional","No se completa totalmente en línea.",10]
["MTOP-009-02-01","Autorización de Transporte de Carga Peligrosa a la Provincia insular de Galápagos y Viceversa","No se completa totalmente en línea.",10]
["MTOP-015-01-03","Matriculación de Personal Marítimo Portuario","No se completa totalmente en línea.",10]
["MTOP-009-02-05","Obtención de Permisos Especiales de Ingreso a Instalaciones Portuarias","No se completa totalmente en línea.",10]
["MTOP-001-01-02","Renovación de matrícula de equipo caminero y maquinaria pesada","No se completa totalmente en línea.",10]
["MTOP-001-01-05","Certificación de la propiedad, gravámenes, arrendamiento mercantil y venta con reserva de dominio","No se completa totalmente en línea.",10]
["MTOP-013-01-01","Emisión de Certificado de Operación Regular","No se completa totalmente en línea.",10]

{"sheet":"RESUMEN","index":8,"n_rows":165,"n_cols":25,"rows_kept":165,"cut":false,"hidden":false,"merged":[[1,9,1,10],[1,11,1,12],[1,13,2,13],[0,2,0,6],[0,7,0,12],[1,5,2,5],[1,6,2,6],[1,7,1,8],[1,0,2,0],[1,1,2,1],[1,2,2,2],[1,3,2,3],[1,4,2,4]]}
[null,null,"BÁSICOS",null,null,null,null,"ADICIONALES"]
["ID trámite","Nombre del trámite","Demanda","Quejas","Costo para administración","Tiempo de respuesta","Canal de atención","Necesidades ciudadanas",null,"Susceptibilidad a corrupción",null,"Volumen de devoluciones",null,"PUNTAJE TOTAL"]
[null,null,null,null,null,null,null,"Criterio","Puntuación","Criterio","Puntuación","Criterio","Puntuación",null,null,null,null,null,null,null,"demanda",0,3,6,10]
["MTOP-007-03-05","Actualización de datos de Matrícula de Operadores Portuarios de Buque",{"$f":"VLOOKUP(A4,'DEMANDA ANUAL'!$A$5:$D$166,4,FALSE)","v":0},{"$f":"VLOOKUP(A4,'VOLUMEN DE QUEJAS'!$A$5:$F$166,6,FALSE)","v":0},{"$f":"VLOOKUP(A4,'RESUMEN DE COSTOS AP'!$A$5:$D$164,4,FALSE)","v":5},{"$f":"VLOOKUP(A4,'TIEMPO DE RESPUESTA'!$A$5:$D$166,4,FALSE)","v":0},{"$f":"VLOOKUP(A4,'CANAL ATENCIÓN'!$A$5:$D$166,4,FALSE)","v":10},"NO",{"$f":"IF(H4=\"SI\",5,0)","v":0},"NO",{"$f":"IF(J4=\"SI\",10,0)","v":0},"NO",{"$f":"IF(L4=\"SI\",5,0)","v":0},{"$f":"SUM(C4:G4,I4,K4,M4)","v":15},null,null,null,null,null,null,"quejas",0,4,10]
["MTOP-007-04-05","Actualización de datos de Matrícula de Operadores Portuarios de Carga",{"$f":"VLOOKUP(A5,'DEMANDA ANUAL'!$A$5:$D$166,4,FALSE)","v":0},{"$f":"VLOOKUP(A5,'VOLUMEN DE QUEJAS'!$A$5:$F$166,6,FALSE)","v":0},{"$f":"VLOOKUP(A5,'RESUMEN DE COSTOS AP'!$A$5:$D$164,4,FALSE)","v":5},{"$f":"VLOOKUP(A5,'TIEMPO DE RESPUESTA'!$A$5:$D$166,4,FALSE)","v":0},{"$f":"VLOOKUP(A5,'CANAL ATENCIÓN'!$A$5:$D$166,4,FALSE)","v":10},"NO",{"$f":"IF(H5=\"SI\",5,0)","v":0},"NO",{"$f":"IF(J5=\"SI\",10,0)","v":0},"NO",{"$f":"IF(L5=\"SI\",5,0)","v":0},{"$f":"SUM(C5:G5,I5,K5,M5)","v":15},null,null,null,null,null,null,"cpa",5,10,20]
["MTOP-007-01-05","Actualización de datos de Matrícula de Operadores Portuarios de Pasajeros",{"$f":"VLOOKUP(A6,'DEMANDA ANUAL'!$A$5:$D$166,4,FALSE)","v":0},{"$f":"VLOOKUP(A6,'VOLUMEN DE QUEJAS'!$A$5:$F$166,6,FALSE)","v":0},{"$f":"VLOOKUP(A6,'RESUMEN DE COSTOS AP'!$A$5:$D$164,4,FALSE)","v":10},{"$f":"VLOOKUP(A6,'TIEMPO DE RESPUESTA'!$A$5:$D$166,4,FALSE)","v":30},{"$f":"VLOOKUP(A6,'CANAL ATENCIÓN'!$A$5:$D$166,4,FALSE)","v":10},"NO",0,"NO",0,"NO",0,50,null,null,null,null,null,null,"tr",0,30]
["MTOP-007-01-06","Actualización de Registros de Operadores Portuarios de Pasajeros",{"$f":"VLOOKUP(A7,'DEMANDA ANUAL'!$A$5:$D$166,4,FALSE)","v":0},{"$f":"VLOOKUP(A7,'VOLUMEN DE QUEJAS'!$A$5:$F$166,6,FALSE)","v":0},{"$f":"VLOOKUP(A7,'RESUMEN DE COSTOS AP'!$A$5:$D$164,4,FALSE)","v":10},{"$f":"VLOOKUP(A7,'TIEMPO DE RESPUESTA'!$A$5:$D$166,4,FALSE)","v":30},{"$f":"VLOOKUP(A7,'CANAL ATENCIÓN'!$A$5:$D$166,4,FALSE)","v":10},"NO",0,"NO",0,"NO",0,50,null,null,null,null,null,null,"ca",0,10]
["MTOP-007-01-04","Actualización de Representante Legal de Operadores Portuarios de Pasajeros",{"$f":"VLOOKUP(A8,'DEMANDA ANUAL'!$A$5:$D$166,4,FALSE)","v":0},{"$f":"VLOOKUP(A8,'VOLUMEN DE QUEJAS'!$A$5:$F$166,6,FALSE)","v":0},{"$f":"VLOOKUP(A8,'RESUMEN DE COSTOS AP'!$A$5:$D$164,4,FALSE)","v":10},{"$f":"VLOOKUP(A8,'TIEMPO DE RESPUESTA'!$A$5:$D$166,4,FALSE)","v":30},{"$f":"VLOOKUP(A8,'CANAL ATENCIÓN'!$A$5:$D$166,4,FALSE)","v":10},"NO",0,"NO",0,"NO",0,50,null,null,null,null,null,null,null,"SI","NO"]
["MTOP-007-02-04","Actualización de Representante Legal de Operadores Portuarios de Servicios Conexos",{"$f":"VLOOKUP(A9,'DEMANDA ANUAL'!$A$5:$D$166,4,FALSE)","v":0},{"$f":"VLOOKUP(A9,'VOLUMEN DE QUEJAS'!$A$5:$F$166,6,FALSE)","v":0},{"$f":"VLOOKUP(A9,'RESUMEN DE COSTOS AP'!$A$5:$D$164,4,FALSE)","v":10},{"$f":"VLOOKUP(A9,'TIEMPO DE RESPUESTA'!$A$5:$D$166,4,FALSE)","v":30},{"$f":"VLOOKUP(A9,'CANAL ATENCIÓN'!$A$5:$D$166,4,FALSE)","v":10},"NO",0,"NO",0,"NO",0,50]
["MTOP-007-03-03","Ampliación de Servicios de Operadores Portuarios de Buque",{"$f":"VLOOKUP(A10,'DEMANDA ANUAL'!$A$5:$D$166,4,FALSE)","v":0},{"$f":"VLOOKUP(A10,'VOLUMEN DE QUEJAS'!$A$5:$F$166,6,FALSE)","v":0},{"$f":"VLOOKUP(A10,'RESUMEN DE COSTOS AP'!$A$5:$D$164,4,FALSE)","v":5},{"$f":"VLOOKUP(A10,'TIEMPO DE RESPUESTA'!$A$5:$D$166,4,FALSE)","v":0},{"$f":"VLOOKUP(A10,'CANAL ATENCIÓN'!$A$5:$D$166,4,FALSE)","v":10},"NO",0,"NO",0,"NO",0,15]
["MTOP-007-01-03","Ampliación de Servicios de Operadores Portuarios de Pasajeros",{"$f":"VLOOKUP(A11,'DEMANDA ANUAL'!$A$5:$D$166,4,FALSE)","v":0},{"$f":"VLOOKUP(A11,'VOLUMEN DE QUEJAS'!$A$5:$F$166,6,FALSE)","v":0},{"$f":"VLOOKUP(A11,'RESUMEN DE COSTOS AP'!$A$5:$D$164,4,FALSE)","v":10},{"$f":"VLOOKUP(A11,'TIEMPO DE RESPUESTA'!$A$5:$D$166,4,FALSE)","v":30},{"$f":"VLOOKUP(A11,'CANAL ATENCIÓN'!$A$5:$D$166,4,FALSE)","v":10},"NO",0,"NO",0,"NO",0,50]
["MTOP-006-01-04","Aprobación de Plan de Contingencia Zonal para Control de Derrame por Hidrocarburos o Productos Quimicos",{"$f":"VLOOKUP(A12,'DEMANDA ANUAL'!$A$5:$D$166,4,FALSE)","v":0},{"$f":"VLOOKUP(A12,'VOLUMEN DE QUEJAS'!$A$5:$F$166,6,FALSE)","v":0},{"$f":"VLOOKUP(A12,'RESUMEN DE COSTOS AP'!$A$5:$D$164,4,FALSE)","v":10},{"$f":"VLOOKUP(A12,'TIEMPO DE RESPUESTA'!$A$5:$D$166,4,FALSE)","v":0},{"$f":"VLOOKUP(A12,'CANAL ATENCIÓN'!$A$5:$D$166,4,FALSE)","v":10},"NO",0,"NO",0,"NO",0,20]
["MTOP-035-02-01","Aprobación de Planos por Contrato de Fletamento, Arrendamiento, Asociación, Leasing, Fletamento a Casco Desnudo (DENTRO DEL PERIMETRO URBANO)",{"$f":"VLOOKUP(A13,'DEMANDA ANUAL'!$A$5:$D$166,4,FALSE)","v":0},{"$f":"VLOOKUP(A13,'VOLUMEN DE QUEJAS'!$A$5:$F$166,6,FALSE)","v":0},{"$f":"VLOOKUP(A13,'RESUMEN DE COSTOS AP'!$A$5:$D$164,4,FALSE)","v":20},{"$f":"VLOOKUP(A13,'TIEMPO DE RESPUESTA'!$A$5:$D$166,4,FALSE)","v":30},{"$f":"VLOOKUP(A13,'CANAL ATENCIÓN'!$A$5:$D$166,4,FALSE)","v":10},"NO",0,"NO",0,"NO",0,60]
["MTOP-035-02-02","Aprobación de Planos por Contrato de Fletamento, Arrendamiento, Asociación, Leasing, Fletamento a Casco Desnudo (FUERA DEL PERIMETRO URBANO)",{"$f":"VLOOKUP(A14,'DEMANDA ANUAL'!$A$5:$D$166,4,FALSE)","v":0},{"$f":"VLOOKUP(A14,'VOLUMEN DE QUEJAS'!$A$5:$F$166,6,FALSE)","v":0},{"$f":"VLOOKUP(A14,'RESUMEN DE COSTOS AP'!$A$5:$D$164,4,FALSE)","v":20},{"$f":"VLOOKUP(A14,'TIEMPO DE RESPUESTA'!$A$5:$D$166,4,FALSE)","v":30},{"$f":"VLOOKUP(A14,'CANAL ATENCIÓN'!$A$5:$D$166,4,FALSE)","v":10},"NO",0,"NO",0,"NO",0,60]
["MTOP-035-02-03","Aprobación de Planos por Contrato de Fletamento, Arrendamiento, Asociación, Leasing, Fletamento a Casco Desnudo (GALAPAGOS ESMERALDAS AMAZONIA)",{"$f":"VLOOKUP(A15,'DEMANDA ANUAL'!$A$5:$D$166,4,FALSE)","v":0},{"$f":"VLOOKUP(A15,'VOLUMEN DE QUEJAS'!$A$5:$F$166,6,FALSE)","v":0},{"$f":"VLOOKUP(A15,'RESUMEN DE COSTOS AP'!$A$5:$D$164,4,FALSE)","v":20},{"$f":"VLOOKUP(A15,'TIEMPO DE RESPUESTA'!$A$5:$D$166,4,FALSE)","v":30},{"$f":"VLOOKUP(A15,'CANAL ATENCIÓN'!$A$5:$D$166,4,FALSE)","v":10},"NO",0,"NO",0,"NO",0,60]
["MTOP-032-01-03","Aprobación del Diseño Definitivo de la Nave por Construcción (GALAPAGOS ESMERALDAS AMAZONIA)",{"$f":"VLOOKUP(A16,'DEMANDA ANUAL'!$A$5:$D$166,4,FALSE)","v":0},{"$f":"VLOOKUP(A16,'VOLUMEN DE QUEJAS'!$A$5:$F$166,6,FALSE)","v":0},{"$f":"VLOOKUP(A16,'RESUMEN DE COSTOS AP'!$A$5:$D$164,4,FALSE)","v":20},{"$f":"VLOOKUP(A16,'TIEMPO DE RESPUESTA'!$A$5:$D$166,4,FALSE)","v":30},{"$f":"VLOOKUP(A16,'CANAL ATENCIÓN'!$A$5:$D$166,4,FALSE)","v":10},"NO",0,"NO",0,"NO",0,60]
["MTOP-009-02-06","Autorización de Fondeo en Terminales Petroleros",{"$f":"VLOOKUP(A17,'DEMANDA ANUAL'!$A$5:$D$166,4,FALSE)","v":0},{"$f":"VLOOKUP(A17,'VOLUMEN DE QUEJAS'!$A$5:$F$166,6,FALSE)","v":0},{"$f":"VLOOKUP(A17,'RESUMEN DE COSTOS AP'!$A$5:$D$164,4,FALSE)","v":5},{"$f":"VLOOKUP(A17,'TIEMPO DE RESPUESTA'!$A$5:$D$166,4,FALSE)","v":0},{"$f":"VLOOKUP(A17,'CANAL ATENCIÓN'!$A$5:$D$166,4,FALSE)","v":10},"NO",0,"NO",0,"NO",0,15]
["MTOP-005-01-04","Autorización de la Derogatoria del Permiso de Ocupación",{"$f":"VLOOKUP(A18,'DEMANDA ANUAL'!$A$5:$D$166,4,FALSE)","v":0},{"$f":"VLOOKUP(A18,'VOLUMEN DE QUEJAS'!$A$5:$F$166,6,FALSE)","v":0},{"$f":"VLOOKUP(A18,'RESUMEN DE COSTOS AP'!$A$5:$D$164,4,FALSE)","v":10},{"$f":"VLOOKUP(A18,'TIEMPO DE RESPUESTA'!$A$5:$D$166,4,FALSE)","v":0},{"$f":"VLOOKUP(A18,'CANAL ATENCIÓN'!$A$5:$D$166,4,FALSE)","v":10},"NO",0,"NO",0,"NO",0,20]
["MTOP-009-02-02","Autorización de Transporte de Carga Peligrosa en rutas nacionales",{"$f":"VLOOKUP(A19,'DEMANDA ANUAL'!$A$5:$D$166,4,FALSE)","v":0},{"$f":"VLOOKUP(A19,'VOLUMEN DE QUEJAS'!$A$5:$F$166,6,FALSE)","v":0},{"$f":"VLOOKUP(A19,'RESUMEN DE COSTOS AP'!$A$5:$D$164,4,FALSE)","v":5},{"$f":"VLOOKUP(A19,'TIEMPO DE RESPUESTA'!$A$5:$D$166,4,FALSE)","v":0},{"$f":"VLOOKUP(A19,'CANAL ATENCIÓN'!$A$5:$D$166,4,FALSE)","v":10},"NO",0,"NO",0,"NO",0,15]
["MTOP-009-02-03","Autorización para Realizar Actividades No Comerciales en la Jurisdicción de un Puerto Comercial o Terminal Petrolera",{"$f":"VLOOKUP(A20,'DEMANDA ANUAL'!$A$5:$D$166,4,FALSE)","v":0},{"$f":"VLOOKUP(A20,'VOLUMEN DE QUEJAS'!$A$5:$F$166,6,FALSE)","v":0},{"$f":"VLOOKUP(A20,'RESUMEN DE COSTOS AP'!$A$5:$D$164,4,FALSE)","v":5},{"$f":"VLOOKUP(A20,'TIEMPO DE RESPUESTA'!$A$5:$D$166,4,FALSE)","v":0},{"$f":"VLOOKUP(A20,'CANAL ATENCIÓN'!$A$5:$D$166,4,FALSE)","v":10},"NO",0,"NO",0,"NO",0,15]
["MTOP-006-01-02","Calificación de Empresas Proveedores de Equipos y Materiales para el Control de Derrame de Hidrocarburos",{"$f":"VLOOKUP(A21,'DEMANDA ANUAL'!$A$5:$D$166,4,FALSE)","v":0},{"$f":"VLOOKUP(A21,'VOLUMEN DE QUEJAS'!$A$5:$F$166,6,FALSE)","v":0},{"$f":"VLOOKUP(A21,'RESUMEN DE COSTOS AP'!$A$5:$D$164,4,FALSE)","v":10},{"$f":"VLOOKUP(A21,'TIEMPO DE RESPUESTA'!$A$5:$D$166,4,FALSE)","v":0},{"$f":"VLOOKUP(A21,'CANAL ATENCIÓN'!$A$5:$D$166,4,FALSE)","v":10},"NO",0,"NO",0,"NO",0,20]
["MTOP-006-01-01","Calificación de Empresas que Prestan Servicios para el Control de Derrame de Hidrocarburos",{"$f":"VLOOKUP(A22,'DEMANDA ANUAL'!$A$5:$D$166,4,FALSE)","v":0},{"$f":"VLOOKUP(A22,'VOLUMEN DE QUEJAS'!$A$5:$F$166,6,FALSE)","v":0},{"$f":"VLOOKUP(A22,'RESUMEN DE COSTOS AP'!$A$5:$D$164,4,FALSE)","v":10},{"$f":"VLOOKUP(A22,'TIEMPO DE RESPUESTA'!$A$5:$D$166,4,FALSE)","v":0},{"$f":"VLOOKUP(A22,'CANAL ATENCIÓN'!$A$5:$D$166,4,FALSE)","v":10},"NO",0,"NO",0,"NO",0,20]
["MTOP-001-01-04","Certificación de matrícula por perdida de equipo caminero y maquinaria pesada",{"$f":"VLOOKUP(A23,'DEMANDA ANUAL'!$A$5:$D$166,4,FALSE)","v":0},{"$f":"VLOOKUP(A23,'VOLUMEN DE QUEJAS'!$A$5:$F$166,6,FALSE)","v":0},{"$f":"VLOOKUP(A23,'RESUMEN DE COSTOS AP'!$A$5:$D$164,4,FALSE)","v":5},{"$f":"VLOOKUP(A23,'TIEMPO DE RESPUESTA'!$A$5:$D$166,4,FALSE)","v":0},{"$f":"VLOOKUP(A23,'CANAL ATENCIÓN'!$A$5:$D$166,4,FALSE)","v":10},"NO",0,"NO",0,"NO",0,15]
["MTOP-012-01-05","Corrección al Plan de Protección de Instalaciones Portuarias",{"$f":"VLOOKUP(A24,'DEMANDA ANUAL'!$A$5:$D$166,4,FALSE)","v":0},{"$f":"VLOOKUP(A24,'VOLUMEN DE QUEJAS'!$A$5:$F$166,6,FALSE)","v":0},20,{"$f":"VLOOKUP(A24,'TIEMPO DE RESPUESTA'!$A$5:$D$166,4,FALSE)","v":30},{"$f":"VLOOKUP(A24,'CANAL ATENCIÓN'!$A$5:$D$166,4,FALSE)","v":10},"NO",0,"NO",0,"NO",0,60]
["MTOP-019-01-06","Emisión de Autorización de Asignación de Muelles para Desembarque/Embarque de Clase IMDG en Puerto Comercial y/o Terminales Privadas.",{"$f":"VLOOKUP(A25,'DEMANDA ANUAL'!$A$5:$D$166,4,FALSE)","v":0},{"$f":"VLOOKUP(A25,'VOLUMEN DE QUEJAS'!$A$5:$F$166,6,FALSE)","v":0},{"$f":"VLOOKUP(A25,'RESUMEN DE COSTOS AP'!$A$5:$D$164,4,FALSE)","v":10},{"$f":"VLOOKUP(A25,'TIEMPO DE RESPUESTA'!$A$5:$D$166,4,FALSE)","v":30},{"$f":"VLOOKUP(A25,'CANAL ATENCIÓN'!$A$5:$D$166,4,FALSE)","v":10},"NO",0,"NO",0,"NO",0,50]
["MTOP-019-01-07","Emisión de Autorización de Desvío de cargas a otro puerto por fuerza mayor o eventos naturales",{"$f":"VLOOKUP(A26,'DEMANDA ANUAL'!$A$5:$D$166,4,FALSE)","v":0},{"$f":"VLOOKUP(A26,'VOLUMEN DE QUEJAS'!$A$5:$F$166,6,FALSE)","v":0},{"$f":"VLOOKUP(A26,'RESUMEN DE COSTOS AP'!$A$5:$D$164,4,FALSE)","v":10},{"$f":"VLOOKUP(A26,'TIEMPO DE RESPUESTA'!$A$5:$D$166,4,FALSE)","v":30},{"$f":"VLOOKUP(A26,'CANAL ATENCIÓN'!$A$5:$D$166,4,FALSE)","v":10},"NO",0,"NO",0,"NO",0,50]
["MTOP-021-01-05","Emisión de la Autorización de importación de naves bajo el regimen de internación temporal para celebrar un contrato de fletamento a casco desnudo como beneficiario de la LEFORTAAC",{"$f":"VLOOKUP(A27,'DEMANDA ANUAL'!$A$5:$D$166,4,FALSE)","v":0},{"$f":"VLOOKUP(A27,'VOLUMEN DE QUEJAS'!$A$5:$F$166,6,FALSE)","v":0},{"$f":"VLOOKUP(A27,'RESUMEN DE COSTOS AP'!$A$5:$D$164,4,FALSE)","v":10},{"$f":"VLOOKUP(A27,'TIEMPO DE RESPUESTA'!$A$5:$D$166,4,FALSE)","v":0},{"$f":"VLOOKUP(A27,'CANAL ATENCIÓN'!$A$5:$D$166,4,FALSE)","v":10},"NO",0,"NO",0,"NO",0,20]
["MTOP-023-04-03","Emisión deI informe Técnico Favorable para la Importación de Naves para el Desguace",{"$f":"VLOOKUP(A28,'DEMANDA ANUAL'!$A$5:$D$166,4,FALSE)","v":0},{"$f":"VLOOKUP(A28,'VOLUMEN DE QUEJAS'!$A$5:$F$166,6,FALSE)","v":0},{"$f":"VLOOKUP(A28,'RESUMEN DE COSTOS AP'!$A$5:$D$164,4,FALSE)","v":20},{"$f":"VLOOKUP(A28,'TIEMPO DE RESPUESTA'!$A$5:$D$166,4,FALSE)","v":30},{"$f":"VLOOKUP(A28,'CANAL ATENCIÓN'!$A$5:$D$166,4,FALSE)","v":10},"NO",0,"NO",0,"NO",0,60]
["MTOP-008-02-02","Emisión del Certificado de Aprobación del Sipe, Sistema Integrado de Polución y Emergencia.",{"$f":"VLOOKUP(A29,'DEMANDA ANUAL'!$A$5:$D$166,4,FALSE)","v":0},{"$f":"VLOOKUP(A29,'VOLUMEN DE QUEJAS'!$A$5:$F$166,6,FALSE)","v":0},{"$f":"VLOOKUP(A29,'RESUMEN DE COSTOS AP'!$A$5:$D$164,4,FALSE)","v":20},{"$f":"VLOOKUP(A29,'TIEMPO DE RESPUESTA'!$A$5:$D$166,4,FALSE)","v":30},{"$f":"VLOOKUP(A29,'CANAL ATENCIÓN'!$A$5:$D$166,4,FALSE)","v":10},"NO",0,"NO",0,"NO",0,60]
["MTOP-025-04-02","Emisión del Informe de Peritajes Marítimos de nave",{"$f":"VLOOKUP(A30,'DEMANDA ANUAL'!$A$5:$D$166,4,FALSE)","v":0},{"$f":"VLOOKUP(A30,'VOLUMEN DE QUEJAS'!$A$5:$F$166,6,FALSE)","v":0},{"$f":"VLOOKUP(A30,'RESUMEN DE COSTOS AP'!$A$5:$D$164,4,FALSE)","v":20},{"$f":"VLOOKUP(A30,'TIEMPO DE RESPUESTA'!$A$5:$D$166,4,FALSE)","v":30},{"$f":"VLOOKUP(A30,'CANAL ATENCIÓN'!$A$5:$D$166,4,FALSE)","v":10},"NO",0,"NO",0,"NO",0,60]
["MTOP-007-01-01","Matriculación por Primera Vez de Operadores Portuarios de Pasajeros",{"$f":"VLOOKUP(A31,'DEMANDA ANUAL'!$A$5:$D$166,4,FALSE)","v":0},{"$f":"VLOOKUP(A31,'VOLUMEN DE QUEJAS'!$A$5:$F$166,6,FALSE)","v":0},{"$f":"VLOOKUP(A31,'RESUMEN DE COSTOS AP'!$A$5:$D$164,4,FALSE)","v":10},{"$f":"VLOOKUP(A31,'TIEMPO DE RESPUESTA'!$A$5:$D$166,4,FALSE)","v":30},{"$f":"VLOOKUP(A31,'CANAL ATENCIÓN'!$A$5:$D$166,4,FALSE)","v":10},"NO",0,"NO",0,"NO",0,50]
["MTOP-014-02-04","MTOP-014-02-04 Actualización de Matrículas de Agencias Navieras por Extención a otro Puerto para Tráfico Nacional",{"$f":"VLOOKUP(A32,'DEMANDA ANUAL'!$A$5:$D$166,4,FALSE)","v":0},{"$f":"VLOOKUP(A32,'VOLUMEN DE QUEJAS'!$A$5:$F$166,6,FALSE)","v":0},{"$f":"VLOOKUP(A32,'RESUMEN DE COSTOS AP'!$A$5:$D$164,4,FALSE)","v":20},{"$f":"VLOOKUP(A32,'TIEMPO DE RESPUESTA'!$A$5:$D$166,4,FALSE)","v":30},{"$f":"VLOOKUP(A32,'CANAL ATENCIÓN'!$A$5:$D$166,4,FALSE)","v":10},"NO",0,"NO",0,"NO",0,60]
["MTOP-014-02-05","MTOP-014-02-05 Inactivación de Matrícula de Agencia Naviera para Tráfico Nacional",{"$f":"VLOOKUP(A33,'DEMANDA ANUAL'!$A$5:$D$166,4,FALSE)","v":0},{"$f":"VLOOKUP(A33,'VOLUMEN DE QUEJAS'!$A$5:$F$166,6,FALSE)","v":0},{"$f":"VLOOKUP(A33,'RESUMEN DE COSTOS AP'!$A$5:$D$164,4,FALSE)","v":5},{"$f":"VLOOKUP(A33,'TIEMPO DE RESPUESTA'!$A$5:$D$166,4,FALSE)","v":0},{"$f":"VLOOKUP(A33,'CANAL ATENCIÓN'!$A$5:$D$166,4,FALSE)","v":10},"NO",0,"NO",0,"NO",0,15]
["MTOP-007-01-02","Renovación Matrícula de Operadores Portuarios de Pasajeros",{"$f":"VLOOKUP(A34,'DEMANDA ANUAL'!$A$5:$D$166,4,FALSE)","v":0},{"$f":"VLOOKUP(A34,'VOLUMEN DE QUEJAS'!$A$5:$F$166,6,FALSE)","v":0},{"$f":"VLOOKUP(A34,'RESUMEN DE COSTOS AP'!$A$5:$D$164,4,FALSE)","v":5},{"$f":"VLOOKUP(A34,'TIEMPO DE RESPUESTA'!$A$5:$D$166,4,FALSE)","v":0},{"$f":"VLOOKUP(A34,'CANAL ATENCIÓN'!$A$5:$D$166,4,FALSE)","v":10},"NO",0,"NO",0,"NO",0,15]
["MTOP-007-03-07","Revocación de Matrícula de Operadores Portuarios de Buque",{"$f":"VLOOKUP(A35,'DEMANDA ANUAL'!$A$5:$D$166,4,FALSE)","v":0},{"$f":"VLOOKUP(A35,'VOLUMEN DE QUEJAS'!$A$5:$F$166,6,FALSE)","v":0},{"$f":"VLOOKUP(A35,'RESUMEN DE COSTOS AP'!$A$5:$D$164,4,FALSE)","v":5},{"$f":"VLOOKUP(A35,'TIEMPO DE RESPUESTA'!$A$5:$D$166,4,FALSE)","v":0},{"$f":"VLOOKUP(A35,'CANAL ATENCIÓN'!$A$5:$D$166,4,FALSE)","v":10},"NO",0,"NO",0,"NO",0,15]
["MTOP-007-01-07","Revocación de Matrícula de Operadores Portuarios de Pasajeros",{"$f":"VLOOKUP(A36,'DEMANDA ANUAL'!$A$5:$D$166,4,FALSE)","v":0},{"$f":"VLOOKUP(A36,'VOLUMEN DE QUEJAS'!$A$5:$F$166,6,FALSE)","v":0},{"$f":"VLOOKUP(A36,'RESUMEN DE COSTOS AP'!$A$5:$D$164,4,FALSE)","v":10},{"$f":"VLOOKUP(A36,'TIEMPO DE RESPUESTA'!$A$5:$D$166,4,FALSE)","v":30},{"$f":"VLOOKUP(A36,'CANAL ATENCIÓN'!$A$5:$D$166,4,FALSE)","v":10},"NO",0,"NO",0,"NO",0,50]
["MTOP-007-04-04","Actualización de Representante Legal de Operadores Portuarios de Carga",{"$f":"VLOOKUP(A37,'DEMANDA ANUAL'!$A$5:$D$166,4,FALSE)","v":3},{"$f":"VLOOKUP(A37,'VOLUMEN DE QUEJAS'!$A$5:$F$166,6,FALSE)","v":0},{"$f":"VLOOKUP(A37,'RESUMEN DE COSTOS AP'!$A$5:$D$164,4,FALSE)","v":5},{"$f":"VLOOKUP(A37,'TIEMPO DE RESPUESTA'!$A$5:$D$166,4,FALSE)","v":0},{"$f":"VLOOKUP(A37,'CANAL ATENCIÓN'!$A$5:$D$166,4,FALSE)","v":10},"NO",0,"NO",0,"NO",0,18]
["MTOP-033-01-01","Aprobación del Diseño Definitivo de la Nave por Modificación (DENTRO DEL PERIMETRO URBANO)",{"$f":"VLOOKUP(A38,'DEMANDA ANUAL'!$A$5:$D$166,4,FALSE)","v":3},{"$f":"VLOOKUP(A38,'VOLUMEN DE QUEJAS'!$A$5:$F$166,6,FALSE)","v":0},{"$f":"VLOOKUP(A38,'RESUMEN DE COSTOS AP'!$A$5:$D$164,4,FALSE)","v":20},{"$f":"VLOOKUP(A38,'TIEMPO DE RESPUESTA'!$A$5:$D$166,4,FALSE)","v":30},{"$f":"VLOOKUP(A38,'CANAL ATENCIÓN'!$A$5:$D$166,4,FALSE)","v":10},"NO",0,"NO",0,"NO",0,63]
["MTOP-033-01-02","Aprobación del Diseño Definitivo de la Nave por Modificación (FUERA DEL PERIMETRO URBANO)",{"$f":"VLOOKUP(A39,'DEMANDA ANUAL'!$A$5:$D$166,4,FALSE)","v":3},{"$f":"VLOOKUP(A39,'VOLUMEN DE QUEJAS'!$A$5:$F$166,6,FALSE)","v":0},{"$f":"VLOOKUP(A39,'RESUMEN DE COSTOS AP'!$A$5:$D$164,4,FALSE)","v":20},{"$f":"VLOOKUP(A39,'TIEMPO DE RESPUESTA'!$A$5:$D$166,4,FALSE)","v":30},{"$f":"VLOOKUP(A39,'CANAL ATENCIÓN'!$A$5:$D$166,4,FALSE)","v":10},"NO",0,"NO",0,"NO",0,63]
["MTOP-033-01-03","Aprobación del Diseño Definitivo de la Nave por Modificación (GALAPAGOS ESMERALDAS AMAZONIA)",{"$f":"VLOOKUP(A40,'DEMANDA ANUAL'!$A$5:$D$166,4,FALSE)","v":3},{"$f":"VLOOKUP(A40,'VOLUMEN DE QUEJAS'!$A$5:$F$166,6,FALSE)","v":0},{"$f":"VLOOKUP(A40,'RESUMEN DE COSTOS AP'!$A$5:$D$164,4,FALSE)","v":20},{"$f":"VLOOKUP(A40,'TIEMPO DE RESPUESTA'!$A$5:$D$166,4,FALSE)","v":30},{"$f":"VLOOKUP(A40,'CANAL ATENCIÓN'!$A$5:$D$166,4,FALSE)","v":10},"NO",0,"NO",0,"NO",0,63]
["MTOP-005-01-03","Autorización del Traspaso de la Ocupación",{"$f":"VLOOKUP(A41,'DEMANDA ANUAL'!$A$5:$D$166,4,FALSE)","v":3},{"$f":"VLOOKUP(A41,'VOLUMEN DE QUEJAS'!$A$5:$F$166,6,FALSE)","v":0},{"$f":"VLOOKUP(A41,'RESUMEN DE COSTOS AP'!$A$5:$D$164,4,FALSE)","v":10},{"$f":"VLOOKUP(A41,'TIEMPO DE RESPUESTA'!$A$5:$D$166,4,FALSE)","v":0},{"$f":"VLOOKUP(A41,'CANAL ATENCIÓN'!$A$5:$D$166,4,FALSE)","v":10},"NO",0,"NO",0,"NO",0,23]
["MTOP-002-04-04","Inactivación de Matrícula de Armadores Naves Menores a 50 TRB",{"$f":"VLOOKUP(A42,'DEMANDA ANUAL'!$A$5:$D$166,4,FALSE)","v":3},{"$f":"VLOOKUP(A42,'VOLUMEN DE QUEJAS'!$A$5:$F$166,6,FALSE)","v":0},{"$f":"VLOOKUP(A42,'RESUMEN DE COSTOS AP'!$A$5:$D$164,4,FALSE)","v":5},{"$f":"VLOOKUP(A42,'TIEMPO DE RESPUESTA'!$A$5:$D$166,4,FALSE)","v":0},{"$f":"VLOOKUP(A42,'CANAL ATENCIÓN'!$A$5:$D$166,4,FALSE)","v":10},"NO",0,"NO",0,"NO",0,18]
["MTOP-014-01-03","MTOP-014-01-03 Actualización de Matrículas de Agencias Navieras por Cambio de Representante Legal para Tráfico Internacional",{"$f":"VLOOKUP(A43,'DEMANDA ANUAL'!$A$5:$D$166,4,FALSE)","v":3},{"$f":"VLOOKUP(A43,'VOLUMEN DE QUEJAS'!$A$5:$F$166,6,FALSE)","v":0},{"$f":"VLOOKUP(A43,'RESUMEN DE COSTOS AP'!$A$5:$D$164,4,FALSE)","v":10},{"$f":"VLOOKUP(A43,'TIEMPO DE RESPUESTA'!$A$5:$D$166,4,FALSE)","v":30},{"$f":"VLOOKUP(A43,'CANAL ATENCIÓN'!$A$5:$D$166,4,FALSE)","v":10},"NO",0,"NO",0,"NO",0,53]
["MTOP-014-02-02","MTOP-014-02-02 Renovación de la Matrícula de Agencias Navieras para Tráfico Nacional",{"$f":"VLOOKUP(A44,'DEMANDA ANUAL'!$A$5:$D$166,4,FALSE)","v":3},{"$f":"VLOOKUP(A44,'VOLUMEN DE QUEJAS'!$A$5:$F$166,6,FALSE)","v":0},{"$f":"VLOOKUP(A44,'RESUMEN DE COSTOS AP'!$A$5:$D$164,4,FALSE)","v":10},{"$f":"VLOOKUP(A44,'TIEMPO DE RESPUESTA'!$A$5:$D$166,4,FALSE)","v":0},{"$f":"VLOOKUP(A44,'CANAL ATENCIÓN'!$A$5:$D$166,4,FALSE)","v":10},"NO",0,"NO",0,"NO",0,23]
["MTOP-011-01-01","Obtención de Certificado de No Interferencia con Otras Actividades Portuarias",{"$f":"VLOOKUP(A45,'DEMANDA ANUAL'!$A$5:$D$166,4,FALSE)","v":3},{"$f":"VLOOKUP(A45,'VOLUMEN DE QUEJAS'!$A$5:$F$166,6,FALSE)","v":0},{"$f":"VLOOKUP(A45,'RESUMEN DE COSTOS AP'!$A$5:$D$164,4,FALSE)","v":5},{"$f":"VLOOKUP(A45,'TIEMPO DE RESPUESTA'!$A$5:$D$166,4,FALSE)","v":0},{"$f":"VLOOKUP(A45,'CANAL ATENCIÓN'!$A$5:$D$166,4,FALSE)","v":10},"NO",0,"NO",0,"NO",0,18]
["MTOP-007-04-07","Revocación de Matrícula de Operadores Portuarios de Carga",{"$f":"VLOOKUP(A46,'DEMANDA ANUAL'!$A$5:$D$166,4,FALSE)","v":3},{"$f":"VLOOKUP(A46,'VOLUMEN DE QUEJAS'!$A$5:$F$166,6,FALSE)","v":0},{"$f":"VLOOKUP(A46,'RESUMEN DE COSTOS AP'!$A$5:$D$164,4,FALSE)","v":5},{"$f":"VLOOKUP(A46,'TIEMPO DE RESPUESTA'!$A$5:$D$166,4,FALSE)","v":0},{"$f":"VLOOKUP(A46,'CANAL ATENCIÓN'!$A$5:$D$166,4,FALSE)","v":10},"NO",0,"NO",0,"NO",0,18]
["MTOP-007-02-07","Revocación de Matrícula de Operadores Portuarios de Servicios Conexos",{"$f":"VLOOKUP(A47,'DEMANDA ANUAL'!$A$5:$D$166,4,FALSE)","v":3},{"$f":"VLOOKUP(A47,'VOLUMEN DE QUEJAS'!$A$5:$F$166,6,FALSE)","v":0},{"$f":"VLOOKUP(A47,'RESUMEN DE COSTOS AP'!$A$5:$D$164,4,FALSE)","v":5},{"$f":"VLOOKUP(A47,'TIEMPO DE RESPUESTA'!$A$5:$D$166,4,FALSE)","v":0},{"$f":"VLOOKUP(A47,'CANAL ATENCIÓN'!$A$5:$D$166,4,FALSE)","v":10},"NO",0,"NO",0,"NO",0,18]
["MTOP-007-03-04","Actualización de Representante Legal de Operadores Portuarios de Buque",{"$f":"VLOOKUP(A48,'DEMANDA ANUAL'!$A$5:$D$166,4,FALSE)","v":3},{"$f":"VLOOKUP(A48,'VOLUMEN DE QUEJAS'!$A$5:$F$166,6,FALSE)","v":0},{"$f":"VLOOKUP(A48,'RESUMEN DE COSTOS AP'!$A$5:$D$164,4,FALSE)","v":5},{"$f":"VLOOKUP(A48,'TIEMPO DE RESPUESTA'!$A$5:$D$166,4,FALSE)","v":0},{"$f":"VLOOKUP(A48,'CANAL ATENCIÓN'!$A$5:$D$166,4,FALSE)","v":10},"NO",0,"NO",0,"NO",0,18]
["MTOP-032-01-02","Aprobación del Diseño Definitivo de la Nave por Construcción (FUERA DEL PERIMETRO URBANO)",{"$f":"VLOOKUP(A49,'DEMANDA ANUAL'!$A$5:$D$166,4,FALSE)","v":3},{"$f":"VLOOKUP(A49,'VOLUMEN DE QUEJAS'!$A$5:$F$166,6,FALSE)","v":0},{"$f":"VLOOKUP(A49,'RESUMEN DE COSTOS AP'!$A$5:$D$164,4,FALSE)","v":20},{"$f":"VLOOKUP(A49,'TIEMPO DE RESPUESTA'!$A$5:$D$166,4,FALSE)","v":30},{"$f":"VLOOKUP(A49,'CANAL ATENCIÓN'!$A$5:$D$166,4,FALSE)","v":10},"NO",0,"NO",0,"NO",0,63]
["MTOP-021-01-06","Emisión de la Autorización para facturar con tarifa 0% IVA por la construcción, mantenimiento y reparación de naves como beneficiario de la LEFORTAAC",{"$f":"VLOOKUP(A50,'DEMANDA ANUAL'!$A$5:$D$166,4,FALSE)","v":3},{"$f":"VLOOKUP(A50,'VOLUMEN DE QUEJAS'!$A$5:$F$166,6,FALSE)","v":0},{"$f":"VLOOKUP(A50,'RESUMEN DE COSTOS AP'!$A$5:$D$164,4,FALSE)","v":10},{"$f":"VLOOKUP(A50,'TIEMPO DE RESPUESTA'!$A$5:$D$166,4,FALSE)","v":0},{"$f":"VLOOKUP(A50,'CANAL ATENCIÓN'!$A$5:$D$166,4,FALSE)","v":10},"NO",0,"NO",0,"NO",0,23]
["MTOP-027-04-02","Emisión de Resolución de Cancelación de Patente de Navegación",{"$f":"VLOOKUP(A51,'DEMANDA ANUAL'!$A$5:$D$166,4,FALSE)","v":3},{"$f":"VLOOKUP(A51,'VOLUMEN DE QUEJAS'!$A$5:$F$166,6,FALSE)","v":0},{"$f":"VLOOKUP(A51,'RESUMEN DE COSTOS AP'!$A$5:$D$164,4,FALSE)","v":20},{"$f":"VLOOKUP(A51,'TIEMPO DE RESPUESTA'!$A$5:$D$166,4,FALSE)","v":30},{"$f":"VLOOKUP(A51,'CANAL ATENCIÓN'!$A$5:$D$166,4,FALSE)","v":10},"NO",0,"NO",0,"NO",0,63]
["MTOP-014-02-01","MTOP-014-02-01 Matriculación de Agencias Navieras por Primera Vez para Tráfico Nacional",{"$f":"VLOOKUP(A52,'DEMANDA ANUAL'!$A$5:$D$166,4,FALSE)","v":3},{"$f":"VLOOKUP(A52,'VOLUMEN DE QUEJAS'!$A$5:$F$166,6,FALSE)","v":0},{"$f":"VLOOKUP(A52,'RESUMEN DE COSTOS AP'!$A$5:$D$164,4,FALSE)","v":20},{"$f":"VLOOKUP(A52,'TIEMPO DE RESPUESTA'!$A$5:$D$166,4,FALSE)","v":30},{"$f":"VLOOKUP(A52,'CANAL ATENCIÓN'!$A$5:$D$166,4,FALSE)","v":10},"NO",0,"NO",0,"NO",0,63]
["MTOP-014-02-03","MTOP-014-02-03 Actualización de Matrículas de Agencias Navieras por Cambio de Representante Legal para Tráfico Nacional",{"$f":"VLOOKUP(A53,'DEMANDA ANUAL'!$A$5:$D$166,4,FALSE)","v":3},{"$f":"VLOOKUP(A53,'VOLUMEN DE QUEJAS'!$A$5:$F$166,6,FALSE)","v":0},{"$f":"VLOOKUP(A53,'RESUMEN DE COSTOS AP'!$A$5:$D$164,4,FALSE)","v":10},{"$f":"VLOOKUP(A53,'TIEMPO DE RESPUESTA'!$A$5:$D$166,4,FALSE)","v":30},{"$f":"VLOOKUP(A53,'CANAL ATENCIÓN'!$A$5:$D$166,4,FALSE)","v":10},"NO",0,"NO",0,"NO",0,53]
["MTOP-007-02-05","Actualización de datos de Matrícula de Operadores Portuarios de Servicios Conexos",{"$f":"VLOOKUP(A54,'DEMANDA ANUAL'!$A$5:$D$166,4,FALSE)","v":3},{"$f":"VLOOKUP(A54,'VOLUMEN DE QUEJAS'!$A$5:$F$166,6,FALSE)","v":0},{"$f":"VLOOKUP(A54,'RESUMEN DE COSTOS AP'!$A$5:$D$164,4,FALSE)","v":10},{"$f":"VLOOKUP(A54,'TIEMPO DE RESPUESTA'!$A$5:$D$166,4,FALSE)","v":30},{"$f":"VLOOKUP(A54,'CANAL ATENCIÓN'!$A$5:$D$166,4,FALSE)","v":10},"NO",0,"NO",0,"NO",0,53]
["MTOP-007-04-03","Ampliación de Servicios de Operadores Portuarios de Carga",{"$f":"VLOOKUP(A55,'DEMANDA ANUAL'!$A$5:$D$166,4,FALSE)","v":3},{"$f":"VLOOKUP(A55,'VOLUMEN DE QUEJAS'!$A$5:$F$166,6,FALSE)","v":0},{"$f":"VLOOKUP(A55,'RESUMEN DE COSTOS AP'!$A$5:$D$164,4,FALSE)","v":5},{"$f":"VLOOKUP(A55,'TIEMPO DE RESPUESTA'!$A$5:$D$166,4,FALSE)","v":0},{"$f":"VLOOKUP(A55,'CANAL ATENCIÓN'!$A$5:$D$166,4,FALSE)","v":10},"NO",0,"NO",0,"NO",0,18]
["MTOP-035-01-03","Aprobación de planos por Nacionalización (GALAPAGOS ESMERALDAS AMAZONIA)",{"$f":"VLOOKUP(A56,'DEMANDA ANUAL'!$A$5:$D$166,4,FALSE)","v":3},{"$f":"VLOOKUP(A56,'VOLUMEN DE QUEJAS'!$A$5:$F$166,6,FALSE)","v":0},{"$f":"VLOOKUP(A56,'RESUMEN DE COSTOS AP'!$A$5:$D$164,4,FALSE)","v":20},{"$f":"VLOOKUP(A56,'TIEMPO DE RESPUESTA'!$A$5:$D$166,4,FALSE)","v":30},{"$f":"VLOOKUP(A56,'CANAL ATENCIÓN'!$A$5:$D$166,4,FALSE)","v":10},"NO",0,"NO",0,"NO",0,63]
["MTOP-015-02-03","Autorización de Entrenamiento para los Aspirantes a Capitanes de Amarre y Control de Carga",{"$f":"VLOOKUP(A57,'DEMANDA ANUAL'!$A$5:$D$166,4,FALSE)","v":3},{"$f":"VLOOKUP(A57,'VOLUMEN DE QUEJAS'!$A$5:$F$166,6,FALSE)","v":0},{"$f":"VLOOKUP(A57,'RESUMEN DE COSTOS AP'!$A$5:$D$164,4,FALSE)","v":5},{"$f":"VLOOKUP(A57,'TIEMPO DE RESPUESTA'!$A$5:$D$166,4,FALSE)","v":0},{"$f":"VLOOKUP(A57,'CANAL ATENCIÓN'!$A$5:$D$166,4,FALSE)","v":10},"NO",0,"NO",0,"NO",0,18]
["MTOP-012-01-03","Certificación de Aprobación de la Evaluación de protección de instalación portuaria",{"$f":"VLOOKUP(A58,'DEMANDA ANUAL'!$A$5:$D$166,4,FALSE)","v":3},{"$f":"VLOOKUP(A58,'VOLUMEN DE QUEJAS'!$A$5:$F$166,6,FALSE)","v":0},{"$f":"VLOOKUP(A58,'RESUMEN DE COSTOS AP'!$A$5:$D$164,4,FALSE)","v":20},{"$f":"VLOOKUP(A58,'TIEMPO DE RESPUESTA'!$A$5:$D$166,4,FALSE)","v":30},{"$f":"VLOOKUP(A58,'CANAL ATENCIÓN'!$A$5:$D$166,4,FALSE)","v":10},"NO",0,"NO",0,"NO",0,63]
["MTOP-012-01-04","Certificación de Aprobacion del Plan de proteccion de instalacion portuaria",{"$f":"VLOOKUP(A59,'DEMANDA ANUAL'!$A$5:$D$166,4,FALSE)","v":3},{"$f":"VLOOKUP(A59,'VOLUMEN DE QUEJAS'!$A$5:$F$166,6,FALSE)","v":0},{"$f":"VLOOKUP(A59,'RESUMEN DE COSTOS AP'!$A$5:$D$164,4,FALSE)","v":20},{"$f":"VLOOKUP(A59,'TIEMPO DE RESPUESTA'!$A$5:$D$166,4,FALSE)","v":30},{"$f":"VLOOKUP(A59,'CANAL ATENCIÓN'!$A$5:$D$166,4,FALSE)","v":10},"NO",0,"NO",0,"NO",0,63]
["MTOP-015-02-04","Certificación de Títulos de Capitanes de Amarre y Control de Carga",{"$f":"VLOOKUP(A60,'DEMANDA ANUAL'!$A$5:$D$166,4,FALSE)","v":3},{"$f":"VLOOKUP(A60,'VOLUMEN DE QUEJAS'!$A$5:$F$166,6,FALSE)","v":0},{"$f":"VLOOKUP(A60,'RESUMEN DE COSTOS AP'!$A$5:$D$164,4,FALSE)","v":5},{"$f":"VLOOKUP(A60,'TIEMPO DE RESPUESTA'!$A$5:$D$166,4,FALSE)","v":0},{"$f":"VLOOKUP(A60,'CANAL ATENCIÓN'!$A$5:$D$166,4,FALSE)","v":10},"NO",0,"NO",0,"NO",0,18]
["MTOP-027-05-01","Emisión de Registro de Sociedad Clasificadora",{"$f":"VLOOKUP(A61,'DEMANDA ANUAL'!$A$5:$D$166,4,FALSE)","v":3},{"$f":"VLOOKUP(A61,'VOLUMEN DE QUEJAS'!$A$5:$F$166,6,FALSE)","v":0},{"$f":"VLOOKUP(A61,'RESUMEN DE COSTOS AP'!$A$5:$D$164,4,FALSE)","v":20},{"$f":"VLOOKUP(A61,'TIEMPO DE RESPUESTA'!$A$5:$D$166,4,FALSE)","v":30},{"$f":"VLOOKUP(A61,'CANAL ATENCIÓN'!$A$5:$D$166,4,FALSE)","v":10},"NO",0,"NO",0,"NO",0,63]
["MTOP-014-01-05","MTOP-014-01-05 Inactivación de Matrícula de Agencia Naviera para Tráfico Internacional",{"$f":"VLOOKUP(A62,'DEMANDA ANUAL'!$A$5:$D$166,4,FALSE)","v":3},{"$f":"VLOOKUP(A62,'VOLUMEN DE QUEJAS'!$A$5:$F$166,6,FALSE)","v":0},{"$f":"VLOOKUP(A62,'RESUMEN DE COSTOS AP'!$A$5:$D$164,4,FALSE)","v":5},{"$f":"VLOOKUP(A62,'TIEMPO DE RESPUESTA'!$A$5:$D$166,4,FALSE)","v":0},{"$f":"VLOOKUP(A62,'CANAL ATENCIÓN'!$A$5:$D$166,4,FALSE)","v":10},"NO",0,"NO",0,"NO",0,18]
["MTOP-007-04-06","Actualización de Registros de Operadores Portuarios de Carga",{"$f":"VLOOKUP(A63,'DEMANDA ANUAL'!$A$5:$D$166,4,FALSE)","v":3},{"$f":"VLOOKUP(A63,'VOLUMEN DE QUEJAS'!$A$5:$F$166,6,FALSE)","v":0},{"$f":"VLOOKUP(A63,'RESUMEN DE COSTOS AP'!$A$5:$D$164,4,FALSE)","v":5},{"$f":"VLOOKUP(A63,'TIEMPO DE RESPUESTA'!$A$5:$D$166,4,FALSE)","v":0},{"$f":"VLOOKUP(A63,'CANAL ATENCIÓN'!$A$5:$D$166,4,FALSE)","v":10},"NO",0,"NO",0,"NO",0,18]
["MTOP-005-01-02","Actualización y/o Modificación del Permiso de Ocupación",{"$f":"VLOOKUP(A64,'DEMANDA ANUAL'!$A$5:$D$166,4,FALSE)","v":3},{"$f":"VLOOKUP(A64,'VOLUMEN DE QUEJAS'!$A$5:$F$166,6,FALSE)","v":0},{"$f":"VLOOKUP(A64,'RESUMEN DE COSTOS AP'!$A$5:$D$164,4,FALSE)","v":10},{"$f":"VLOOKUP(A64,'TIEMPO DE RESPUESTA'!$A$5:$D$166,4,FALSE)","v":0},{"$f":"VLOOKUP(A64,'CANAL ATENCIÓN'!$A$5:$D$166,4,FALSE)","v":10},"NO",0,"NO",0,"NO",0,23]
["MTOP-007-02-03","Ampliación de Servicios de Operadores Portuarios de Servicios Conexos",{"$f":"VLOOKUP(A65,'DEMANDA ANUAL'!$A$5:$D$166,4,FALSE)","v":3},{"$f":"VLOOKUP(A65,'VOLUMEN DE QUEJAS'!$A$5:$F$166,6,FALSE)","v":0},{"$f":"VLOOKUP(A65,'RESUMEN DE COSTOS AP'!$A$5:$D$164,4,FALSE)","v":10},{"$f":"VLOOKUP(A65,'TIEMPO DE RESPUESTA'!$A$5:$D$166,4,FALSE)","v":30},{"$f":"VLOOKUP(A65,'CANAL ATENCIÓN'!$A$5:$D$166,4,FALSE)","v":10},"NO",0,"NO",0,"NO",0,53]
["MTOP-010-02-03","Autorización de Desguace de Naves de Bandera Nacional o Extranjeras",{"$f":"VLOOKUP(A66,'DEMANDA ANUAL'!$A$5:$D$166,4,FALSE)","v":3},{"$f":"VLOOKUP(A66,'VOLUMEN DE QUEJAS'!$A$5:$F$166,6,FALSE)","v":0},{"$f":"VLOOKUP(A66,'RESUMEN DE COSTOS AP'!$A$5:$D$164,4,FALSE)","v":5},{"$f":"VLOOKUP(A66,'TIEMPO DE RESPUESTA'!$A$5:$D$166,4,FALSE)","v":0},{"$f":"VLOOKUP(A66,'CANAL ATENCIÓN'!$A$5:$D$166,4,FALSE)","v":10},"NO",0,"NO",0,"NO",0,18]
["MTOP-020-03-01","Autorización de Trayectoria Interna de Embarcaciones entre Puertos Nacionales",{"$f":"VLOOKUP(A67,'DEMANDA ANUAL'!$A$5:$D$166,4,FALSE)","v":3},{"$f":"VLOOKUP(A67,'VOLUMEN DE QUEJAS'!$A$5:$F$166,6,FALSE)","v":0},{"$f":"VLOOKUP(A67,'RESUMEN DE COSTOS AP'!$A$5:$D$164,4,FALSE)","v":5},{"$f":"VLOOKUP(A67,'TIEMPO DE RESPUESTA'!$A$5:$D$166,4,FALSE)","v":0},{"$f":"VLOOKUP(A67,'CANAL ATENCIÓN'!$A$5:$D$166,4,FALSE)","v":10},"NO",0,"NO",0,"NO",0,18]
["MTOP-004-02-03","Emisión de Permiso de Operación a Estación de Servicios de Balsas Salvavidas Inflables",{"$f":"VLOOKUP(A68,'DEMANDA ANUAL'!$A$5:$D$166,4,FALSE)","v":3},{"$f":"VLOOKUP(A68,'VOLUMEN DE QUEJAS'!$A$5:$F$166,6,FALSE)","v":0},{"$f":"VLOOKUP(A68,'RESUMEN DE COSTOS AP'!$A$5:$D$164,4,FALSE)","v":5},{"$f":"VLOOKUP(A68,'TIEMPO DE RESPUESTA'!$A$5:$D$166,4,FALSE)","v":0},{"$f":"VLOOKUP(A68,'CANAL ATENCIÓN'!$A$5:$D$166,4,FALSE)","v":10},"NO",0,"NO",0,"NO",0,18]
["MTOP-014-01-04","MTOP-014-01-04 Actualización de Matrículas de Agencias Navieras por Extención a otro Puertopara Tráfico Internacional",{"$f":"VLOOKUP(A69,'DEMANDA ANUAL'!$A$5:$D$166,4,FALSE)","v":3},{"$f":"VLOOKUP(A69,'VOLUMEN DE QUEJAS'!$A$5:$F$166,6,FALSE)","v":0},{"$f":"VLOOKUP(A69,'RESUMEN DE COSTOS AP'!$A$5:$D$164,4,FALSE)","v":10},{"$f":"VLOOKUP(A69,'TIEMPO DE RESPUESTA'!$A$5:$D$166,4,FALSE)","v":30},{"$f":"VLOOKUP(A69,'CANAL ATENCIÓN'!$A$5:$D$166,4,FALSE)","v":10},"NO",{"$f":"IF(H69=\"SI\",5,0)","v":0},"NO",{"$f":"IF(J69=\"SI\",10,0)","v":0},"NO",{"$f":"IF(L69=\"SI\",5,0)","v":0},{"$f":"SUM(C69:G69,I69,K69,M69)","v":53}]
["MTOP-010-02-04","Autorización a Buques De Bandera Nacional e Internacional Para Realizar Viajes Extraordinarios Para Puertos Internacionales",{"$f":"VLOOKUP(A70,'DEMANDA ANUAL'!$A$5:$D$166,4,FALSE)","v":3},{"$f":"VLOOKUP(A70,'VOLUMEN DE QUEJAS'!$A$5:$F$166,6,FALSE)","v":0},{"$f":"VLOOKUP(A70,'RESUMEN DE COSTOS AP'!$A$5:$D$164,4,FALSE)","v":5},{"$f":"VLOOKUP(A70,'TIEMPO DE RESPUESTA'!$A$5:$D$166,4,FALSE)","v":0},{"$f":"VLOOKUP(A70,'CANAL ATENCIÓN'!$A$5:$D$166,4,FALSE)","v":10},"NO",0,"NO",0,"NO",0,18]
["MTOP-004-01-01","Emisión de Permiso de Construcción, Operación, Modificación y/o Ampliación de Facilidades o Instalaciones Portuarias, Internacional",{"$f":"VLOOKUP(A71,'DEMANDA ANUAL'!$A$5:$D$166,4,FALSE)","v":3},{"$f":"VLOOKUP(A71,'VOLUMEN DE QUEJAS'!$A$5:$F$166,6,FALSE)","v":0},{"$f":"VLOOKUP(A71,'RESUMEN DE COSTOS AP'!$A$5:$D$164,4,FALSE)","v":10},{"$f":"VLOOKUP(A71,'TIEMPO DE RESPUESTA'!$A$5:$D$166,4,FALSE)","v":30},{"$f":"VLOOKUP(A71,'CANAL ATENCIÓN'!$A$5:$D$166,4,FALSE)","v":10},"NO",0,"NO",0,"NO",0,53]
["MTOP-004-02-02","Emisión de Permiso de Operación a Estación de Servicios de Extintores",{"$f":"VLOOKUP(A72,'DEMANDA ANUAL'!$A$5:$D$166,4,FALSE)","v":3},{"$f":"VLOOKUP(A72,'VOLUMEN DE QUEJAS'!$A$5:$F$166,6,FALSE)","v":0},{"$f":"VLOOKUP(A72,'RESUMEN DE COSTOS AP'!$A$5:$D$164,4,FALSE)","v":5},{"$f":"VLOOKUP(A72,'TIEMPO DE RESPUESTA'!$A$5:$D$166,4,FALSE)","v":0},{"$f":"VLOOKUP(A72,'CANAL ATENCIÓN'!$A$5:$D$166,4,FALSE)","v":10},"NO",0,"NO",0,"NO",0,18]
["MTOP-033-02-01","Emisión de Licencia de Modificación y Aprobación de Planos Preliminares de la Nave",{"$f":"VLOOKUP(A73,'DEMANDA ANUAL'!$A$5:$D$166,4,FALSE)","v":3},{"$f":"VLOOKUP(A73,'VOLUMEN DE QUEJAS'!$A$5:$F$166,6,FALSE)","v":0},{"$f":"VLOOKUP(A73,'RESUMEN DE COSTOS AP'!$A$5:$D$164,4,FALSE)","v":20},{"$f":"VLOOKUP(A73,'TIEMPO DE RESPUESTA'!$A$5:$D$166,4,FALSE)","v":30},{"$f":"VLOOKUP(A73,'CANAL ATENCIÓN'!$A$5:$D$166,4,FALSE)","v":10},"NO",0,"NO",0,"NO",0,63]
["MTOP-022-02-01","Emisión del Certificado de Seguridad para Buques de Carga.",{"$f":"VLOOKUP(A74,'DEMANDA ANUAL'!$A$5:$D$166,4,FALSE)","v":3},{"$f":"VLOOKUP(A74,'VOLUMEN DE QUEJAS'!$A$5:$F$166,6,FALSE)","v":0},{"$f":"VLOOKUP(A74,'RESUMEN DE COSTOS AP'!$A$5:$D$164,4,FALSE)","v":10},{"$f":"VLOOKUP(A74,'TIEMPO DE RESPUESTA'!$A$5:$D$166,4,FALSE)","v":30},{"$f":"VLOOKUP(A74,'CANAL ATENCIÓN'!$A$5:$D$166,4,FALSE)","v":10},"NO",0,"NO",0,"NO",0,53]
["MTOP-002-01-04","Inactivación de Matrícula de Armadores Naves Mayores a 50 TRB",{"$f":"VLOOKUP(A75,'DEMANDA ANUAL'!$A$5:$D$166,4,FALSE)","v":3},{"$f":"VLOOKUP(A75,'VOLUMEN DE QUEJAS'!$A$5:$F$166,6,FALSE)","v":0},{"$f":"VLOOKUP(A75,'RESUMEN DE COSTOS AP'!$A$5:$D$164,4,FALSE)","v":5},{"$f":"VLOOKUP(A75,'TIEMPO DE RESPUESTA'!$A$5:$D$166,4,FALSE)","v":0},{"$f":"VLOOKUP(A75,'CANAL ATENCIÓN'!$A$5:$D$166,4,FALSE)","v":10},"NO",0,"NO",0,"NO",0,18]
["MTOP-021-04-01","Verificación cuatrimestral de naves y bienes importados al amparo de la LEFORTAAC",{"$f":"VLOOKUP(A76,'DEMANDA ANUAL'!$A$5:$D$166,4,FALSE)","v":3},{"$f":"VLOOKUP(A76,'VOLUMEN DE QUEJAS'!$A$5:$F$166,6,FALSE)","v":0},{"$f":"VLOOKUP(A76,'RESUMEN DE COSTOS AP'!$A$5:$D$164,4,FALSE)","v":10},{"$f":"VLOOKUP(A76,'TIEMPO DE RESPUESTA'!$A$5:$D$166,4,FALSE)","v":0},{"$f":"VLOOKUP(A76,'CANAL ATENCIÓN'!$A$5:$D$166,4,FALSE)","v":10},"NO",0,"NO",0,"NO",0,23]
["MTOP-034-01-03","Aprobación de planos por Legalización de la Construcción (GALAPAGOS ESMERALDAS AMAZONIA)",{"$f":"VLOOKUP(A77,'DEMANDA ANUAL'!$A$5:$D$166,4,FALSE)","v":3},{"$f":"VLOOKUP(A77,'VOLUMEN DE QUEJAS'!$A$5:$F$166,6,FALSE)","v":0},{"$f":"VLOOKUP(A77,'RESUMEN DE COSTOS AP'!$A$5:$D$164,4,FALSE)","v":20},{"$f":"VLOOKUP(A77,'TIEMPO DE RESPUESTA'!$A$5:$D$166,4,FALSE)","v":30},{"$f":"VLOOKUP(A77,'CANAL ATENCIÓN'!$A$5:$D$166,4,FALSE)","v":10},"NO",0,"NO",0,"NO",0,63]
["MTOP-035-01-01","Aprobación de planos por Nacionalización (DENTRO DEL PERIMETRO URBANO)",{"$f":"VLOOKUP(A78,'DEMANDA ANUAL'!$A$5:$D$166,4,FALSE)","v":3},{"$f":"VLOOKUP(A78,'VOLUMEN DE QUEJAS'!$A$5:$F$166,6,FALSE)","v":0},{"$f":"VLOOKUP(A78,'RESUMEN DE COSTOS AP'!$A$5:$D$164,4,FALSE)","v":20},{"$f":"VLOOKUP(A78,'TIEMPO DE RESPUESTA'!$A$5:$D$166,4,FALSE)","v":30},{"$f":"VLOOKUP(A78,'CANAL ATENCIÓN'!$A$5:$D$166,4,FALSE)","v":10},"NO",0,"NO",0,"NO",0,63]
["MTOP-032-01-01","Aprobación del Diseño Definitivo de la Nave por Construcción (DENTRO DEL PERIMETRO URBANO)",{"$f":"VLOOKUP(A79,'DEMANDA ANUAL'!$A$5:$D$166,4,FALSE)","v":3},{"$f":"VLOOKUP(A79,'VOLUMEN DE QUEJAS'!$A$5:$F$166,6,FALSE)","v":0},{"$f":"VLOOKUP(A79,'RESUMEN DE COSTOS AP'!$A$5:$D$164,4,FALSE)","v":20},{"$f":"VLOOKUP(A79,'TIEMPO DE RESPUESTA'!$A$5:$D$166,4,FALSE)","v":30},{"$f":"VLOOKUP(A79,'CANAL ATENCIÓN'!$A$5:$D$166,4,FALSE)","v":10},"NO",0,"NO",0,"NO",0,63]
["MTOP-019-01-04","Emisión de Autorización de Asignación de Muelles para Desguace",{"$f":"VLOOKUP(A80,'DEMANDA ANUAL'!$A$5:$D$166,4,FALSE)","v":3},{"$f":"VLOOKUP(A80,'VOLUMEN DE QUEJAS'!$A$5:$F$166,6,FALSE)","v":0},{"$f":"VLOOKUP(A80,'RESUMEN DE COSTOS AP'!$A$5:$D$164,4,FALSE)","v":10},{"$f":"VLOOKUP(A80,'TIEMPO DE RESPUESTA'!$A$5:$D$166,4,FALSE)","v":30},{"$f":"VLOOKUP(A80,'CANAL ATENCIÓN'!$A$5:$D$166,4,FALSE)","v":10},"NO",0,"NO",0,"NO",0,53]
["MTOP-006-01-03","Emisión de Permiso de Comercialización de Dispersantes para el Control del Derrame de Hidrocarburos",{"$f":"VLOOKUP(A81,'DEMANDA ANUAL'!$A$5:$D$166,4,FALSE)","v":3},{"$f":"VLOOKUP(A81,'VOLUMEN DE QUEJAS'!$A$5:$F$166,6,FALSE)","v":0},{"$f":"VLOOKUP(A81,'RESUMEN DE COSTOS AP'!$A$5:$D$164,4,FALSE)","v":5},{"$f":"VLOOKUP(A81,'TIEMPO DE RESPUESTA'!$A$5:$D$166,4,FALSE)","v":0},{"$f":"VLOOKUP(A81,'CANAL ATENCIÓN'!$A$5:$D$166,4,FALSE)","v":10},"NO",0,"NO",0,"NO",0,18]
["MTOP-007-03-01","Matriculación por Primera Vez de Operadores Portuarios de Buque",{"$f":"VLOOKUP(A82,'DEMANDA ANUAL'!$A$5:$D$166,4,FALSE)","v":3},{"$f":"VLOOKUP(A82,'VOLUMEN DE QUEJAS'!$A$5:$F$166,6,FALSE)","v":0},{"$f":"VLOOKUP(A82,'RESUMEN DE COSTOS AP'!$A$5:$D$164,4,FALSE)","v":5},{"$f":"VLOOKUP(A82,'TIEMPO DE RESPUESTA'!$A$5:$D$166,4,FALSE)","v":0},{"$f":"VLOOKUP(A82,'CANAL ATENCIÓN'!$A$5:$D$166,4,FALSE)","v":10},"NO",0,"NO",0,"NO",0,18]
["MTOP-014-01-01","MTOP-014-01-01 Matriculación de Agencias Navieras por Primera Vez para Tráfico Internacional",{"$f":"VLOOKUP(A83,'DEMANDA ANUAL'!$A$5:$D$166,4,FALSE)","v":3},{"$f":"VLOOKUP(A83,'VOLUMEN DE QUEJAS'!$A$5:$F$166,6,FALSE)","v":0},{"$f":"VLOOKUP(A83,'RESUMEN DE COSTOS AP'!$A$5:$D$164,4,FALSE)","v":20},{"$f":"VLOOKUP(A83,'TIEMPO DE RESPUESTA'!$A$5:$D$166,4,FALSE)","v":30},{"$f":"VLOOKUP(A83,'CANAL ATENCIÓN'!$A$5:$D$166,4,FALSE)","v":10},"NO",0,"NO",0,"NO",0,63]
["MTOP-007-03-06","Actualización de Registros de Operadores Portuarios de Buque",{"$f":"VLOOKUP(A84,'DEMANDA ANUAL'!$A$5:$D$166,4,FALSE)","v":6},{"$f":"VLOOKUP(A84,'VOLUMEN DE QUEJAS'!$A$5:$F$166,6,FALSE)","v":0},{"$f":"VLOOKUP(A84,'RESUMEN DE COSTOS AP'!$A$5:$D$164,4,FALSE)","v":5},{"$f":"VLOOKUP(A84,'TIEMPO DE RESPUESTA'!$A$5:$D$166,4,FALSE)","v":0},{"$f":"VLOOKUP(A84,'CANAL ATENCIÓN'!$A$5:$D$166,4,FALSE)","v":10},"NO",0,"NO",0,"NO",0,21]
["MTOP-017-01-12","Aprobación de plano de capacidad de combustible (GALAPAGOS ESMERALDAS AMAZONIA)",{"$f":"VLOOKUP(A85,'DEMANDA ANUAL'!$A$5:$D$166,4,FALSE)","v":6},{"$f":"VLOOKUP(A85,'VOLUMEN DE QUEJAS'!$A$5:$F$166,6,FALSE)","v":0},{"$f":"VLOOKUP(A85,'RESUMEN DE COSTOS AP'!$A$5:$D$164,4,FALSE)","v":10},{"$f":"VLOOKUP(A85,'TIEMPO DE RESPUESTA'!$A$5:$D$166,4,FALSE)","v":30},{"$f":"VLOOKUP(A85,'CANAL ATENCIÓN'!$A$5:$D$166,4,FALSE)","v":10},"NO",0,"NO",0,"NO",0,56]
["MTOP-015-02-02","Certificación de Títulos de Prácticos",{"$f":"VLOOKUP(A86,'DEMANDA ANUAL'!$A$5:$D$166,4,FALSE)","v":6},{"$f":"VLOOKUP(A86,'VOLUMEN DE QUEJAS'!$A$5:$F$166,6,FALSE)","v":0},{"$f":"VLOOKUP(A86,'RESUMEN DE COSTOS AP'!$A$5:$D$164,4,FALSE)","v":5},{"$f":"VLOOKUP(A86,'TIEMPO DE RESPUESTA'!$A$5:$D$166,4,FALSE)","v":0},{"$f":"VLOOKUP(A86,'CANAL ATENCIÓN'!$A$5:$D$166,4,FALSE)","v":10},"NO",0,"NO",0,"NO",0,21]
["MTOP-019-01-03","Emisión de Autorización de Asignación de Muelle para embarcaciones remolcadas",{"$f":"VLOOKUP(A87,'DEMANDA ANUAL'!$A$5:$D$166,4,FALSE)","v":6},{"$f":"VLOOKUP(A87,'VOLUMEN DE QUEJAS'!$A$5:$F$166,6,FALSE)","v":0},{"$f":"VLOOKUP(A87,'RESUMEN DE COSTOS AP'!$A$5:$D$164,4,FALSE)","v":10},{"$f":"VLOOKUP(A87,'TIEMPO DE RESPUESTA'!$A$5:$D$166,4,FALSE)","v":30},{"$f":"VLOOKUP(A87,'CANAL ATENCIÓN'!$A$5:$D$166,4,FALSE)","v":10},"NO",0,"NO",0,"NO",0,56]
["MTOP-021-01-02","Emisión de la Autorización de importación de naves como beneficiario de la LEFORTAAC",{"$f":"VLOOKUP(A88,'DEMANDA ANUAL'!$A$5:$D$166,4,FALSE)","v":6},{"$f":"VLOOKUP(A88,'VOLUMEN DE QUEJAS'!$A$5:$F$166,6,FALSE)","v":0},{"$f":"VLOOKUP(A88,'RESUMEN DE COSTOS AP'!$A$5:$D$164,4,FALSE)","v":10},{"$f":"VLOOKUP(A88,'TIEMPO DE RESPUESTA'!$A$5:$D$166,4,FALSE)","v":0},{"$f":"VLOOKUP(A88,'CANAL ATENCIÓN'!$A$5:$D$166,4,FALSE)","v":10},"NO",0,"NO",0,"NO",0,26]
["MTOP-036-01-02","Emisión de Registro Definitivo De Consolidadores Y Desconsolidadores De Carga",{"$f":"VLOOKUP(A89,'DEMANDA ANUAL'!$A$5:$D$166,4,FALSE)","v":6},{"$f":"VLOOKUP(A89,'VOLUMEN DE QUEJAS'!$A$5:$F$166,6,FALSE)","v":0},{"$f":"VLOOKUP(A89,'RESUMEN DE COSTOS AP'!$A$5:$D$164,4,FALSE)","v":10},{"$f":"VLOOKUP(A89,'TIEMPO DE RESPUESTA'!$A$5:$D$166,4,FALSE)","v":30},{"$f":"VLOOKUP(A89,'CANAL ATENCIÓN'!$A$5:$D$166,4,FALSE)","v":10},"NO",0,"NO",0,"NO",0,56]
["MTOP-031-01-01","Emisión del Certificado de Declaración de Cumplimiento CAP para Buques de Transporte de Hidrocarburos mayores a 15 años de construccion",{"$f":"VLOOKUP(A90,'DEMANDA ANUAL'!$A$5:$D$166,4,FALSE)","v":6},{"$f":"VLOOKUP(A90,'VOLUMEN DE QUEJAS'!$A$5:$F$166,6,FALSE)","v":0},{"$f":"VLOOKUP(A90,'RESUMEN DE COSTOS AP'!$A$5:$D$164,4,FALSE)","v":10},{"$f":"VLOOKUP(A90,'TIEMPO DE RESPUESTA'!$A$5:$D$166,4,FALSE)","v":30},{"$f":"VLOOKUP(A90,'CANAL ATENCIÓN'!$A$5:$D$166,4,FALSE)","v":10},"NO",0,"NO",0,"NO",0,56]
["MTOP-004-02-01","Emisión de Permiso de Operación a Astilleros, Parrillas, Varaderos y Factorías Navales",{"$f":"VLOOKUP(A91,'DEMANDA ANUAL'!$A$5:$D$166,4,FALSE)","v":6},{"$f":"VLOOKUP(A91,'VOLUMEN DE QUEJAS'!$A$5:$F$166,6,FALSE)","v":0},{"$f":"VLOOKUP(A91,'RESUMEN DE COSTOS AP'!$A$5:$D$164,4,FALSE)","v":5},{"$f":"VLOOKUP(A91,'TIEMPO DE RESPUESTA'!$A$5:$D$166,4,FALSE)","v":0},{"$f":"VLOOKUP(A91,'CANAL ATENCIÓN'!$A$5:$D$166,4,FALSE)","v":10},"NO",0,"NO",0,"NO",0,21]
["MTOP-007-03-02","Renovación Matrícula de Operadores Portuarios de Buque",{"$f":"VLOOKUP(A92,'DEMANDA ANUAL'!$A$5:$D$166,4,FALSE)","v":6},{"$f":"VLOOKUP(A92,'VOLUMEN DE QUEJAS'!$A$5:$F$166,6,FALSE)","v":0},{"$f":"VLOOKUP(A92,'RESUMEN DE COSTOS AP'!$A$5:$D$164,4,FALSE)","v":5},{"$f":"VLOOKUP(A92,'TIEMPO DE RESPUESTA'!$A$5:$D$166,4,FALSE)","v":0},{"$f":"VLOOKUP(A92,'CANAL ATENCIÓN'!$A$5:$D$166,4,FALSE)","v":10},"NO",0,"NO",0,"NO",0,21]
["MTOP-017-02-03","Supervisión de Prueba de Estabilidad (GALAPAGOS ESMERALDAS AMAZONIA)",{"$f":"VLOOKUP(A93,'DEMANDA ANUAL'!$A$5:$D$166,4,FALSE)","v":6},{"$f":"VLOOKUP(A93,'VOLUMEN DE QUEJAS'!$A$5:$F$166,6,FALSE)","v":0},{"$f":"VLOOKUP(A93,'RESUMEN DE COSTOS AP'!$A$5:$D$164,4,FALSE)","v":10},{"$f":"VLOOKUP(A93,'TIEMPO DE RESPUESTA'!$A$5:$D$166,4,FALSE)","v":30},{"$f":"VLOOKUP(A93,'CANAL ATENCIÓN'!$A$5:$D$166,4,FALSE)","v":10},"NO",0,"NO",0,"NO",0,56]
["MTOP-021-03-01","Emisión de la Calificación y registro de personas naturales o jurídicas como beneficiario de la LEFORTAAC",{"$f":"VLOOKUP(A94,'DEMANDA ANUAL'!$A$5:$D$166,4,FALSE)","v":6},{"$f":"VLOOKUP(A94,'VOLUMEN DE QUEJAS'!$A$5:$F$166,6,FALSE)","v":0},{"$f":"VLOOKUP(A94,'RESUMEN DE COSTOS AP'!$A$5:$D$164,4,FALSE)","v":10},{"$f":"VLOOKUP(A94,'TIEMPO DE RESPUESTA'!$A$5:$D$166,4,FALSE)","v":0},{"$f":"VLOOKUP(A94,'CANAL ATENCIÓN'!$A$5:$D$166,4,FALSE)","v":10},"NO",0,"NO",0,"NO",0,26]
["MTOP-004-01-02","Emisión de Permiso de Construcción, Operación, Modificación y/o Ampliación de Facilidades o Instalaciones Portuarias, Cabotaje",{"$f":"VLOOKUP(A95,'DEMANDA ANUAL'!$A$5:$D$166,4,FALSE)","v":6},{"$f":"VLOOKUP(A95,'VOLUMEN DE QUEJAS'!$A$5:$F$166,6,FALSE)","v":0},{"$f":"VLOOKUP(A95,'RESUMEN DE COSTOS AP'!$A$5:$D$164,4,FALSE)","v":10},{"$f":"VLOOKUP(A95,'TIEMPO DE RESPUESTA'!$A$5:$D$166,4,FALSE)","v":30},{"$f":"VLOOKUP(A95,'CANAL ATENCIÓN'!$A$5:$D$166,4,FALSE)","v":10},"NO",0,"NO",0,"NO",0,56]
["MTOP-034-02-03","Aprobación de planos por Legalización de la Modificación(GALAPAGOS ESMERALDAS AMAZONIA)",{"$f":"VLOOKUP(A96,'DEMANDA ANUAL'!$A$5:$D$166,4,FALSE)","v":6},{"$f":"VLOOKUP(A96,'VOLUMEN DE QUEJAS'!$A$5:$F$166,6,FALSE)","v":0},{"$f":"VLOOKUP(A96,'RESUMEN DE COSTOS AP'!$A$5:$D$164,4,FALSE)","v":20},{"$f":"VLOOKUP(A96,'TIEMPO DE RESPUESTA'!$A$5:$D$166,4,FALSE)","v":30},{"$f":"VLOOKUP(A96,'CANAL ATENCIÓN'!$A$5:$D$166,4,FALSE)","v":10},"NO",0,"NO",0,"NO",0,66]
["MTOP-009-02-04","Autorización de la Exoneración Total o Parcial del Pago de las Tarifas Portuarias a Buques y/o Carga",{"$f":"VLOOKUP(A97,'DEMANDA ANUAL'!$A$5:$D$166,4,FALSE)","v":6},{"$f":"VLOOKUP(A97,'VOLUMEN DE QUEJAS'!$A$5:$F$166,6,FALSE)","v":0},{"$f":"VLOOKUP(A97,'RESUMEN DE COSTOS AP'!$A$5:$D$164,4,FALSE)","v":10},{"$f":"VLOOKUP(A97,'TIEMPO DE RESPUESTA'!$A$5:$D$166,4,FALSE)","v":0},{"$f":"VLOOKUP(A97,'CANAL ATENCIÓN'!$A$5:$D$166,4,FALSE)","v":10},"NO",0,"NO",0,"NO",0,26]
["MTOP-012-01-02","Obtención de Asistencia Técnica en la Ejecución de Ejercicios de Protección marítima realizados por las instalaciones portuarias certificadas bajo el código P.B.I.P. (Código de Protección Internacional Portuaria)",{"$f":"VLOOKUP(A98,'DEMANDA ANUAL'!$A$5:$D$166,4,FALSE)","v":6},{"$f":"VLOOKUP(A98,'VOLUMEN DE QUEJAS'!$A$5:$F$166,6,FALSE)","v":0},{"$f":"VLOOKUP(A98,'RESUMEN DE COSTOS AP'!$A$5:$D$164,4,FALSE)","v":10},{"$f":"VLOOKUP(A98,'TIEMPO DE RESPUESTA'!$A$5:$D$166,4,FALSE)","v":30},{"$f":"VLOOKUP(A98,'CANAL ATENCIÓN'!$A$5:$D$166,4,FALSE)","v":10},"NO",0,"NO",0,"NO",0,56]
["MTOP-002-04-03","Actualización de Armadores por Inclusión o Exclusión de una Nave Menores a 50 TRB",{"$f":"VLOOKUP(A99,'DEMANDA ANUAL'!$A$5:$D$166,4,FALSE)","v":6},{"$f":"VLOOKUP(A99,'VOLUMEN DE QUEJAS'!$A$5:$F$166,6,FALSE)","v":0},{"$f":"VLOOKUP(A99,'RESUMEN DE COSTOS AP'!$A$5:$D$164,4,FALSE)","v":5},{"$f":"VLOOKUP(A99,'TIEMPO DE RESPUESTA'!$A$5:$D$166,4,FALSE)","v":0},{"$f":"VLOOKUP(A99,'CANAL ATENCIÓN'!$A$5:$D$166,4,FALSE)","v":10},"NO",0,"NO",0,"NO",0,21]
["MTOP-034-02-01","Aprobación de planos por Legalización de la Modificación (DENTRO DEL PERIMETRO URBANO)",{"$f":"VLOOKUP(A100,'DEMANDA ANUAL'!$A$5:$D$166,4,FALSE)","v":6},{"$f":"VLOOKUP(A100,'VOLUMEN DE QUEJAS'!$A$5:$F$166,6,FALSE)","v":0},{"$f":"VLOOKUP(A100,'RESUMEN DE COSTOS AP'!$A$5:$D$164,4,FALSE)","v":20},{"$f":"VLOOKUP(A100,'TIEMPO DE RESPUESTA'!$A$5:$D$166,4,FALSE)","v":30},{"$f":"VLOOKUP(A100,'CANAL ATENCIÓN'!$A$5:$D$166,4,FALSE)","v":10},"NO",0,"NO",0,"NO",0,66]
["MTOP-023-05-01","Emisión del Pasavante de Navegación",{"$f":"VLOOKUP(A101,'DEMANDA ANUAL'!$A$5:$D$166,4,FALSE)","v":6},{"$f":"VLOOKUP(A101,'VOLUMEN DE QUEJAS'!$A$5:$F$166,6,FALSE)","v":0},{"$f":"VLOOKUP(A101,'RESUMEN DE COSTOS AP'!$A$5:$D$164,4,FALSE)","v":5},{"$f":"VLOOKUP(A101,'TIEMPO DE RESPUESTA'!$A$5:$D$166,4,FALSE)","v":0},{"$f":"VLOOKUP(A101,'CANAL ATENCIÓN'!$A$5:$D$166,4,FALSE)","v":10},"NO",0,"NO",0,"NO",0,21]
["MTOP-007-04-01","Matriculación por Primera Vez de Operadores Portuarios de Carga",{"$f":"VLOOKUP(A102,'DEMANDA ANUAL'!$A$5:$D$166,4,FALSE)","v":6},{"$f":"VLOOKUP(A102,'VOLUMEN DE QUEJAS'!$A$5:$F$166,6,FALSE)","v":0},{"$f":"VLOOKUP(A102,'RESUMEN DE COSTOS AP'!$A$5:$D$164,4,FALSE)","v":5},{"$f":"VLOOKUP(A102,'TIEMPO DE RESPUESTA'!$A$5:$D$166,4,FALSE)","v":0},{"$f":"VLOOKUP(A102,'CANAL ATENCIÓN'!$A$5:$D$166,4,FALSE)","v":10},"NO",0,"NO",0,"NO",0,21]
["MTOP-007-02-06","Actualización de Registros de Operadores Portuarios de Servicios Conexos",{"$f":"VLOOKUP(A103,'DEMANDA ANUAL'!$A$5:$D$166,4,FALSE)","v":6},{"$f":"VLOOKUP(A103,'VOLUMEN DE QUEJAS'!$A$5:$F$166,6,FALSE)","v":0},{"$f":"VLOOKUP(A103,'RESUMEN DE COSTOS AP'!$A$5:$D$164,4,FALSE)","v":10},{"$f":"VLOOKUP(A103,'TIEMPO DE RESPUESTA'!$A$5:$D$166,4,FALSE)","v":30},{"$f":"VLOOKUP(A103,'CANAL ATENCIÓN'!$A$5:$D$166,4,FALSE)","v":10},"NO",0,"NO",0,"NO",0,56]
["MTOP-035-01-02","Aprobación de planos por Nacionalización (FUERA DEL PERIMETRO URBANO)",{"$f":"VLOOKUP(A104,'DEMANDA ANUAL'!$A$5:$D$166,4,FALSE)","v":6},{"$f":"VLOOKUP(A104,'VOLUMEN DE QUEJAS'!$A$5:$F$166,6,FALSE)","v":0},{"$f":"VLOOKUP(A104,'RESUMEN DE COSTOS AP'!$A$5:$D$164,4,FALSE)","v":20},{"$f":"VLOOKUP(A104,'TIEMPO DE RESPUESTA'!$A$5:$D$166,4,FALSE)","v":30},{"$f":"VLOOKUP(A104,'CANAL ATENCIÓN'!$A$5:$D$166,4,FALSE)","v":10},"NO",0,"NO",0,"NO",0,66]
["MTOP-005-01-01","Autorización de Ocupación Pago de nueva concesión de zona de playas y bahías",{"$f":"VLOOKUP(A105,'DEMANDA ANUAL'!$A$5:$D$166,4,FALSE)","v":6},{"$f":"VLOOKUP(A105,'VOLUMEN DE QUEJAS'!$A$5:$F$166,6,FALSE)","v":0},{"$f":"VLOOKUP(A105,'RESUMEN DE COSTOS AP'!$A$5:$D$164,4,FALSE)","v":10},{"$f":"VLOOKUP(A105,'TIEMPO DE RESPUESTA'!$A$5:$D$166,4,FALSE)","v":30},{"$f":"VLOOKUP(A105,'CANAL ATENCIÓN'!$A$5:$D$166,4,FALSE)","v":10},"NO",0,"NO",0,"NO",0,56]
["MTOP-015-02-01","Autorización de Entrenamiento para los Aspirantes a Prácticos",{"$f":"VLOOKUP(A106,'DEMANDA ANUAL'!$A$5:$D$166,4,FALSE)","v":6},{"$f":"VLOOKUP(A106,'VOLUMEN DE QUEJAS'!$A$5:$F$166,6,FALSE)","v":0},{"$f":"VLOOKUP(A106,'RESUMEN DE COSTOS AP'!$A$5:$D$164,4,FALSE)","v":5},{"$f":"VLOOKUP(A106,'TIEMPO DE RESPUESTA'!$A$5:$D$166,4,FALSE)","v":0},{"$f":"VLOOKUP(A106,'CANAL ATENCIÓN'!$A$5:$D$166,4,FALSE)","v":10},"NO",0,"NO",0,"NO",0,21]
["MTOP-012-01-01","Certificación y Recertificación de una Instalación Portuaria bajo el Código de Protección de Buques y de Instalaciones Portuarias",{"$f":"VLOOKUP(A107,'DEMANDA ANUAL'!$A$5:$D$166,4,FALSE)","v":6},{"$f":"VLOOKUP(A107,'VOLUMEN DE QUEJAS'!$A$5:$F$166,6,FALSE)","v":0},20,{"$f":"VLOOKUP(A107,'TIEMPO DE RESPUESTA'!$A$5:$D$166,4,FALSE)","v":30},{"$f":"VLOOKUP(A107,'CANAL ATENCIÓN'!$A$5:$D$166,4,FALSE)","v":10},"NO",0,"NO",0,"NO",0,66]
["MTOP-023-04-02","Emisión del Informe Técnico Favorable para la Importación por Internación Temporal de Buques Bajo Contrato de Asociación, Fletamento, Fletamento a Casco Desnudo, Arriendo, Etc.",{"$f":"VLOOKUP(A108,'DEMANDA ANUAL'!$A$5:$D$166,4,FALSE)","v":6},{"$f":"VLOOKUP(A108,'VOLUMEN DE QUEJAS'!$A$5:$F$166,6,FALSE)","v":0},{"$f":"VLOOKUP(A108,'RESUMEN DE COSTOS AP'!$A$5:$D$164,4,FALSE)","v":20},{"$f":"VLOOKUP(A108,'TIEMPO DE RESPUESTA'!$A$5:$D$166,4,FALSE)","v":30},{"$f":"VLOOKUP(A108,'CANAL ATENCIÓN'!$A$5:$D$166,4,FALSE)","v":10},"NO",0,"NO",0,"NO",0,66]
["MTOP-007-04-02","Renovación Matrícula de Operadores Portuarios de Carga",{"$f":"VLOOKUP(A109,'DEMANDA ANUAL'!$A$5:$D$166,4,FALSE)","v":6},{"$f":"VLOOKUP(A109,'VOLUMEN DE QUEJAS'!$A$5:$F$166,6,FALSE)","v":0},{"$f":"VLOOKUP(A109,'RESUMEN DE COSTOS AP'!$A$5:$D$164,4,FALSE)","v":5},{"$f":"VLOOKUP(A109,'TIEMPO DE RESPUESTA'!$A$5:$D$166,4,FALSE)","v":0},{"$f":"VLOOKUP(A109,'CANAL ATENCIÓN'!$A$5:$D$166,4,FALSE)","v":10},"NO",0,"NO",0,"NO",0,21]
["MTOP-010-02-01","Autorización de Rutas, Horarios e Itinerarios de los Servicios Públicos del Transporte Fluvial interno y al exterior",{"$f":"VLOOKUP(A110,'DEMANDA ANUAL'!$A$5:$D$166,4,FALSE)","v":6},{"$f":"VLOOKUP(A110,'VOLUMEN DE QUEJAS'!$A$5:$F$166,6,FALSE)","v":0},{"$f":"VLOOKUP(A110,'RESUMEN DE COSTOS AP'!$A$5:$D$164,4,FALSE)","v":5},{"$f":"VLOOKUP(A110,'TIEMPO DE RESPUESTA'!$A$5:$D$166,4,FALSE)","v":0},{"$f":"VLOOKUP(A110,'CANAL ATENCIÓN'!$A$5:$D$166,4,FALSE)","v":10},"NO",0,"NO",0,"NO",0,21]
["MTOP-021-02-01","Emisión de la autorización de importación de bienes como beneficiario de la LEFORTAAC",{"$f":"VLOOKUP(A111,'DEMANDA ANUAL'!$A$5:$D$166,4,FALSE)","v":6},{"$f":"VLOOKUP(A111,'VOLUMEN DE QUEJAS'!$A$5:$F$166,6,FALSE)","v":0},{"$f":"VLOOKUP(A111,'RESUMEN DE COSTOS AP'!$A$5:$D$164,4,FALSE)","v":10},{"$f":"VLOOKUP(A111,'TIEMPO DE RESPUESTA'!$A$5:$D$166,4,FALSE)","v":0},{"$f":"VLOOKUP(A111,'CANAL ATENCIÓN'!$A$5:$D$166,4,FALSE)","v":10},"NO",0,"NO",0,"NO",0,26]
["MTOP-010-02-05","Autorización Excepcional de Prestación de Servicios de cabotaje de hidrocarburos, carga, pasaje y valijas postales",{"$f":"VLOOKUP(A112,'DEMANDA ANUAL'!$A$5:$D$166,4,FALSE)","v":6},{"$f":"VLOOKUP(A112,'VOLUMEN DE QUEJAS'!$A$5:$F$166,6,FALSE)","v":0},{"$f":"VLOOKUP(A112,'RESUMEN DE COSTOS AP'!$A$5:$D$164,4,FALSE)","v":10},{"$f":"VLOOKUP(A112,'TIEMPO DE RESPUESTA'!$A$5:$D$166,4,FALSE)","v":0},{"$f":"VLOOKUP(A112,'CANAL ATENCIÓN'!$A$5:$D$166,4,FALSE)","v":10},"NO",0,"NO",0,"NO",0,26]
["MTOP-036-01-01","Emisión de Registro Provisional De Consolidadores Y Desconsolidadores De Carga",{"$f":"VLOOKUP(A113,'DEMANDA ANUAL'!$A$5:$D$166,4,FALSE)","v":6},{"$f":"VLOOKUP(A113,'VOLUMEN DE QUEJAS'!$A$5:$F$166,6,FALSE)","v":0},{"$f":"VLOOKUP(A113,'RESUMEN DE COSTOS AP'!$A$5:$D$164,4,FALSE)","v":10},{"$f":"VLOOKUP(A113,'TIEMPO DE RESPUESTA'!$A$5:$D$166,4,FALSE)","v":30},{"$f":"VLOOKUP(A113,'CANAL ATENCIÓN'!$A$5:$D$166,4,FALSE)","v":10},"NO",0,"NO",0,"NO",0,56]
["MTOP-029-02-01","Emisión del Certificado de Aprobación del Cuadro de Zafarrancho del Buque",{"$f":"VLOOKUP(A114,'DEMANDA ANUAL'!$A$5:$D$166,4,FALSE)","v":6},{"$f":"VLOOKUP(A114,'VOLUMEN DE QUEJAS'!$A$5:$F$166,6,FALSE)","v":0},{"$f":"VLOOKUP(A114,'RESUMEN DE COSTOS AP'!$A$5:$D$164,4,FALSE)","v":10},{"$f":"VLOOKUP(A114,'TIEMPO DE RESPUESTA'!$A$5:$D$166,4,FALSE)","v":30},{"$f":"VLOOKUP(A114,'CANAL ATENCIÓN'!$A$5:$D$166,4,FALSE)","v":10},"NO",0,"NO",0,"NO",0,56]
["MTOP-022-02-02","Emisión del Endoso Anual del Certificado de Seguridad para Buques de Carga.",{"$f":"VLOOKUP(A115,'DEMANDA ANUAL'!$A$5:$D$166,4,FALSE)","v":6},{"$f":"VLOOKUP(A115,'VOLUMEN DE QUEJAS'!$A$5:$F$166,6,FALSE)","v":0},{"$f":"VLOOKUP(A115,'RESUMEN DE COSTOS AP'!$A$5:$D$164,4,FALSE)","v":10},{"$f":"VLOOKUP(A115,'TIEMPO DE RESPUESTA'!$A$5:$D$166,4,FALSE)","v":30},{"$f":"VLOOKUP(A115,'CANAL ATENCIÓN'!$A$5:$D$166,4,FALSE)","v":10},"NO",0,"NO",0,"NO",0,56]
["MTOP-030-01-01","Emisión del Certificado Internacional de Prevención de la Contaminación por Hidrocarburos, IOPP",{"$f":"VLOOKUP(A116,'DEMANDA ANUAL'!$A$5:$D$166,4,FALSE)","v":6},{"$f":"VLOOKUP(A116,'VOLUMEN DE QUEJAS'!$A$5:$F$166,6,FALSE)","v":0},{"$f":"VLOOKUP(A116,'RESUMEN DE COSTOS AP'!$A$5:$D$164,4,FALSE)","v":20},{"$f":"VLOOKUP(A116,'TIEMPO DE RESPUESTA'!$A$5:$D$166,4,FALSE)","v":30},{"$f":"VLOOKUP(A116,'CANAL ATENCIÓN'!$A$5:$D$166,4,FALSE)","v":10},"NO",0,"NO",0,"NO",0,66]
["MTOP-010-02-08","Autorización de Rutas, Horarios e Itinerarios de los Servicios Públicos del Transporte Marítimo",{"$f":"VLOOKUP(A117,'DEMANDA ANUAL'!$A$5:$D$166,4,FALSE)","v":6},{"$f":"VLOOKUP(A117,'VOLUMEN DE QUEJAS'!$A$5:$F$166,6,FALSE)","v":0},{"$f":"VLOOKUP(A117,'RESUMEN DE COSTOS AP'!$A$5:$D$164,4,FALSE)","v":5},{"$f":"VLOOKUP(A117,'TIEMPO DE RESPUESTA'!$A$5:$D$166,4,FALSE)","v":0},{"$f":"VLOOKUP(A117,'CANAL ATENCIÓN'!$A$5:$D$166,4,FALSE)","v":10},"NO",0,"NO",0,"NO",0,21]
["MTOP-031-02-01","Emisión del Certificado De Seguro U Otra Garantía Financiera Relativo A La Responsabilidad Civil Por Daños Causados Por La Contaminación De Las Aguas Del Mar Por Hidrocarburos",{"$f":"VLOOKUP(A118,'DEMANDA ANUAL'!$A$5:$D$166,4,FALSE)","v":6},{"$f":"VLOOKUP(A118,'VOLUMEN DE QUEJAS'!$A$5:$F$166,6,FALSE)","v":0},{"$f":"VLOOKUP(A118,'RESUMEN DE COSTOS AP'!$A$5:$D$164,4,FALSE)","v":20},{"$f":"VLOOKUP(A118,'TIEMPO DE RESPUESTA'!$A$5:$D$166,4,FALSE)","v":30},{"$f":"VLOOKUP(A118,'CANAL ATENCIÓN'!$A$5:$D$166,4,FALSE)","v":10},"NO",0,"NO",0,"NO",0,66]
["MTOP-034-01-01","Aprobación de planos por Legalización de la Construcción (DENTRO DEL PERIMETRO URBANO)",{"$f":"VLOOKUP(A119,'DEMANDA ANUAL'!$A$5:$D$166,4,FALSE)","v":6},{"$f":"VLOOKUP(A119,'VOLUMEN DE QUEJAS'!$A$5:$F$166,6,FALSE)","v":0},{"$f":"VLOOKUP(A119,'RESUMEN DE COSTOS AP'!$A$5:$D$164,4,FALSE)","v":20},{"$f":"VLOOKUP(A119,'TIEMPO DE RESPUESTA'!$A$5:$D$166,4,FALSE)","v":30},{"$f":"VLOOKUP(A119,'CANAL ATENCIÓN'!$A$5:$D$166,4,FALSE)","v":10},"NO",0,"NO",0,"NO",0,66]
["MTOP-034-01-02","Aprobación de planos por Legalización de la Construcción (FUERA DEL PERIMETRO URBANO)",{"$f":"VLOOKUP(A120,'DEMANDA ANUAL'!$A$5:$D$166,4,FALSE)","v":6},{"$f":"VLOOKUP(A120,'VOLUMEN DE QUEJAS'!$A$5:$F$166,6,FALSE)","v":0},{"$f":"VLOOKUP(A120,'RESUMEN DE COSTOS AP'!$A$5:$D$164,4,FALSE)","v":20},{"$f":"VLOOKUP(A120,'TIEMPO DE RESPUESTA'!$A$5:$D$166,4,FALSE)","v":30},{"$f":"VLOOKUP(A120,'CANAL ATENCIÓN'!$A$5:$D$166,4,FALSE)","v":10},"NO",0,"NO",0,"NO",0,66]
["MTOP-032-02-01","Otorgamiento de Licencia de Construcción y Aprobación de Planos Preliminares de la Nave",{"$f":"VLOOKUP(A121,'DEMANDA ANUAL'!$A$5:$D$166,4,FALSE)","v":6},{"$f":"VLOOKUP(A121,'VOLUMEN DE QUEJAS'!$A$5:$F$166,6,FALSE)","v":0},{"$f":"VLOOKUP(A121,'RESUMEN DE COSTOS AP'!$A$5:$D$164,4,FALSE)","v":20},{"$f":"VLOOKUP(A121,'TIEMPO DE RESPUESTA'!$A$5:$D$166,4,FALSE)","v":30},{"$f":"VLOOKUP(A121,'CANAL ATENCIÓN'!$A$5:$D$166,4,FALSE)","v":10},"NO",0,"NO",0,"NO",0,66]
["MTOP-029-01-01","Emisión del Certificado de Aprobación de Planos de Seguridad y Contraincendios",{"$f":"VLOOKUP(A122,'DEMANDA ANUAL'!$A$5:$D$166,4,FALSE)","v":6},{"$f":"VLOOKUP(A122,'VOLUMEN DE QUEJAS'!$A$5:$F$166,6,FALSE)","v":0},{"$f":"VLOOKUP(A122,'RESUMEN DE COSTOS AP'!$A$5:$D$164,4,FALSE)","v":10},{"$f":"VLOOKUP(A122,'TIEMPO DE RESPUESTA'!$A$5:$D$166,4,FALSE)","v":30},{"$f":"VLOOKUP(A122,'CANAL ATENCIÓN'!$A$5:$D$166,4,FALSE)","v":10},"NO",0,"NO",0,"NO",0,56]
["MTOP-030-02-01","Emisión del Certificado de Prevención a la Contaminacón por Aguas Sucias",{"$f":"VLOOKUP(A123,'DEMANDA ANUAL'!$A$5:$D$166,4,FALSE)","v":6},{"$f":"VLOOKUP(A123,'VOLUMEN DE QUEJAS'!$A$5:$F$166,6,FALSE)","v":0},{"$f":"VLOOKUP(A123,'RESUMEN DE COSTOS AP'!$A$5:$D$164,4,FALSE)","v":10},{"$f":"VLOOKUP(A123,'TIEMPO DE RESPUESTA'!$A$5:$D$166,4,FALSE)","v":30},{"$f":"VLOOKUP(A123,'CANAL ATENCIÓN'!$A$5:$D$166,4,FALSE)","v":10},"NO",0,"NO",0,"NO",0,56]
["MTOP-002-01-03","Actualización de Matrícula de Armadores por Cambio de Representante Legal Naves Mayores a 50 TRB",{"$f":"VLOOKUP(A124,'DEMANDA ANUAL'!$A$5:$D$166,4,FALSE)","v":10},{"$f":"VLOOKUP(A124,'VOLUMEN DE QUEJAS'!$A$5:$F$166,6,FALSE)","v":0},{"$f":"VLOOKUP(A124,'RESUMEN DE COSTOS AP'!$A$5:$D$164,4,FALSE)","v":5},{"$f":"VLOOKUP(A124,'TIEMPO DE RESPUESTA'!$A$5:$D$166,4,FALSE)","v":0},{"$f":"VLOOKUP(A124,'CANAL ATENCIÓN'!$A$5:$D$166,4,FALSE)","v":10},"NO",0,"NO",0,"NO",0,25]
["MTOP-023-04-01","Emisión del Informe Técnico Favorable para la Importación por Nacionalización de Naves",{"$f":"VLOOKUP(A125,'DEMANDA ANUAL'!$A$5:$D$166,4,FALSE)","v":10},{"$f":"VLOOKUP(A125,'VOLUMEN DE QUEJAS'!$A$5:$F$166,6,FALSE)","v":0},{"$f":"VLOOKUP(A125,'RESUMEN DE COSTOS AP'!$A$5:$D$164,4,FALSE)","v":20},{"$f":"VLOOKUP(A125,'TIEMPO DE RESPUESTA'!$A$5:$D$166,4,FALSE)","v":30},{"$f":"VLOOKUP(A125,'CANAL ATENCIÓN'!$A$5:$D$166,4,FALSE)","v":10},"NO",0,"NO",0,"NO",0,70]
["MTOP-010-01-02","Emisión de Registro de Contrato de de naves de Bandera Nacional",{"$f":"VLOOKUP(A126,'DEMANDA ANUAL'!$A$5:$D$166,4,FALSE)","v":10},{"$f":"VLOOKUP(A126,'VOLUMEN DE QUEJAS'!$A$5:$F$166,6,FALSE)","v":0},{"$f":"VLOOKUP(A126,'RESUMEN DE COSTOS AP'!$A$5:$D$164,4,FALSE)","v":10},{"$f":"VLOOKUP(A126,'TIEMPO DE RESPUESTA'!$A$5:$D$166,4,FALSE)","v":0},{"$f":"VLOOKUP(A126,'CANAL ATENCIÓN'!$A$5:$D$166,4,FALSE)","v":10},"NO",0,"NO",0,"NO",0,30]
["MTOP-007-02-02","Renovación Matrícula de Operadores Portuarios de Servicios Conexos",{"$f":"VLOOKUP(A127,'DEMANDA ANUAL'!$A$5:$D$166,4,FALSE)","v":10},{"$f":"VLOOKUP(A127,'VOLUMEN DE QUEJAS'!$A$5:$F$166,6,FALSE)","v":0},{"$f":"VLOOKUP(A127,'RESUMEN DE COSTOS AP'!$A$5:$D$164,4,FALSE)","v":10},{"$f":"VLOOKUP(A127,'TIEMPO DE RESPUESTA'!$A$5:$D$166,4,FALSE)","v":30},{"$f":"VLOOKUP(A127,'CANAL ATENCIÓN'!$A$5:$D$166,4,FALSE)","v":10},"NO",0,"NO",0,"NO",0,60]
["MTOP-017-02-01","Supervisión de Prueba de Estabilidad (DENTRO DEL PERIMETRO URBANO)",{"$f":"VLOOKUP(A128,'DEMANDA ANUAL'!$A$5:$D$166,4,FALSE)","v":10},{"$f":"VLOOKUP(A128,'VOLUMEN DE QUEJAS'!$A$5:$F$166,6,FALSE)","v":0},{"$f":"VLOOKUP(A128,'RESUMEN DE COSTOS AP'!$A$5:$D$164,4,FALSE)","v":20},{"$f":"VLOOKUP(A128,'TIEMPO DE RESPUESTA'!$A$5:$D$166,4,FALSE)","v":30},{"$f":"VLOOKUP(A128,'CANAL ATENCIÓN'!$A$5:$D$166,4,FALSE)","v":10},"NO",0,"NO",0,"NO",0,70]
["MTOP-007-02-01","Matriculación por Primera Vez de Operadores Portuarios de Servicios Conexos",{"$f":"VLOOKUP(A129,'DEMANDA ANUAL'!$A$5:$D$166,4,FALSE)","v":10},{"$f":"VLOOKUP(A129,'VOLUMEN DE QUEJAS'!$A$5:$F$166,6,FALSE)","v":0},{"$f":"VLOOKUP(A129,'RESUMEN DE COSTOS AP'!$A$5:$D$164,4,FALSE)","v":10},{"$f":"VLOOKUP(A129,'TIEMPO DE RESPUESTA'!$A$5:$D$166,4,FALSE)","v":30},{"$f":"VLOOKUP(A129,'CANAL ATENCIÓN'!$A$5:$D$166,4,FALSE)","v":10},"NO",0,"NO",0,"NO",0,60]
["MTOP-017-02-02","Supervisión de Prueba de Estabilidad (FUERA DEL PERIMETRO URBANO)",{"$f":"VLOOKUP(A130,'DEMANDA ANUAL'!$A$5:$D$166,4,FALSE)","v":10},{"$f":"VLOOKUP(A130,'VOLUMEN DE QUEJAS'!$A$5:$F$166,6,FALSE)","v":0},{"$f":"VLOOKUP(A130,'RESUMEN DE COSTOS AP'!$A$5:$D$164,4,FALSE)","v":20},{"$f":"VLOOKUP(A130,'TIEMPO DE RESPUESTA'!$A$5:$D$166,4,FALSE)","v":30},{"$f":"VLOOKUP(A130,'CANAL ATENCIÓN'!$A$5:$D$166,4,FALSE)","v":10},"NO",0,"NO",0,"NO",0,70]
["MTOP-017-01-10","Aprobación de plano de capacidad de combustible (DENTRO DEL PERIMETRO URBANO)",{"$f":"VLOOKUP(A131,'DEMANDA ANUAL'!$A$5:$D$166,4,FALSE)","v":10},{"$f":"VLOOKUP(A131,'VOLUMEN DE QUEJAS'!$A$5:$F$166,6,FALSE)","v":0},{"$f":"VLOOKUP(A131,'RESUMEN DE COSTOS AP'!$A$5:$D$164,4,FALSE)","v":20},{"$f":"VLOOKUP(A131,'TIEMPO DE RESPUESTA'!$A$5:$D$166,4,FALSE)","v":30},{"$f":"VLOOKUP(A131,'CANAL ATENCIÓN'!$A$5:$D$166,4,FALSE)","v":10},"NO",0,"NO",0,"NO",0,70]
["MTOP-028-01-01","Emisión del Certificado de Estado Rector del Puerto para naves de bandera extranjera que operen bajo internación temporal y fletamento a casco desnudo",{"$f":"VLOOKUP(A132,'DEMANDA ANUAL'!$A$5:$D$166,4,FALSE)","v":10},{"$f":"VLOOKUP(A132,'VOLUMEN DE QUEJAS'!$A$5:$F$166,6,FALSE)","v":0},{"$f":"VLOOKUP(A132,'RESUMEN DE COSTOS AP'!$A$5:$D$164,4,FALSE)","v":10},{"$f":"VLOOKUP(A132,'TIEMPO DE RESPUESTA'!$A$5:$D$166,4,FALSE)","v":30},{"$f":"VLOOKUP(A132,'CANAL ATENCIÓN'!$A$5:$D$166,4,FALSE)","v":10},"NO",0,"NO",0,"NO",0,60]
["MTOP-014-01-02","MTOP-014-01-02 Renovación de la Matrícula de Agencias Navieras para Tráfico Internacional",{"$f":"VLOOKUP(A133,'DEMANDA ANUAL'!$A$5:$D$166,4,FALSE)","v":10},{"$f":"VLOOKUP(A133,'VOLUMEN DE QUEJAS'!$A$5:$F$166,6,FALSE)","v":0},{"$f":"VLOOKUP(A133,'RESUMEN DE COSTOS AP'!$A$5:$D$164,4,FALSE)","v":10},{"$f":"VLOOKUP(A133,'TIEMPO DE RESPUESTA'!$A$5:$D$166,4,FALSE)","v":0},{"$f":"VLOOKUP(A133,'CANAL ATENCIÓN'!$A$5:$D$166,4,FALSE)","v":10},"NO",{"$f":"IF(H133=\"SI\",5,0)","v":0},"NO",{"$f":"IF(J133=\"SI\",10,0)","v":0},"NO",{"$f":"IF(L133=\"SI\",5,0)","v":0},{"$f":"SUM(C133:G133,I133,K133,M133)","v":30}]
["MTOP-002-01-01","Matriculación de Armadores Por Primera Vez Naves Mayores a 50 TRB",{"$f":"VLOOKUP(A134,'DEMANDA ANUAL'!$A$5:$D$166,4,FALSE)","v":10},{"$f":"VLOOKUP(A134,'VOLUMEN DE QUEJAS'!$A$5:$F$166,6,FALSE)","v":0},{"$f":"VLOOKUP(A134,'RESUMEN DE COSTOS AP'!$A$5:$D$164,4,FALSE)","v":10},{"$f":"VLOOKUP(A134,'TIEMPO DE RESPUESTA'!$A$5:$D$166,4,FALSE)","v":30},{"$f":"VLOOKUP(A134,'CANAL ATENCIÓN'!$A$5:$D$166,4,FALSE)","v":10},"NO",0,"NO",0,"NO",0,60]
["MTOP-025-05-01","Emisión del certificado de Obra Viva",{"$f":"VLOOKUP(A135,'DEMANDA ANUAL'!$A$5:$D$166,4,FALSE)","v":10},{"$f":"VLOOKUP(A135,'VOLUMEN DE QUEJAS'!$A$5:$F$166,6,FALSE)","v":0},{"$f":"VLOOKUP(A135,'RESUMEN DE COSTOS AP'!$A$5:$D$164,4,FALSE)","v":20},{"$f":"VLOOKUP(A135,'TIEMPO DE RESPUESTA'!$A$5:$D$166,4,FALSE)","v":30},{"$f":"VLOOKUP(A135,'CANAL ATENCIÓN'!$A$5:$D$166,4,FALSE)","v":10},"NO",0,"NO",0,"NO",0,70]
["MTOP-034-02-02","Aprobación de planos por Legalización de la Modificación (FUERA DEL PERIMETRO URBANO)",{"$f":"VLOOKUP(A136,'DEMANDA ANUAL'!$A$5:$D$166,4,FALSE)","v":10},{"$f":"VLOOKUP(A136,'VOLUMEN DE QUEJAS'!$A$5:$F$166,6,FALSE)","v":0},{"$f":"VLOOKUP(A136,'RESUMEN DE COSTOS AP'!$A$5:$D$164,4,FALSE)","v":20},{"$f":"VLOOKUP(A136,'TIEMPO DE RESPUESTA'!$A$5:$D$166,4,FALSE)","v":30},{"$f":"VLOOKUP(A136,'CANAL ATENCIÓN'!$A$5:$D$166,4,FALSE)","v":10},"NO",0,"NO",0,"NO",0,70]
["MTOP-028-02-01","Emisión del Certificado de Inspección de Estado Rector de Puerto a naves de bandera extranjera que ingresan al país en tránsito (dejan carga y retiran carga de puertos del país)",{"$f":"VLOOKUP(A137,'DEMANDA ANUAL'!$A$5:$D$166,4,FALSE)","v":10},{"$f":"VLOOKUP(A137,'VOLUMEN DE QUEJAS'!$A$5:$F$166,6,FALSE)","v":0},{"$f":"VLOOKUP(A137,'RESUMEN DE COSTOS AP'!$A$5:$D$164,4,FALSE)","v":5},{"$f":"VLOOKUP(A137,'TIEMPO DE RESPUESTA'!$A$5:$D$166,4,FALSE)","v":0},{"$f":"VLOOKUP(A137,'CANAL ATENCIÓN'!$A$5:$D$166,4,FALSE)","v":10},"NO",0,"NO",0,"NO",0,25]
["MTOP-002-04-02","Renovación de Matrícula de Armadores Naves Menores a 50 TRB",{"$f":"VLOOKUP(A138,'DEMANDA ANUAL'!$A$5:$D$166,4,FALSE)","v":10},{"$f":"VLOOKUP(A138,'VOLUMEN DE QUEJAS'!$A$5:$F$166,6,FALSE)","v":0},{"$f":"VLOOKUP(A138,'RESUMEN DE COSTOS AP'!$A$5:$D$164,4,FALSE)","v":5},{"$f":"VLOOKUP(A138,'TIEMPO DE RESPUESTA'!$A$5:$D$166,4,FALSE)","v":0},{"$f":"VLOOKUP(A138,'CANAL ATENCIÓN'!$A$5:$D$166,4,FALSE)","v":10},"NO",0,"NO",0,"NO",0,25]
["MTOP-005-01-05","Delimitación y/o Demarcación de Zonas de Playas y Bahías",{"$f":"VLOOKUP(A139,'DEMANDA ANUAL'!$A$5:$D$166,4,FALSE)","v":10},{"$f":"VLOOKUP(A139,'VOLUMEN DE QUEJAS'!$A$5:$F$166,6,FALSE)","v":0},{"$f":"VLOOKUP(A139,'RESUMEN DE COSTOS AP'!$A$5:$D$164,4,FALSE)","v":10},{"$f":"VLOOKUP(A139,'TIEMPO DE RESPUESTA'!$A$5:$D$166,4,FALSE)","v":0},{"$f":"VLOOKUP(A139,'CANAL ATENCIÓN'!$A$5:$D$166,4,FALSE)","v":10},"NO",0,"NO",0,"NO",0,30]
["MTOP-027-01-06","Emisión del Certificado Internacional de arqueo",{"$f":"VLOOKUP(A140,'DEMANDA ANUAL'!$A$5:$D$166,4,FALSE)","v":10},{"$f":"VLOOKUP(A140,'VOLUMEN DE QUEJAS'!$A$5:$F$166,6,FALSE)","v":0},{"$f":"VLOOKUP(A140,'RESUMEN DE COSTOS AP'!$A$5:$D$164,4,FALSE)","v":20},{"$f":"VLOOKUP(A140,'TIEMPO DE RESPUESTA'!$A$5:$D$166,4,FALSE)","v":30},{"$f":"VLOOKUP(A140,'CANAL ATENCIÓN'!$A$5:$D$166,4,FALSE)","v":10},"NO",0,"NO",0,"NO",0,70]
["MTOP-027-02-01","Emisión del certificado internacional de líneas de carga",{"$f":"VLOOKUP(A141,'DEMANDA ANUAL'!$A$5:$D$166,4,FALSE)","v":10},{"$f":"VLOOKUP(A141,'VOLUMEN DE QUEJAS'!$A$5:$F$166,6,FALSE)","v":0},{"$f":"VLOOKUP(A141,'RESUMEN DE COSTOS AP'!$A$5:$D$164,4,FALSE)","v":20},{"$f":"VLOOKUP(A141,'TIEMPO DE RESPUESTA'!$A$5:$D$166,4,FALSE)","v":30},{"$f":"VLOOKUP(A141,'CANAL ATENCIÓN'!$A$5:$D$166,4,FALSE)","v":10},"NO",0,"NO",0,"NO",0,70]
["MTOP-013-02-02","Emisión de Certificado de Operación Especial para Vehículos Mayores a 60 Ton",{"$f":"VLOOKUP(A142,'DEMANDA ANUAL'!$A$5:$D$166,4,FALSE)","v":10},{"$f":"VLOOKUP(A142,'VOLUMEN DE QUEJAS'!$A$5:$F$166,6,FALSE)","v":0},{"$f":"VLOOKUP(A142,'RESUMEN DE COSTOS AP'!$A$5:$D$164,4,FALSE)","v":20},{"$f":"VLOOKUP(A142,'TIEMPO DE RESPUESTA'!$A$5:$D$166,4,FALSE)","v":30},{"$f":"VLOOKUP(A142,'CANAL ATENCIÓN'!$A$5:$D$166,4,FALSE)","v":10},"NO",0,"NO",0,"NO",0,70]
["MTOP-017-02-04","Aprobación de Libreto de Estabilidad de la nave",{"$f":"VLOOKUP(A143,'DEMANDA ANUAL'!$A$5:$D$166,4,FALSE)","v":10},{"$f":"VLOOKUP(A143,'VOLUMEN DE QUEJAS'!$A$5:$F$166,6,FALSE)","v":0},{"$f":"VLOOKUP(A143,'RESUMEN DE COSTOS AP'!$A$5:$D$164,4,FALSE)","v":20},{"$f":"VLOOKUP(A143,'TIEMPO DE RESPUESTA'!$A$5:$D$166,4,FALSE)","v":30},{"$f":"VLOOKUP(A143,'CANAL ATENCIÓN'!$A$5:$D$166,4,FALSE)","v":10},"NO",0,"NO",0,"NO",0,70]
["MTOP-010-01-01","Emisión de Registro de Tarifas y Recargos de Fletes Internacionales",{"$f":"VLOOKUP(A144,'DEMANDA ANUAL'!$A$5:$D$166,4,FALSE)","v":10},{"$f":"VLOOKUP(A144,'VOLUMEN DE QUEJAS'!$A$5:$F$166,6,FALSE)","v":0},{"$f":"VLOOKUP(A144,'RESUMEN DE COSTOS AP'!$A$5:$D$164,4,FALSE)","v":5},{"$f":"VLOOKUP(A144,'TIEMPO DE RESPUESTA'!$A$5:$D$166,4,FALSE)","v":0},{"$f":"VLOOKUP(A144,'CANAL ATENCIÓN'!$A$5:$D$166,4,FALSE)","v":10},"NO",0,"NO",0,"NO",0,25]
["MTOP-017-01-11","Aprobación de planos de capacidad de combustible (FUERA DEL PERIMETRO URBANO)",{"$f":"VLOOKUP(A145,'DEMANDA ANUAL'!$A$5:$D$166,4,FALSE)","v":10},{"$f":"VLOOKUP(A145,'VOLUMEN DE QUEJAS'!$A$5:$F$166,6,FALSE)","v":0},{"$f":"VLOOKUP(A145,'RESUMEN DE COSTOS AP'!$A$5:$D$164,4,FALSE)","v":20},{"$f":"VLOOKUP(A145,'TIEMPO DE RESPUESTA'!$A$5:$D$166,4,FALSE)","v":30},{"$f":"VLOOKUP(A145,'CANAL ATENCIÓN'!$A$5:$D$166,4,FALSE)","v":10},"NO",0,"NO",0,"NO",0,70]
["MTOP-002-04-01","Matriculación de Armadores Por Primera Vez Naves Menores a 50 TRB",{"$f":"VLOOKUP(A146,'DEMANDA ANUAL'!$A$5:$D$166,4,FALSE)","v":10},{"$f":"VLOOKUP(A146,'VOLUMEN DE QUEJAS'!$A$5:$F$166,6,FALSE)","v":0},{"$f":"VLOOKUP(A146,'RESUMEN DE COSTOS AP'!$A$5:$D$164,4,FALSE)","v":5},{"$f":"VLOOKUP(A146,'TIEMPO DE RESPUESTA'!$A$5:$D$166,4,FALSE)","v":0},{"$f":"VLOOKUP(A146,'CANAL ATENCIÓN'!$A$5:$D$166,4,FALSE)","v":10},"NO",0,"NO",0,"NO",0,25]
["MTOP-025-04-01","Realización de la Inspección para determinar el Avalúo de las naves",{"$f":"VLOOKUP(A147,'DEMANDA ANUAL'!$A$5:$D$166,4,FALSE)","v":10},{"$f":"VLOOKUP(A147,'VOLUMEN DE QUEJAS'!$A$5:$F$166,6,FALSE)","v":0},{"$f":"VLOOKUP(A147,'RESUMEN DE COSTOS AP'!$A$5:$D$164,4,FALSE)","v":20},{"$f":"VLOOKUP(A147,'TIEMPO DE RESPUESTA'!$A$5:$D$166,4,FALSE)","v":30},{"$f":"VLOOKUP(A147,'CANAL ATENCIÓN'!$A$5:$D$166,4,FALSE)","v":10},"NO",0,"NO",0,"NO",0,70]
["MTOP-019-01-05","Emisión de Autorización de Asignación de Muelles para Mantenimiento y/o Reparación",{"$f":"VLOOKUP(A148,'DEMANDA ANUAL'!$A$5:$D$166,4,FALSE)","v":10},{"$f":"VLOOKUP(A148,'VOLUMEN DE QUEJAS'!$A$5:$F$166,6,FALSE)","v":0},{"$f":"VLOOKUP(A148,'RESUMEN DE COSTOS AP'!$A$5:$D$164,4,FALSE)","v":10},{"$f":"VLOOKUP(A148,'TIEMPO DE RESPUESTA'!$A$5:$D$166,4,FALSE)","v":30},{"$f":"VLOOKUP(A148,'CANAL ATENCIÓN'!$A$5:$D$166,4,FALSE)","v":10},"NO",0,"NO",0,"NO",0,60]
["MTOP-027-01-02","Emisión del Certificado Nacional de arqueo",{"$f":"VLOOKUP(A149,'DEMANDA ANUAL'!$A$5:$D$166,4,FALSE)","v":10},{"$f":"VLOOKUP(A149,'VOLUMEN DE QUEJAS'!$A$5:$F$166,6,FALSE)","v":0},{"$f":"VLOOKUP(A149,'RESUMEN DE COSTOS AP'!$A$5:$D$164,4,FALSE)","v":20},{"$f":"VLOOKUP(A149,'TIEMPO DE RESPUESTA'!$A$5:$D$166,4,FALSE)","v":30},{"$f":"VLOOKUP(A149,'CANAL ATENCIÓN'!$A$5:$D$166,4,FALSE)","v":10},"NO",0,"NO",0,"NO",0,70]
["MTOP-005-01-08","Emisión de Matrícula Concesión de Zona de Playas y Bahías (Anual)",{"$f":"VLOOKUP(A150,'DEMANDA ANUAL'!$A$5:$D$166,4,FALSE)","v":10},{"$f":"VLOOKUP(A150,'VOLUMEN DE QUEJAS'!$A$5:$F$166,6,FALSE)","v":0},{"$f":"VLOOKUP(A150,'RESUMEN DE COSTOS AP'!$A$5:$D$164,4,FALSE)","v":5},{"$f":"VLOOKUP(A150,'TIEMPO DE RESPUESTA'!$A$5:$D$166,4,FALSE)","v":0},{"$f":"VLOOKUP(A150,'CANAL ATENCIÓN'!$A$5:$D$166,4,FALSE)","v":10},"NO",0,"NO",0,"NO",0,25]
["MTOP-027-03-01","Emisión del Permiso de Vare y Desvare",{"$f":"VLOOKUP(A151,'DEMANDA ANUAL'!$A$5:$D$166,4,FALSE)","v":10},{"$f":"VLOOKUP(A151,'VOLUMEN DE QUEJAS'!$A$5:$F$166,6,FALSE)","v":0},{"$f":"VLOOKUP(A151,'RESUMEN DE COSTOS AP'!$A$5:$D$164,4,FALSE)","v":5},{"$f":"VLOOKUP(A151,'TIEMPO DE RESPUESTA'!$A$5:$D$166,4,FALSE)","v":0},{"$f":"VLOOKUP(A151,'CANAL ATENCIÓN'!$A$5:$D$166,4,FALSE)","v":10},"NO",0,"NO",0,"NO",0,25]
["MTOP-020-01-01","Emisión de Permisos de Tráfico Marítimo y Fluvial para naves nacionales y extranjeras",{"$f":"VLOOKUP(A152,'DEMANDA ANUAL'!$A$5:$D$166,4,FALSE)","v":10},{"$f":"VLOOKUP(A152,'VOLUMEN DE QUEJAS'!$A$5:$F$166,6,FALSE)","v":0},{"$f":"VLOOKUP(A152,'RESUMEN DE COSTOS AP'!$A$5:$D$164,4,FALSE)","v":5},{"$f":"VLOOKUP(A152,'TIEMPO DE RESPUESTA'!$A$5:$D$166,4,FALSE)","v":0},{"$f":"VLOOKUP(A152,'CANAL ATENCIÓN'!$A$5:$D$166,4,FALSE)","v":10},"NO",0,"NO",0,"NO",0,25]
["MTOP-013-02-01","Emisión de Certificado de Operación Especial para Vehículos entre 48 - 60 Toneladas",{"$f":"VLOOKUP(A153,'DEMANDA ANUAL'!$A$5:$D$166,4,FALSE)","v":10},{"$f":"VLOOKUP(A153,'VOLUMEN DE QUEJAS'!$A$5:$F$166,6,FALSE)","v":10},{"$f":"VLOOKUP(A153,'RESUMEN DE COSTOS AP'!$A$5:$D$164,4,FALSE)","v":20},{"$f":"VLOOKUP(A153,'TIEMPO DE RESPUESTA'!$A$5:$D$166,4,FALSE)","v":30},{"$f":"VLOOKUP(A153,'CANAL ATENCIÓN'!$A$5:$D$166,4,FALSE)","v":10},"NO",0,"NO",0,"NO",0,80]
["MTOP-002-01-02","Renovación de Matrícula de Armadores Naves Mayores a 50 TRB",{"$f":"VLOOKUP(A154,'DEMANDA ANUAL'!$A$5:$D$166,4,FALSE)","v":10},{"$f":"VLOOKUP(A154,'VOLUMEN DE QUEJAS'!$A$5:$F$166,6,FALSE)","v":0},{"$f":"VLOOKUP(A154,'RESUMEN DE COSTOS AP'!$A$5:$D$164,4,FALSE)","v":5},{"$f":"VLOOKUP(A154,'TIEMPO DE RESPUESTA'!$A$5:$D$166,4,FALSE)","v":0},{"$f":"VLOOKUP(A154,'CANAL ATENCIÓN'!$A$5:$D$166,4,FALSE)","v":10},"NO",0,"NO",0,"NO",0,25]
["MTOP-001-01-01","Matriculación de equipo caminero y maquinaria pesada primera vez",{"$f":"VLOOKUP(A155,'DEMANDA ANUAL'!$A$5:$D$166,4,FALSE)","v":10},{"$f":"VLOOKUP(A155,'VOLUMEN DE QUEJAS'!$A$5:$F$166,6,FALSE)","v":0},{"$f":"VLOOKUP(A155,'RESUMEN DE COSTOS AP'!$A$5:$D$164,4,FALSE)","v":20},{"$f":"VLOOKUP(A155,'TIEMPO DE RESPUESTA'!$A$5:$D$166,4,FALSE)","v":30},{"$f":"VLOOKUP(A155,'CANAL ATENCIÓN'!$A$5:$D$166,4,FALSE)","v":10},"NO",0,"NO",0,"NO",0,70]
["MTOP-019-01-01","Emisión de Autorización de Asignación de Muelle para Tráfico de Cabotaje",{"$f":"VLOOKUP(A156,'DEMANDA ANUAL'!$A$5:$D$166,4,FALSE)","v":10},{"$f":"VLOOKUP(A156,'VOLUMEN DE QUEJAS'!$A$5:$F$166,6,FALSE)","v":0},{"$f":"VLOOKUP(A156,'RESUMEN DE COSTOS AP'!$A$5:$D$164,4,FALSE)","v":10},{"$f":"VLOOKUP(A156,'TIEMPO DE RESPUESTA'!$A$5:$D$166,4,FALSE)","v":30},{"$f":"VLOOKUP(A156,'CANAL ATENCIÓN'!$A$5:$D$166,4,FALSE)","v":10},"NO",0,"NO",0,"NO",0,60]
["MTOP-001-01-03","Renovación de matrícula por cambio de propietario del equipo caminero y la maquinaria pesada",{"$f":"VLOOKUP(A157,'DEMANDA ANUAL'!$A$5:$D$166,4,FALSE)","v":10},{"$f":"VLOOKUP(A157,'VOLUMEN DE QUEJAS'!$A$5:$F$166,6,FALSE)","v":0},{"$f":"VLOOKUP(A157,'RESUMEN DE COSTOS AP'!$A$5:$D$164,4,FALSE)","v":20},{"$f":"VLOOKUP(A157,'TIEMPO DE RESPUESTA'!$A$5:$D$166,4,FALSE)","v":30},{"$f":"VLOOKUP(A157,'CANAL ATENCIÓN'!$A$5:$D$166,4,FALSE)","v":10},"NO",0,"NO",0,"NO",0,70]
["MTOP-013-03-01","Autorización de Importación",{"$f":"VLOOKUP(A158,'DEMANDA ANUAL'!$A$5:$D$166,4,FALSE)","v":10},{"$f":"VLOOKUP(A158,'VOLUMEN DE QUEJAS'!$A$5:$F$166,6,FALSE)","v":10},{"$f":"VLOOKUP(A158,'RESUMEN DE COSTOS AP'!$A$5:$D$164,4,FALSE)","v":20},{"$f":"VLOOKUP(A158,'TIEMPO DE RESPUESTA'!$A$5:$D$166,4,FALSE)","v":30},{"$f":"VLOOKUP(A158,'CANAL ATENCIÓN'!$A$5:$D$166,4,FALSE)","v":10},"NO",0,"NO",0,"NO",0,80]
["MTOP-019-01-02","Emisión de Autorización de Asignación de Muelle para Tráfico Internacional",{"$f":"VLOOKUP(A159,'DEMANDA ANUAL'!$A$5:$D$166,4,FALSE)","v":10},{"$f":"VLOOKUP(A159,'VOLUMEN DE QUEJAS'!$A$5:$F$166,6,FALSE)","v":0},{"$f":"VLOOKUP(A159,'RESUMEN DE COSTOS AP'!$A$5:$D$164,4,FALSE)","v":10},{"$f":"VLOOKUP(A159,'TIEMPO DE RESPUESTA'!$A$5:$D$166,4,FALSE)","v":30},{"$f":"VLOOKUP(A159,'CANAL ATENCIÓN'!$A$5:$D$166,4,FALSE)","v":10},"NO",0,"NO",0,"NO",0,60]
["MTOP-009-02-01","Autorización de Transporte de Carga Peligrosa a la Provincia insular de Galápagos y Viceversa",{"$f":"VLOOKUP(A160,'DEMANDA ANUAL'!$A$5:$D$166,4,FALSE)","v":10},{"$f":"VLOOKUP(A160,'VOLUMEN DE QUEJAS'!$A$5:$F$166,6,FALSE)","v":0},{"$f":"VLOOKUP(A160,'RESUMEN DE COSTOS AP'!$A$5:$D$164,4,FALSE)","v":5},{"$f":"VLOOKUP(A160,'TIEMPO DE RESPUESTA'!$A$5:$D$166,4,FALSE)","v":0},{"$f":"VLOOKUP(A160,'CANAL ATENCIÓN'!$A$5:$D$166,4,FALSE)","v":10},"NO",0,"NO",0,"NO",0,25]
["MTOP-015-01-03","Matriculación de Personal Marítimo Portuario",{"$f":"VLOOKUP(A161,'DEMANDA ANUAL'!$A$5:$D$166,4,FALSE)","v":10},{"$f":"VLOOKUP(A161,'VOLUMEN DE QUEJAS'!$A$5:$F$166,6,FALSE)","v":0},{"$f":"VLOOKUP(A161,'RESUMEN DE COSTOS AP'!$A$5:$D$164,4,FALSE)","v":5},{"$f":"VLOOKUP(A161,'TIEMPO DE RESPUESTA'!$A$5:$D$166,4,FALSE)","v":0},{"$f":"VLOOKUP(A161,'CANAL ATENCIÓN'!$A$5:$D$166,4,FALSE)","v":10},"NO",0,"NO",0,"NO",0,25]
["MTOP-009-02-05","Obtención de Permisos Especiales de Ingreso a Instalaciones Portuarias",{"$f":"VLOOKUP(A162,'DEMANDA ANUAL'!$A$5:$D$166,4,FALSE)","v":10},{"$f":"VLOOKUP(A162,'VOLUMEN DE QUEJAS'!$A$5:$F$166,6,FALSE)","v":0},{"$f":"VLOOKUP(A162,'RESUMEN DE COSTOS AP'!$A$5:$D$164,4,FALSE)","v":5},{"$f":"VLOOKUP(A162,'TIEMPO DE RESPUESTA'!$A$5:$D$166,4,FALSE)","v":0},{"$f":"VLOOKUP(A162,'CANAL ATENCIÓN'!$A$5:$D$166,4,FALSE)","v":10},"NO",0,"NO",0,"NO",0,25]
["MTOP-001-01-02","Renovación de matrícula de equipo caminero y maquinaria pesada",{"$f":"VLOOKUP(A163,'DEMANDA ANUAL'!$A$5:$D$166,4,FALSE)","v":10},{"$f":"VLOOKUP(A163,'VOLUMEN DE QUEJAS'!$A$5:$F$166,6,FALSE)","v":0},{"$f":"VLOOKUP(A163,'RESUMEN DE COSTOS AP'!$A$5:$D$164,4,FALSE)","v":20},{"$f":"VLOOKUP(A163,'TIEMPO DE RESPUESTA'!$A$5:$D$166,4,FALSE)","v":30},{"$f":"VLOOKUP(A163,'CANAL ATENCIÓN'!$A$5:$D$166,4,FALSE)","v":10},"NO",0,"NO",0,"NO",0,70]
["MTOP-001-01-05","Certificación de la propiedad, gravámenes, arrendamiento mercantil y venta con reserva de dominio",{"$f":"VLOOKUP(A164,'DEMANDA ANUAL'!$A$5:$D$166,4,FALSE)","v":10},{"$f":"VLOOKUP(A164,'VOLUMEN DE QUEJAS'!$A$5:$F$166,6,FALSE)","v":4},{"$f":"VLOOKUP(A164,'RESUMEN DE COSTOS AP'!$A$5:$D$164,4,FALSE)","v":5},{"$f":"VLOOKUP(A164,'TIEMPO DE RESPUESTA'!$A$5:$D$166,4,FALSE)","v":0},{"$f":"VLOOKUP(A164,'CANAL ATENCIÓN'!$A$5:$D$166,4,FALSE)","v":10},"NO",0,"NO",0,"NO",0,29]
["MTOP-013-01-01","Emisión de Certificado de Operación Regular",{"$f":"VLOOKUP(A165,'DEMANDA ANUAL'!$A$5:$D$166,4,FALSE)","v":10},{"$f":"VLOOKUP(A165,'VOLUMEN DE QUEJAS'!$A$5:$F$166,6,FALSE)","v":10},{"$f":"VLOOKUP(A165,'RESUMEN DE COSTOS AP'!$A$5:$D$164,4,FALSE)","v":5},{"$f":"VLOOKUP(A165,'TIEMPO DE RESPUESTA'!$A$5:$D$166,4,FALSE)","v":0},{"$f":"VLOOKUP(A165,'CANAL ATENCIÓN'!$A$5:$D$166,4,FALSE)","v":10},"NO",0,"NO",0,"NO",0,35]